Workbook

Sheet Title Page
A1: U.S. EPA Office of Ground Water and Drinking Water
A2: Work Breakdown Structure (WBS) Model for ANION EXCHANGE FOR PERCHLORATE Treatment
A3: Release Date: March 2023
A4: · The primary purpose of this model is to assist EPA in estimating national compliance costs.
A5: · As such, the costs are intended to be representative of the central tendency of typical facilities.
A6: · The default settings, however, do not account for all of the site-specific factors that could affect the cost of any given individual facility or project.
A7: · Still, other uses of the model might be reasonable if sufficient care is taken by the user to account for site- or project-specific factors.
A8: · The model results are point estimates shown to the nearest $1, but this precision is not meant to imply that the results are accurate to $1.
A9: · Instead, users should review all documentation, modify inputs/assumptions as appropriate to their specific purpose, and form their own informed opinions about the accuracy and suitability of the results.
A10: · Use of this model requires Excel 2007 or later.
A11: · The model should be opened as Read-only, so that any changes you make are saved under a new file name.
A12: · To function properly, macros ("active content") must be enabled. If a security warning appears, click "options" and "enable this content."
A13: · For further information see the following document distributed with this file:
A14: USEPA. 2023. Work Breakdown Structure-Based Cost Model for ANION EXCHANGE FOR PERCHLORATE Drinking Water Treatment. Office of Water.
A15: · To begin using the model, go to the INPUT sheet.

Sheet Index
A1: INDEX
A2: This page provides an index to all user-adjustable inputs and assumptions. Click on a variable name to go directly to the adjustable cells.
A4: User-adjustable Input or Assumption | B4: Variable Name and Link
A5: Access space for cartridge filters | B5: space_other_equip
A6: Access space per pump for custom designed systems | B6: space_pumps_cust
A7: Access space per pump for pre-engineered packages | B7: space_pumps_pre
A8: Add a redundant unit per x parallel lines | B8: redund_freq
A9: Add coagulant to holding tank | B9: coag_res
A10: Additional building after… | B10: add_2nd_building
A11: Additional conductivity meters | B11: add_cond
A12: Additional freeboard | B12: sec_cont_freeboard
A13: Additional redundant cartridge filter per x MGD inflow | B13: addl_redund_cart_per_flow
A14: Additional sampling ports | B14: add_ports
A15: Additional turbididy meters | B15: add_turb
A16: Additional turbididy meters for small systems | B16: add_turb_small
A17: Administrative LOE as a percent of average technical labor | B17: Clerical_percent
A18: Air conditioning EER | B18: EER
A19: Alternate media disposal cost (including transportation) | B19: alt_media_disp
A20: Always include NEPA compliance costs? | B20: include_NEPA
A21: Annual cooling degree days | B21: cool_DD
A22: Annual heating degree days | B22: heat_DD
A23: Annual resin loss | B23: resin_loss_annual
A24: Apply POTW discharge base charge (i.e., $/month) | B24: POTW_base_fee
A25: Apply POTW discharge TSS charge (i.e., $/lb of TSS over limit below) | B25: POTW_TSS_fee
A26: Apply POTW discharge volume charge (i.e., $/1000 gallons) | B26: POTW_volume_fee
A27: Average annual pan evaporation rate | B27: pan_evap
A28: Average annual precipitation | B28: precip
A29: Average Flow | B29: average_flow_I
A30: Backwash frequency outside of regeneration/initial rinse | B30: add_backwash_freq
A31: Backwash loading rate | B31: h2oflush_backwash_rate
A32: Backwash pipe length multiplier | B32: back_pipe_mult
A33: Backwash time | B33: backwash_time
A34: Backwash/Rinse Pumping | B34: no_backwash_I
A35: Backwash/Rinse Storage | B35: no_back_tank_I
A36: Basin excavation depth above which deeper boreholes are needed | B36: deep_bore_need
A37: Bed depth | B37: bed_depth
A38: Bedding depth below pipe | B38: bedding_depth
A39: Bedding depth surrounding the pipe | B39: bedding_pct
A40: Borehole depth for deep basins | B40: bore_depth_max
A41: Borehole depth for shallow basins | B41: bore_depth_min
A42: Borehole depth without basins | B42: bore_depth_nobasin
A43: Borehole needed every x square feet | B43: hole_per_sf
A44: Boreholes per job | B44: hole_per_job
A45: Brine delivery method | B45: brine_method_I
A46: Builder's risk insurance percentage | B46: br_ins_pct
A47: Bypass percentage | B47: bp_pct
A48: Bypass pipe length multiplier | B48: bp_pipe_mult
A49: Characteristics of holding tank solids | B49: solids_haz_I
A50: Characteristics of spent resin | B50: media_haz_I
A51: Chemical pipe length multiplier | B51: chem_pipe_mult
A52: Chemical resistant coating coverage | B52: sec_cont_coating_cvg
A53: Chemical storage height | B53: storage_height
A54: Chemical tank mixer horsepower | B54: cmix_hp_per
A55: City index | B55: city_index
A56: City Index for Total O&M Cost | B56: OM_City_Index
A57: Clean holding tanks/basins when solids accumulation =x% of capacity | B57: htank_clean_pct
A58: Clearance space beneath the ceiling | B58: ceiling_clearance
A59: Coefficient of passive pressure | B59: Coeff_Kp
A60: Component level | B60: component_level_I
A61: Computer workstations per x operators | B61: workstation_ratio
A62: Concrete pad thickness | B62: pad_thick
A63: Concrete pad thickness for small systems | B63: pad_thick_small
A64: Concrete thickness for holding basins | B64: conc_thick
A65: Conductivity meters per vessel | B65: cond_tank
A66: Cooling table for buildings 500 square feet or greater | B66: cooling_table
A67: Cooling table for buildings less than 500 ft2 | B67: cooling_table_shed
A68: Cooling ventilation/infiltration load | B68: cool_viload
A69: Cost estimating method | B69: curve
A70: Cost for parts & maintenance for booster pumps | B70: booster_pump_maintenance
A71: Days of chemical storage | B71: cstore_days
A72: Days of winter (i.e., days of storage during periods with no net evaporation) | B72: winter_days
A73: Default number of residuals basins | B73: hbasins_default
A74: Design Flow | B74: design_flow_I
A75: Design safety factor for standby power | B75: std_safety_factor
A76: Desired treated water alkalinity as CaCO3 | B76: alk_I
A77: Desired treated water pH | B77: pHf
A78: Diameter | B78: comm_diam
A79: Discharge option for spent backwash/rinse | B79: res_s2_opt_I
A80: Disposal method for non-hazardous secondary solids | B80: solids_method
A81: Distance to discharge point or evaporation pond | B81: add_res_pipe_length
A82: Drive controllers per backwash pump | B82: S_back_pump
A83: Drive controllers per booster pump | B83: S_booster_pump
A84: Drive controllers per eductor | B84: S_eductor
A85: Drive controllers per metering pump | B85: S_cm_pump
A86: Drive controllers per regenerant mixer | B86: S_mixer
A87: Drive controllers per regenerant pump | B87: S_regen_pump
A88: Drive controllers per residuals pump | B88: S_res_pump
A89: Electric resistance heating efficiency | B89: resist_eff
A90: Electrical percentage | B90: elect_pct
A91: Engineering percentage for large systems | B91: eng_pct_large
A92: Engineering percentage for medium systems | B92: eng_pct_medium
A93: Engineering percentage for small systems | B93: eng_pct_small
A94: Ethernet modules | B94: plc_ethernet
A95: Evaporation pond dike cross-sectional area | B95: dike_xsection
A96: Evaporation pond freeboard | B96: ep_freeboard
A97: Evaporation pond safety factor | B97: ep_safety_factor
A98: Evaporation pond solids density | B98: ep_solids_density
A99: Evaporation pond solids removal frequency | B99: dredging_freq
A100: Evaporation ratio | B100: evap_ratio
A101: Ferric chloride dosage | B101: coag_dose
A102: Ferric chloride molecular weight | B102: FeCl3_mw
A103: Ferric chloride sludge production factor | B103: coag_spf
A104: Ferric chloride solution concentration | B104: coag_pct
A105: Ferric chloride solution density | B105: coag_density
A106: Financing percentage | B106: finance_pct
A107: Financing percentage for small systems | B107: finance_pct_small
A108: Fire Buffer for Buildings | B108: fire_buffer
A109: Flow meters for backwash line | B109: fm_back
A110: Flow meters for influent and treated water line | B110: tot_fm_in
A111: Flow meters for process line per vessel | B111: fm_proc
A112: Flow meters for residuals line | B112: tot_fm_res
A113: For chemical supply systems | B113: uloe_chem_maint
A114: For instruments (includes calibration) | B114: uloe_inst_maint
A115: For pumps | B115: uloe_pump_maint
A116: For valves | B116: uloe_valve_maint
A117: Free board above media at full expansion | B117: free_board
A118: Frost depth | B118: frost
A119: HCl quantity to trigger RMP requirement | B119: HCl_quant_RMP
A120: HCl strength to trigger RMP requirement | B120: HCl_strength_RMP
A121: Head loss sensors per cartridge filter | B121: headloss_cart
A122: Head loss sensors per vessel | B122: head_tank
A123: Head loss sensors per vessel for small systems | B123: head_tank_small
A124: Heat pump cooling mode EER | B124: hp_EER
A125: Heat pump heating coefficient of performance | B125: COP
A126: Heating Oil Heat Content | B126: diesel_heat_content
A127: Heating table for buildings 500 square feet or greater | B127: heating_table
A128: Heating table for buildings less than 500 ft2 | B128: heating_table_shed
A129: Heating ventilation/infiltration load | B129: heat_viload
A130: Height (straight) or Length (straight) | B130: comm_height_length
A131: High/Low alarms per backwash tank | B131: alarm_back
A132: High/Low alarms per HCl tank | B132: alarm_acid
A133: High/Low alarms per holding tank | B133: alarm_res
A134: High/Low alarms per NaOH tank | B134: alarm_caustic
A135: High/Low alarms per regenerant mixing tank | B135: alarm_brine
A136: Holding basin depth to volume ratio | B136: holding_ratio
A137: Holding basin freeboard | B137: holding_freeboard
A138: Holding tank for spent backwash/rinse | B138: res_s1_opt_I
A139: Holding tank mixer horsepower (if coagulant is used) | B139: hmix_hp_per
A140: Holding tank/basin capacity factor | B140: res_cap_factor
A141: Holding tank/basin solids density | B141: ht_solids_density
A142: Holding tank/basin suspended solids removal efficiency with coagulant | B142: coag_TSSrem
A143: Holding tank/basin suspended solids removal efficiency without coagulant | B143: htank_TSSrem
A144: Hours per resin changeout | B144: uloe_throwaway
A145: Hydrochloric acid molecular weight | B145: HCl_mw
A146: Hydrochloric acid weight percent as delivered | B146: HCl_pct
A147: I/O port table | B147: port_table
A148: Include a separate day tank if daily volume is x or greater | B148: day_tank_needed
A149: Include architectural fee for small systems? | B149: include_arch_small
A150: Include architectural fee? | B150: include_arch
A151: Include buildings? | B151: include_buildings_I
A152: Include cartridge filters | B152: include_cart
A153: Include concrete pad in total capital cost? | B153: include_pad
A154: Include construction management cost for pre-engineered packages? | B154: include_cm_pre
A155: Include construction management cost? | B155: include_cm
A156: Include contingency costs for high cost systems? | B156: include_conting_high
A157: Include contingency costs for low cost systems? | B157: include_conting_low
A158: Include contingency costs for medium cost systems? | B158: include_conting_medium
A159: Include cooling in standby power | B159: need_cool
A160: Include geotechnical costs for high cost systems? | B160: include_geo_high
A161: Include geotechnical costs for low cost systems? | B161: include_geo_low
A162: Include geotechnical costs for medium cost systems? | B162: include_geo_medium
A163: Include heating in standby power | B163: need_heat
A164: Include HVAC? | B164: include_HVAC_I
A165: Include land? | B165: v
A166: Include mixers for chemical tanks | B166: include_cmix
A167: Include performance bond cost? | B167: include_bond
A168: Include permit costs? | B168: include_permits
A169: Include pilot study costs? | B169: include_pilot
A170: Include secondary containment | B170: include_sec_cont
A171: Include sitework costs? | B171: include_sitework
A172: Include standby power costs for small systems? | B172: include_standby_small
A173: Include standby power costs? | B173: include_standby
A174: Include yard piping costs? | B174: include_yardpipe
A175: Influent and treated water pipe length multiplier | B175: in_out_pipe_mult
A176: Influent water temperature | B176: t_I
A177: Influent water total dissolved solids | B177: TDS_I
A178: Installation, Transportatation, and O&P percentage | B178: inst_pct
A179: Instrumentation and control percentage | B179: i_c_pct
A180: Labor hours per cartridge filter | B180: hrs_filter
A181: Legal percentage | B181: legal_pct
A182: Level switch/alarms per vessel | B182: level_switch
A183: Level switch/alarms per vessel for small systems | B183: level_switch_small
A184: Life of cartridge filters | B184: cart_life
A185: Lighting power per sf, high-quality buildings | B185: lighting_power_high
A186: Lighting power per sf, low-quality buildings and sheds | B186: lighting_power_low
A187: Lighting power per sf, mid-quality buildings | B187: lighting_power_mid
A188: Linear feet bored per day | B188: hole_per_day
A189: Loading rate minimum | B189: load_min
A190: Mangerial LOE as a percent of average technical labor | B190: Manager_percent
A191: Maximum access space per vessel or tank for custom designed systems | B191: max_space_vessels_cust
A192: Maximum access space per vessel or tank for pre-engineered systems | B192: max_space_vessels_pre
A193: Maximum bed depth for autosize | B193: max_bed_depth
A194: Maximum curb thickness | B194: sec_cont_max_thick
A195: Maximum evaporation pond cell area | B195: max_ep_cell_area
A196: Maximum hazardous waste shipment size | B196: max_haz_ship
A197: Maximum liquid hazardous waste shipment size | B197: max_lhaz_ship
A198: Maximum radioactive (non-hazardous) waste shipment size | B198: max_rad_ship
A199: Maximum radioactive hazardous waste shipment size | B199: max_hazrad_ship
A200: Maximum vessel diameter | B200: max_diam_override
A201: Maximum vessel height (circular vessels) | B201: max_height
... 149 more rows

Sheet INPUT
A1: ANION EXCHANGE SYSTEM DESIGN AND COSTS INPUTS FOR PERCHLORATE
D3: STEP 1
D4: Select Resin Type | G4: =IF(resin_type<>5,"","For alternative resin, the buttons shown in Step 2 will enter flows only, and clear all other inputs. Advanced users can change this behavior by entering inputs on the Standard Inputs sheet") -> 
D6: STEP 2: | G6: =IF(OR('Standard Inputs'!AF9,'Standard Inputs'!AF17,'Standard Inputs'!AF25,'Standard Inputs'!AF33),"<- Using this design",IF(OR('Standard Inputs'!AG9,'Standard Inputs'!AG17,'Standard Inputs'!AG25,'Standard Inputs'!AG33),"<- You modified this design","")) -> <- Using this design | H6: The standard design buttons are for EPA's use in estimating national costs, but other users might find them useful as a starting point. See documentation for more information
D7: Select one of the eight standard designs at right OR select "CLEAR FOR MANUAL ENTRY" | G7: =IF(OR('Standard Inputs'!AF10,'Standard Inputs'!AF18,'Standard Inputs'!AF26,'Standard Inputs'!AF34),"<- Using this design",IF(OR('Standard Inputs'!AG10,'Standard Inputs'!AG18,'Standard Inputs'!AG26,'Standard Inputs'!AG34),"<- You modified this design","")) -> 
G8: =IF(OR('Standard Inputs'!AF11,'Standard Inputs'!AF19,'Standard Inputs'!AF27,'Standard Inputs'!AF35),"<- Using this design",IF(OR('Standard Inputs'!AG11,'Standard Inputs'!AG19,'Standard Inputs'!AG27,'Standard Inputs'!AG35),"<- You modified this design","")) -> 
G9: =IF(OR('Standard Inputs'!AF12,'Standard Inputs'!AF20,'Standard Inputs'!AF28,'Standard Inputs'!AF36),"<- Using this design",IF(OR('Standard Inputs'!AG12,'Standard Inputs'!AG20,'Standard Inputs'!AG28,'Standard Inputs'!AG36),"<- You modified this design","")) -> 
G10: =IF(OR('Standard Inputs'!AF13,'Standard Inputs'!AF21,'Standard Inputs'!AF29,'Standard Inputs'!AF37),"<- Using this design",IF(OR('Standard Inputs'!AG13,'Standard Inputs'!AG21,'Standard Inputs'!AG29,'Standard Inputs'!AG37),"<- You modified this design","")) -> 
G11: =IF(OR('Standard Inputs'!AF14,'Standard Inputs'!AF22,'Standard Inputs'!AF30,'Standard Inputs'!AF38),"<- Using this design",IF(OR('Standard Inputs'!AG14,'Standard Inputs'!AG22,'Standard Inputs'!AG30,'Standard Inputs'!AG38),"<- You modified this design","")) -> 
G12: =IF(OR('Standard Inputs'!AF15,'Standard Inputs'!AF23,'Standard Inputs'!AF31,'Standard Inputs'!AF39),"<- Using this design",IF(OR('Standard Inputs'!AG15,'Standard Inputs'!AG23,'Standard Inputs'!AG31,'Standard Inputs'!AG39),"<- You modified this design","")) -> 
G13: =IF(OR('Standard Inputs'!AF16,'Standard Inputs'!AF24,'Standard Inputs'!AF32,'Standard Inputs'!AF40),"<- Using this design",IF(OR('Standard Inputs'!AG16,'Standard Inputs'!AG24,'Standard Inputs'!AG32,'Standard Inputs'!AG40),"<- You modified this design","")) -> 
G14: =IF(COUNTIF(G6:G13,"")=8,"Using a manual design","") ->  | H14: =IF(COUNTIF(G6:G13,"")=8,"Fill in all gold cells below, then consider using AutoSize button","") -> 
D15: STEP 3:
D16: (Optional for standard designs) | F16: =IF(input_complete,IF('Standard Inputs'!AF51,"Input Complete -- Results Ready","Input Complete -- Press 'Generate Results'"),"Input Incomplete -- Check for Error Messages Below") -> Input Complete -- Results Ready | H16: =IF(AND(C50,C52,C51,C53,C55),"","Fill in all gold cells below. If errors persist, consider using AutoSize button.") -> 
C17: =AND(C32,C36,C50,C51,C52,C53,C55,C63,C81) -> TRUE | D17: Enter or change values in the gold and blue cells below, under "Manual Inputs"
D19: STEP 4: | H19: ="Resulting Costs (in year "&TEXT(current_year_cl,0)&" dollars, see OUTPUT sheet for details)" -> Resulting Costs (in year 2021 dollars, see OUTPUT sheet for details)
D20: =IF(F16="input complete -- results ready","Results are ready (no need to click button)","Click here to generate results -->") -> Results are ready (no need to click button) | H20: ="Direct Capital Cost: "&IF(input_status<>"input complete -- results ready",input_status,IF(Missing_Cost,"Missing cost!",IF(cost_buildup_error,"Cost buildup error!",IF(ISERROR(direct_cost),"Calculation error!",TEXT(direct_cost,"$0,0"))))) -> Direct Capital Cost: $48,462
H21: ="Total Capital Cost: " & IF(input_status<>"input complete -- results ready",input_status,IF(Missing_Cost,"Missing cost!",IF(cost_buildup_error,"Cost buildup error!",IF(ISERROR(system_cost),"Calculation error!",TEXT(system_cost,"$0,0"))))) -> Total Capital Cost: $92,056
H22: ="Annualized Capital Cost: "&IF(input_status<>"Input Complete -- Results Ready",input_status,IF(Missing_Cost,"Missing Price!",IF(cost_buildup_error,"Cost buildup error!",IF(ISERROR(Annualized_Capital_Cost),"Calculation error!",TEXT(Annualized_Capital_Cost,"$0,0")&" per year"&" (over "&useful_life&" years at "&Discount_rate*100&"%)")))) -> Annualized Capital Cost: $9,613 per year (over 16.4 years at 7%)
H23: ="Annual O&M Cost: "&IF(input_status<>"Input Complete -- Results Ready",input_status,IF(ISERROR(OM_cost),"Calculation error!",TEXT(OM_cost,"$0,0")&" per year")) -> Annual O&M Cost: $9,590 per year
D24: MANUAL INPUTS | H24: ="Total Annualized Cost: "&IF(input_status<>"input complete -- results ready",input_status,IF(Missing_Cost,"Missing Price!",IF(cost_buildup_error,"Cost buildup error!",IF(ISERROR(Annualized_Cost),"Calculation error!",TEXT(Annualized_Cost,"$0,0")&" per year ("&TEXT(TAC_pct_cap,"0%")&" capital, "&TEXT(TAC_pct_OM,"0%")&" O&M)")))) -> Total Annualized Cost: $19,204 per year (50% capital, 50% O&M)
D25: Cells in gold are required; cells in blue are optional | H25: =IF(Missing_Cost,"A price is not available for at least one required component. See Use? column on OUTPUT sheet.",IF(cost_buildup_error,"There is an Excel error in the price for at least one component. Please see the Use? column on OUTPUT sheet.","")) -> 
G26: Select units
D27: Design Flow | E27: design_flow_I | F27: 0.03 | G27: MGD
D28: Average Flow | E28: average_flow_I | F28: 0.007 | G28: MGD
D29: For information:
D30: Treatment system design flow | F30: =IF(ISERROR(design_flow),"",IF(df_units="gpm",design_flow_rate, design_flow)) -> 0.03 | G30: =df_units -> MGD | H30: ="Current bypass percentage is "&TEXT(bp_pct,"0%")&". Go to Critical Design Assumptions to change this value." -> Current bypass percentage is 0%. Go to Critical Design Assumptions to change this value.
D31: Bypass design flow | F31: =IF(ISERROR(design_flow),"",IF(df_units="gpm",bp_flow_rate, bp_flow_rate*60*24/10^6)) -> 0 | G31: =df_units -> MGD | H31: Adjust bypass percentage
C32: =IF(G32="Flow Input OK",TRUE) -> TRUE | G32: =IF(OR(df_units="",af_units=""),"Choose units for design and average flow",IF(average_flow>design_flow,"The average flow should not be greater than the design flow",IF(OR(design_flow_I=0,average_flow_I=0),"Input incomplete",IF(average_flow<design_flow*min_avg_flow,"The average flow must be at least " & min_avg_flow & " times design flow","Flow Input OK")))) -> Flow Input OK
D34: Media regeneration or throwaway operation? | E34: throwaway_I | F34: throwaway | G34: <-- pick one
D35: ="Number of bed volumes before "&IF(regen_type=1,"regeneration","media disposal") -> Number of bed volumes before media disposal | E35: BV_regen | F35: 22000 | G35: bed volumes | H35: Important: bed volumes vary based on water quality and system configuration. Select data for input carefully, based on the scenario being modeled.
C36: =IF(G36="Regeneration Input OK",TRUE) -> TRUE | G36: =IF(OR(throwaway_I="",BV_regen=0),"Input incomplete","Regeneration Input OK") -> Regeneration Input OK
D38: Minimum number of vessels in series (i.e., parallel or series operation) | E38: num_tanks_I | F38: 2 | G38: <-- enter 1 for parallel, 2 or more for series
D39: Theoretical total empty bed contact time (EBCT) | E39: EBCT_I | F39: 3 | G39: minutes
B40: yes | C40: <- Autosize Std Inputs | D40: For information: EBCT per Vessel | F40: =IF(ISERROR(EBCT_tank),"",EBCT_tank) -> 1.5 | G40: minutes
D41: The next four inputs may be entered manually, or calculated with Auto Size button
D42: Bed depth | E42: bed_depth | F42: 2.4 | G42: feet
D43: Vessel geometry | E43: tank_geom_I | F43: upright | G43: <-- pick one
D44: =IF(tank_geom=1,"Height (straight)",IF(tank_geom=2,"Length (straight)","")) -> Height (straight) | E44: comm_height_length | F44: 4.5 | G44: =IF(tank_geom<>"","feet","") -> feet
D45: Diameter | E45: comm_diam | F45: 1.5 | G45: =IF(tank_geom<>"","feet","") -> feet
D46: For information:
D47: Number of treatment trains | F47: =IF(ISERROR(num_treat_lines),"",num_treat_lines) -> 1 | G47: trains
D48: Number of operating vessels | F48: =IF(ISERROR(op_num_tanks),"",op_num_tanks) -> 2 | G48: vessels
D49: Total vessels (incl. redundancy, below) | F49: =IF(ISERROR(final_num_tanks),"",final_num_tanks) -> 2 | G49: vessels
C50: =IF(G50="bed depth ok",TRUE) -> TRUE | G50: =IF(OR(num_tanks_I="",EBCT_I="",bed_depth="",comm_height_length="",comm_diam="",tank_geom_I=""),"Input incomplete",IF(bed_depth>max_bed_depth,"Warning: bed depth too great",IF(bed_depth>2*comm_diam,"Warning: bed depth should be less than twice the vessel diameter",IF(bed_depth<min_bed_depth,"Warning: bed depth too shallow","Bed Depth OK")))) -> Bed Depth OK | H50: Adjust bed depth constraints
C51: =IF(OR(G51="height ok",G51="length ok"),TRUE) -> TRUE | G51: =IF(G50="Input incomplete","",IF(tank_geom=1,IF(IF(AND(comm_diam>=min_diam,comm_diam<=max_diam_std_size),(OR(comm_height_length>=max_comm_height,comm_height_length>max_height)),comm_height_length>max_height),"Warning: vessel too high",IF(IF(AND(comm_diam>=min_diam,comm_diam<=max_diam_std_size),(AND(comm_height_length>=min_comm_height,comm_height_length>=height)),comm_height_length>=height),"Height OK","Warning: vessel not high enough")),IF(tank_geom=2,IF(comm_height_length>max_length,"Warning: vessel too long","Length OK"),"Invalid tank geometry input"))) -> Height OK | H51: Adjust vessel size constraints
C52: =IF(G52="diameter ok",TRUE) -> TRUE | G52: =IF(G50="Input incomplete","",IF(tank_geom=1,IF(comm_diam>max_diam,"Warning: vessel diameter too great",IF(comm_diam<diameter,"Warning: vessel diameter too small","Diameter OK")),IF(tank_geom=2,IF(comm_diam>max_diam,"Warning: vessel diameter too great",IF(comm_diam>max_height,"Warning: vessel diameter too great",IF(comm_SA<SA,"Warning: vessel surface area too small",IF(comm_diam<height,"Warning: vessel diameter too small","Diameter OK")))),""))) -> Diameter OK
C53: =IF(G53="volume ok",TRUE) -> TRUE | G53: =IF(G50="Input incomplete","",IF(input_vol_vess<media_volume_expanded,"Warning: vessel too small for this bed depth","Volume OK")) -> Volume OK
G54: =IF(G50="Input incomplete","",IF(input_vol_vess<media_volume_expanded,CHOOSE(tank_geom,"Hint: reduce bed depth or increase diameter or height","Hint: reduce bed depth or increase diameter"),"")) -> 
C55: =IF(G55="loading ok",TRUE) -> TRUE | G55: =IF(G50="Input incomplete","",IF(tank_geom=1,IF(comm_load_rate>load_max,"Warning: design exceeds maximum loading",IF(comm_load_rate<load_min,"Warning: design below minimum loading","Loading OK")),IF(comm_load_rate>load_max,"Warning: design exceeds maximum loading",IF(comm_load_rate<load_min,"Warning: design below minimum loading","Loading OK")))) -> Loading OK | H55: Adjust loading constraints
G56: =IF(G50="Input incomplete","",IF(tank_geom=1,IF(comm_load_rate>load_max,"Hint: increase vessel diameter or decrease bed depth",IF(comm_load_rate<load_min,"Hint: reduce vessel diameter or increase bed depth","")),IF(comm_load_rate>load_max,"Hint: increase vessel length and diameter or decrease bed depth",IF(comm_load_rate<load_min,"Hint: reduce vessel length and diameter or increase bed depth","")))) -> 
D58: Brine delivery method | E58: brine_method_I | G58: =IF(OR(regen_type=2,AND(regen_type=1,regen_sol=2)),"not required","<-- pick one") -> not required
D59: ="Discharge option for "&IF(regen_type=2,"spent backwash/rinse","spent regenerant") -> Discharge option for spent backwash/rinse | E59: res_s2_opt_I | F59: POTW | G59: <-- pick one
D60: ="Holding tank for "&IF(regen_type=2,"spent backwash/rinse","spent regenerant") -> Holding tank for spent backwash/rinse | E60: res_s1_opt_I | F60: no holding tank | G60: =IF(res_s2_opt=3,"not required",IF(res_s2_opt=4,"required","<--pick one")) -> <--pick one | H60: =IF(res_s1_opt_I="Holding tank","Model selects between holding tank or basin based upon priority lookups on the Output sheet","") -> 
D61: Characteristics of spent resin | E61: media_haz_I | F61: non-hazardous | G61: <-- pick one
D62: =IF(res_s2_opt=3,"Characteristics of evaporation pond solids","Characteristics of holding tank solids") -> Characteristics of holding tank solids | E62: solids_haz_I | G62: =IF(OR(res_s1_opt=2,res_s2_opt=2),"not required","<-- pick one") -> not required
C63: =IF(G63="Residuals Input OK",TRUE) -> TRUE | G63: =IF(OR(media_haz_I="",AND(AND(regen_type=1,regen_sol=1),brine_method_I=""),res_s2_opt_I="",AND(res_s2_opt<>3,res_s1_opt_I=""),AND(res_s1_opt<>2,solids_haz_I="")),"Input incomplete","Residuals Input OK") -> Residuals Input OK
D65: Number of booster pumps | E65: lines_pump_I | G65: pumps | H65: Enter 0 to exclude booster pumps (i.e., use existing pumps). Clear cell to accept model defaults (no pumps for systems <1 MGD, otherwise sized per average and design flows)
D66: For information: # of booster pumps | F66: =IF(ISERROR(booster_pumps),"",booster_pumps) -> 0 | G66: pumps
D67: Number of redundant vessels to be added | E67: NRD_I | G67: units | H67: Leave blank to accept redundancy frequency specified in critical design assumptions
D68: For information: Redundant vessels | F68: =IF(ISERROR(NRD),"",NRD) -> 0
D69: Treated water corrosion control? | E69: pH_adj | G69: <-- pick or leave blank | H69: Leave blank to exclude pH adjustment for corrosion control
D70: Backwash/Rinse Pumping | E70: no_backwash_I | G70: <-- pick or leave blank | H70: Leave blank to accept model defaults (systems <1 MGD backwash using existing supply or treated water pumps, other systems add new backwash pumps)
D71: Backwash/Rinse Storage | E71: no_back_tank_I | G71: <-- pick or leave blank | H71: Leave blank to accept model defaults (only systems between 1 and 10 MGD require separate backwash tanks)
D72: For information: # of backwash pumps | F72: =IF(ISERROR(backwash_pumps),"",backwash_pumps) -> 0 | G72: units
D73: # of backwash tanks | F73: =IF(ISERROR(back_tanks),"",back_tanks) -> 0 | G73: units
D74: Component level | E74: component_level_I | G74: <-- pick or leave blank | H74: Leave blank to use low cost components
D75: System automation | E75: manual_I | F75: fully automated | G75: <-- pick or leave blank | H75: Leave blank to allow model to pick based on component level
D76: Include buildings? | E76: include_buildings_I | G76: <-- pick or leave blank | H76: Leave blank to include buildings
D77: Include HVAC? | E77: include_HVAC_I | G77: <-- pick or leave blank | H77: Leave blank to allow model to pick based on component level and building type
D78: Include land? | E78: include_land_I | G78: <-- pick or leave blank | H78: Leave blank to include land
D79: For information: Component level | F79: =IF(component_level=2,"high cost",IF(component_level=1,"mid cost","low cost")) -> low cost
D80: Automation | F80: =IF(manual=1,"manual",IF(manual=2,"semi-automated",IF(manual=3,"fully automated"))) -> fully automated
C81: =IF(G81="Optional Inputs OK",TRUE) -> TRUE | G81: =IF(ISERROR(pump_rating),"Input incomplete",IF(pump_rating>max_pump_size,"Warning: insufficent number of pumps.","Optional Inputs OK")) -> Optional Inputs OK
G82: =IF(OR(G81="input incomplete",G81="Optional Inputs OK"),"",IF(pump_rating>max_pump_size,"Hint: increase number of pumps or leave that input blank","")) -> 

Sheet OUTPUT
A1: OUTPUT SUMMARY
B2: Parameter | C2: Value | D2: Units
B3: Technology Name | C3: AX
B4: System Size Category | C4: =IF(design_flow<1,"small","large") -> small
B5: Resin type | C5: =VLOOKUP(resin_type,resin_type_table,2) -> Nitrate-selective
B6: Design Flow | C6: =design_flow -> 0.03 | D6: MGD (excludes bypass flow)
B7: Average Flow | C7: =average_flow -> 0.007 | D7: MGD (excludes bypass flow)
B8: # of treatment trains | C8: =num_treat_lines -> 1 | D8: trains
B9: # of vessels in series | C9: =Num_tanks -> 2 | D9: (i.e., parallel or series operation)
B10: Total EBCT | C10: =EBCT -> 3 | D10: minutes
B11: EBCT per vessel | C11: =EBCT_tank -> 1.5 | D11: minutes
B12: Bed depth | C12: =bed_depth -> 2.4 | D12: feet
B13: Vessel geometry | C13: =tank_geom_I -> upright
B14: =IF(tank_geom=1,"Height (straight)",IF(tank_geom=2,"Length (straight)","")) -> Height (straight) | C14: =comm_height_length -> 4.5 | D14: feet
B15: Diameter | C15: =comm_diam -> 1.5 | D15: feet
B16: Component level | C16: =IF(component_level=2,"high cost",IF(component_level=1,"mid cost","low cost")) -> low cost
B17: System automation | C17: =IF(manual=1,"manual",IF(manual=2,"semi-automated",IF(manual=3,"fully automated"))) -> fully automated
B18: ="Resulting Costs (in year "&TEXT(current_year_cl,0)&")" -> Resulting Costs (in year 2021)
B19: Direct Capital Cost | C19: =IF(input_status<>"input complete -- results ready","Action required",IF(Missing_Cost,"Missing cost!",IF(cost_buildup_error,"Error in buildup!",direct_cost))) -> 48461.52109 | D19: Details | E19: =IF(input_status<>"input complete -- results ready",IF(input_complete,"Press Generate Results","Check INPUT sheet for errors"),IF(Missing_Cost,"A price is not available for at least one required component. See Use? column below.",IF(cost_buildup_error,"There is an Excel error in the price for at least one component. See Use? column below.",""))) -> 
B20: Add-on Cost | C20: =IF(input_status<>"input complete -- results ready","Action required",addon_cost) -> 19499.98515 | D20: Details
B21: Indirect Capital Cost | C21: =IF(input_status<>"input complete -- results ready","Action required",indirect_cost) -> 24094.60068 | D21: Details
B22: Total Capital Cost | C22: =IF(input_status<>"input complete -- results ready","Action required",IF(Missing_Cost,"Missing cost!",IF(cost_buildup_error,"Error in buildup!",system_cost))) -> 92056.10692 | D22: Details
B23: ="Annualized Capital Cost "&IF(OR(input_status<>"input complete -- results ready",Missing_Cost,cost_buildup_error),"","(per year over "&useful_life&" years at "&Discount_rate*100&"%)") -> Annualized Capital Cost (per year over 16.4 years at 7%) | C23: =IF(input_status<>"input complete -- results ready","Action required",Annualized_Capital_Cost) -> 9613.357201 | D23: Details
B24: Annual O&M Cost (per year) | C24: =IF(input_status<>"input complete -- results ready","Action required",OM_cost) -> 9590.232591 | D24: Details
B25: ="Total Annualized Cost (per year"&IF(OR(input_status<>"input complete -- results ready",ISERROR(OR(TAC_pct_cap,TAC_pct_OM))),"",", "&TEXT(TAC_pct_cap,"0%")&" capital, "&TEXT(TAC_pct_OM,"0%")&" O&M")&")" -> Total Annualized Cost (per year, 50% capital, 50% O&M) | C25: =IF(input_status<>"input complete -- results ready","Action required",IF(Missing_Cost,"Missing cost!",IF(cost_buildup_error,"Error in buildup!",Annualized_Cost))) -> 19203.58979 | D25: Details
B26: Annualized cost per 1,000 gallons average flow | C26: =IF(input_status<>"input complete -- results ready","Action required",IF(Missing_Cost,"Missing cost!",IF(cost_buildup_error,"Error in buildup!",C467))) -> 7.516082111
B27: Annualized cost per household per year | C27: =IF(input_status<>"input complete -- results ready","Action required",IF(Missing_Cost,"Missing cost!",IF(cost_buildup_error,"Error in buildup!",C468))) -> 757.3852646
A29: Direct Capital Cost Details (items in italics, without a 1 in the "Use?" column, represent alternate costs and are excluded from total)
A30: WBS # | B30: Item | C30: Design Quanitity | E30: Design Size | G30: Size used in estimate | I30: Unit Cost | J30: Total Cost | K30: Useful Life | L30: Use? | M30: Full Line Item Name | N30: Baseline priority selection | W30: Useful Life
N31: Small (<1 mgd) | Q31: Medium (1-10 mgd) | T31: Large (>10 mgd)
N32: Low | O32: Typical | P32: High | Q32: Low | R32: Typical | S32: High | T32: Low | U32: Typical | V32: High | W32: Count? | X32: Depreciation
A33: 1 | B33: Pressure Vessels
A34: 1.1 | B34: Stainless Steel | C34: =final_num_tanks -> 2 | D34: units | E34: =comm_vol_gal -> 59.4821299 | F34: gal | G34: =IF(curve=1,comm_vol_gal,VLOOKUP(comm_vol_gal,ss_pv_cost_cl,2)) -> 59.4821299 | H34: gal | I34: =IF(curve=1,ss_pv_eq,VLOOKUP(comm_vol_gal,ss_pv_cost_cl,3)) -> 30243.10197 | J34: =IF(I34="contact vendor","--",C34*I34) -> 60486.20394 | K34: =VLOOKUP(comm_vol_gal,ss_pv_cost_cl,IF(ss_cat="large",4,5)) -> 30 | L34: 0 | M34: =$B$33&" - "&B34 -> Pressure Vessels - Stainless Steel | N34: 4 | O34: 4 | P34: 1 | Q34: 4 | R34: 4 | S34: 1 | T34: 4 | U34: 4 | V34: 1 | W34: =IF(ISERROR(K34*L34),0,IF(K34<1,0,L34)) -> 0 | X34: =IF(W34,J34/K34,0) -> 0
A35: 1.1 | B35: Carbon Steel - Stainless Internals | C35: =final_num_tanks -> 2 | D35: units | E35: =comm_vol_gal -> 59.4821299 | F35: gal | G35: =IF(curve=1,comm_vol_gal,VLOOKUP(comm_vol_gal,cs_pv_cost_cl,2)) -> 59.4821299 | H35: gal | I35: =IF(curve=1,cs_pv_eq,VLOOKUP(comm_vol_gal,cs_pv_cost_cl,3)) -> 10435.0295 | J35: =IF(I35="contact vendor","--",C35*I35) -> 20870.059 | K35: =VLOOKUP(comm_vol_gal,cs_pv_cost_cl,IF(ss_cat="large",4,5)) -> 30 | L35: 0 | M35: =$B$33&" - "&B35 -> Pressure Vessels - Carbon Steel - Stainless Internals | N35: 3 | O35: 3 | P35: 2 | Q35: 3 | R35: 3 | S35: 2 | T35: 3 | U35: 3 | V35: 2 | W35: 0 | X35: 0
A36: 1.1 | B36: Carbon Steel - Plastic Internals | C36: =final_num_tanks -> 2 | D36: units | E36: =comm_vol_gal -> 59.4821299 | F36: gal | G36: =IF(curve=1,comm_vol_gal,VLOOKUP(comm_vol_gal,csp_pv_cost_cl,2)) -> 59.4821299 | H36: gal | I36: =IF(curve=1,csp_pv_eq,VLOOKUP(comm_vol_gal,csp_pv_cost_cl,3)) -> 10131.70341 | J36: =IF(I36="contact vendor","--",C36*I36) -> 20263.40682 | K36: =VLOOKUP(comm_vol_gal,csp_pv_cost_cl,IF(ss_cat="large",4,5)) -> 30 | L36: 0 | M36: =$B$33&" - "&B36 -> Pressure Vessels - Carbon Steel - Plastic Internals | N36: 2 | O36: 1 | P36: 3 | Q36: 2 | R36: 1 | S36: 3 | T36: 2 | U36: 1 | V36: 3 | W36: 0 | X36: 0
A37: 1.1 | B37: Fiberglass | C37: =final_num_tanks -> 2 | D37: units | E37: =comm_vol_gal -> 59.4821299 | F37: gal | G37: =IF(curve=1,comm_vol_gal,VLOOKUP(comm_vol_gal,fg_pv_cost_cl,2)) -> 59.4821299 | H37: gal | I37: =IF(curve=1,fg_pv_eq,VLOOKUP(comm_vol_gal,fg_pv_cost_cl,3)) -> 1401.260287 | J37: =IF(I37="contact vendor","--",C37*I37) -> 2802.520574 | K37: =VLOOKUP(comm_vol_gal,fg_pv_cost_cl,IF(ss_cat="large",4,5)) -> 20 | L37: 1 | M37: =$B$33&" - "&B37 -> Pressure Vessels - Fiberglass | N37: 1 | O37: 2 | P37: 4 | Q37: 1 | R37: 2 | S37: 4 | T37: 1 | U37: 2 | V37: 4 | W37: 1 | X37: 140.1260287
A38: 2 | B38: Ion Exchange Resin | W38: 0 | X38: 0
A39: 2.1 | B39: =VLOOKUP("resin_name",resin_table,resin_type+1,FALSE) -> Nitrate-selective | C39: =resin_volume_total -> 8.482300165 | D39: cf | E39: NA | G39: NA | I39: =IF(resin_type=5,VLOOKUP("resin_unit_cost",resin_table,resin_type+1,FALSE),VLOOKUP(B39,an_ClO4_cost_cl,3,FALSE)) -> 291.2784273 | J39: =IF(I39="contact vendor","--",C39*I39) -> 2470.711052 | K39: =VLOOKUP(B39,an_ClO4_cost_cl,IF(ss_cat="large",4,5),FALSE) -> N/A | L39: 1 | M39: =$B$38&" - "&B39 -> Ion Exchange Resin - Nitrate-selective | N39: 1 | O39: 1 | P39: 1 | Q39: 1 | R39: 1 | S39: 1 | T39: 1 | U39: 1 | V39: 1 | W39: 0 | X39: 0
A40: 3 | B40: Tanks | W40: 0 | X40: 0
A41: 3.1 | B41: Backwash/Rinse Tanks | W41: 0 | X41: 0
A42: 3.1.1 | B42: Steel | C42: =back_tanks -> 0 | D42: units | E42: =IF(back_tanks=0,"NA",back_tank_vol) -> NA | F42: =IF(back_tanks=0,"","gal") ->  | G42: =IF(back_tanks=0,"NA",IF(curve=1,back_tank_vol,VLOOKUP(back_tank_vol,st_bwt_cost_cl,2))) -> NA | H42: =IF(back_tanks=0,"","gal") ->  | I42: =IF(back_tanks=0,"NA",IF(curve=1,st_bwt_eq,VLOOKUP(back_tank_vol,st_bwt_cost_cl,3))) -> NA | J42: =IF(back_tanks=0,"--",IF(I42="contact vendor","--",C42*I42)) -> -- | K42: =IF(back_tanks=0,"NA",VLOOKUP(back_tank_vol,st_bwt_cost_cl,IF(ss_cat="large",4,5))) -> NA | M42: =$B$41&" - "&B42 -> Backwash/Rinse Tanks - Steel | N42: 3 | O42: 3 | P42: 1 | Q42: 3 | R42: 3 | S42: 1 | T42: 3 | U42: 3 | V42: 1 | W42: 0 | X42: 0
A43: 3.1.1 | B43: Fiberglass | C43: =back_tanks -> 0 | D43: units | E43: =IF(back_tanks=0,"NA",back_tank_vol) -> NA | F43: =IF(back_tanks=0,"","gal") ->  | G43: =IF(back_tanks=0,"NA",IF(curve=1,back_tank_vol,VLOOKUP(back_tank_vol,fg_bwt_cost_cl,2))) -> NA | H43: =IF(back_tanks=0,"","gal") ->  | I43: =IF(back_tanks=0,"NA",IF(curve=1,fg_bwt_eq,VLOOKUP(back_tank_vol,fg_bwt_cost_cl,3))) -> NA | J43: =IF(back_tanks=0,"--",IF(I43="contact vendor","--",C43*I43)) -> -- | K43: =IF(back_tanks=0,"NA",VLOOKUP(back_tank_vol,fg_bwt_cost_cl,IF(ss_cat="large",4,5))) -> NA | M43: =$B$41&" - "&B43 -> Backwash/Rinse Tanks - Fiberglass | N43: 2 | O43: 1 | P43: 2 | Q43: 2 | R43: 1 | S43: 2 | T43: 2 | U43: 1 | V43: 2 | W43: 0 | X43: 0
A44: 3.1.1 | B44: Plastic/HDPE | C44: =back_tanks -> 0 | D44: units | E44: =IF(back_tanks=0,"NA",back_tank_vol) -> NA | F44: =IF(back_tanks=0,"","gal") ->  | G44: =IF(back_tanks=0,"NA",IF(curve=1,back_tank_vol,VLOOKUP(back_tank_vol,hdpe_bwt_cost_cl,2))) -> NA | H44: =IF(back_tanks=0,"","gal") ->  | I44: =IF(back_tanks=0,"NA",IF(curve=1,hdpe_bwt_eq,VLOOKUP(back_tank_vol,hdpe_bwt_cost_cl,3))) -> NA | J44: =IF(back_tanks=0,"--",IF(I44="contact vendor","--",C44*I44)) -> -- | K44: =IF(back_tanks=0,"NA",VLOOKUP(back_tank_vol,hdpe_bwt_cost_cl,IF(ss_cat="large",4,5))) -> NA | M44: =$B$41&" - "&B44 -> Backwash/Rinse Tanks - Plastic/HDPE | N44: 1 | O44: 2 | P44: 3 | Q44: 1 | R44: 2 | S44: 3 | T44: 1 | U44: 2 | V44: 3 | W44: 0 | X44: 0
A45: 3.2 | B45: Regenerant Mixing Tanks | W45: 0 | X45: 0
A46: 3.2.1 | B46: Plastic/XLPE | C46: =mix_tanks -> 0 | D46: units | E46: =IF(mix_tanks=0,"NA",mix_tank_vol) -> NA | F46: =IF(mix_tanks=0,"","gal") ->  | G46: =IF(mix_tanks=0,"NA",IF(curve=1,mix_tank_vol,VLOOKUP(mix_tank_vol,pl_cst_cost_cl,2))) -> NA | H46: =IF(mix_tanks=0,"","gal") ->  | I46: =IF(mix_tanks=0,"NA",IF(curve=1,pl_cst_eq,VLOOKUP(mix_tank_vol,pl_cst_cost_cl,3))) -> NA | J46: =IF(mix_tanks=0,"--",IF(I46="contact vendor","--",C46*I46)) -> -- | K46: =IF(mix_tanks=0,"NA",VLOOKUP(mix_tank_vol,pl_cst_cost_cl,IF(ss_cat="large",4,5))) -> NA | M46: =$B$45&" - "&B46 -> Regenerant Mixing Tanks - Plastic/XLPE | N46: 1 | O46: 2 | P46: 3 | Q46: 1 | R46: 2 | S46: 3 | T46: 1 | U46: 2 | V46: 3 | W46: 0 | X46: 0
A47: 3.2.1 | B47: Fiberglass | C47: =mix_tanks -> 0 | D47: units | E47: =IF(mix_tanks=0,"NA",mix_tank_vol) -> NA | F47: =IF(mix_tanks=0,"","gal") ->  | G47: =IF(mix_tanks=0,"NA",IF(curve=1,mix_tank_vol,VLOOKUP(mix_tank_vol,fg_cst_cost_cl,2))) -> NA | H47: =IF(mix_tanks=0,"","gal") ->  | I47: =IF(mix_tanks=0,"NA",IF(curve=1,fg_cst_eq,VLOOKUP(mix_tank_vol,fg_cst_cost_cl,3))) -> NA | J47: =IF(mix_tanks=0,"--",IF(I47="contact vendor","--",C47*I47)) -> -- | K47: =IF(mix_tanks=0,"NA",VLOOKUP(mix_tank_vol,fg_cst_cost_cl,IF(ss_cat="large",4,5))) -> NA | M47: =$B$45&" - "&B47 -> Regenerant Mixing Tanks - Fiberglass | N47: 2 | O47: 1 | P47: 2 | Q47: 2 | R47: 1 | S47: 2 | T47: 2 | U47: 1 | V47: 2 | W47: 0 | X47: 0
A48: 3.2.1 | B48: Stainless Steel | C48: =mix_tanks -> 0 | D48: units | E48: =IF(mix_tanks=0,"NA",mix_tank_vol) -> NA | F48: =IF(mix_tanks=0,"","gal") ->  | G48: =IF(mix_tanks=0,"NA",IF(curve=1,mix_tank_vol,VLOOKUP(mix_tank_vol,ss_cst_cost_cl,2))) -> NA | H48: =IF(mix_tanks=0,"","gal") ->  | I48: =IF(mix_tanks=0,"NA",IF(curve=1,ss_cst_eq,VLOOKUP(mix_tank_vol,ss_cst_cost_cl,3))) -> NA | J48: =IF(mix_tanks=0,"--",IF(I48="contact vendor","--",C48*I48)) -> -- | K48: =IF(mix_tanks=0,"NA",VLOOKUP(mix_tank_vol,ss_cst_cost_cl,IF(ss_cat="large",4,5))) -> NA | M48: =$B$45&" - "&B48 -> Regenerant Mixing Tanks - Stainless Steel | N48: 3 | O48: 3 | P48: 1 | Q48: 3 | R48: 3 | S48: 1 | T48: 3 | U48: 3 | V48: 1 | W48: 0 | X48: 0
A49: 3.2.2 | B49: Secondary Containment - Concrete Curbing | C49: =IF(OR(include_sec_cont=0,mix_tanks=0,regen_sol=1),0,mix_curb_concrete) -> 0 | D49: cy | E49: NA | G49: NA | I49: =IF(C49=0,"NA",VLOOKUP(0,conc_basin_cost_cl,3)) -> NA | J49: =IF(C49=0,"--",IF(I49="contact vendor","--",C49*I49)) -> -- | K49: =IF(C49=0,"NA",VLOOKUP(0,conc_basin_cost_cl,IF(ss_cat="large",4,5))) -> NA | M49: =$B$45&" - "&B49 -> Regenerant Mixing Tanks - Secondary Containment - Concrete Curbing | N49: 1 | O49: 1 | P49: 1 | Q49: 1 | R49: 1 | S49: 1 | T49: 1 | U49: 1 | V49: 1 | W49: =IF(ISERROR(K49*L49),0,IF(K49<1,0,L49)) -> 0 | X49: =IF(W49,J49/K49,0) -> 0
A50: 3.2.3 | B50: Secondary Containment - Chemical Resistant Coating | C50: =IF(OR(include_sec_cont=0,mix_tanks=0,regen_sol=1),0,mix_coating_gal) -> 0 | D50: gal | E50: NA | G50: NA | I50: =IF(C50=0,"NA",VLOOKUP(0,conc_coating_cost_cl,3)) -> NA | J50: =IF(C50=0,"--",IF(I50="contact vendor","--",C50*I50)) -> -- | K50: =IF(C50=0,"NA",VLOOKUP(0,conc_coating_cost_cl,IF(ss_cat="large",4,5))) -> NA | M50: =$B$45&" - "&B50 -> Regenerant Mixing Tanks - Secondary Containment - Chemical Resistant Coating | N50: 1 | O50: 1 | P50: 1 | Q50: 1 | R50: 1 | S50: 1 | T50: 1 | U50: 1 | V50: 1 | W50: =IF(ISERROR(K50*L50),0,IF(K50<1,0,L50)) -> 0 | X50: =IF(W50,J50/K50,0) -> 0
A51: 3.3 | B51: Acid Storage Tanks | W51: 0 | X51: 0
A52: 3.3.1 | B52: Plastic/XLPE | C52: =HCl_tanks -> 0 | D52: units | E52: =IF(HCl_tanks=0,"NA",HCl_tank_vol) -> NA | F52: =IF(HCl_tanks=0,"","gal") ->  | G52: =IF(HCl_tanks=0,"NA",IF(curve=1,HCl_tank_vol,VLOOKUP(HCl_tank_vol,pl_cst_cost_cl,2))) -> NA | H52: =IF(HCl_tanks=0,"","gal") ->  | I52: =IF(HCl_tanks=0,"NA",IF(curve=1,pl_at_eq,VLOOKUP(HCl_tank_vol,pl_cst_cost_cl,3))) -> NA | J52: =IF(HCl_tanks=0,"--",IF(I52="contact vendor","--",C52*I52)) -> -- | K52: =IF(HCl_tanks=0,"NA",VLOOKUP(HCl_tank_vol,pl_cst_cost_cl,IF(ss_cat="large",4,5))) -> NA | M52: =$B$51&" - "&B52 -> Acid Storage Tanks - Plastic/XLPE | N52: 1 | O52: 2 | P52: 2 | Q52: 1 | R52: 2 | S52: 2 | T52: 1 | U52: 2 | V52: 2 | W52: 0 | X52: 0
A53: 3.3.1 | B53: Fiberglass | C53: =HCl_tanks -> 0 | D53: units | E53: =IF(HCl_tanks=0,"NA",HCl_tank_vol) -> NA | F53: =IF(HCl_tanks=0,"","gal") ->  | G53: =IF(HCl_tanks=0,"NA",IF(curve=1,HCl_tank_vol,VLOOKUP(HCl_tank_vol,fg_cst_cost_cl,2))) -> NA | H53: =IF(HCl_tanks=0,"","gal") ->  | I53: =IF(HCl_tanks=0,"NA",IF(curve=1,fg_at_eq,VLOOKUP(HCl_tank_vol,fg_cst_cost_cl,3))) -> NA | J53: =IF(HCl_tanks=0,"--",IF(I53="contact vendor","--",C53*I53)) -> -- | K53: =IF(HCl_tanks=0,"NA",VLOOKUP(HCl_tank_vol,fg_cst_cost_cl,IF(ss_cat="large",4,5))) -> NA | M53: =$B$51&" - "&B53 -> Acid Storage Tanks - Fiberglass | N53: 2 | O53: 1 | P53: 1 | Q53: 2 | R53: 1 | S53: 1 | T53: 2 | U53: 1 | V53: 1 | W53: 0 | X53: 0
A54: 3.3.2 | B54: Secondary Containment - Concrete Curbing | C54: =IF(OR(include_sec_cont=0,HCl_tanks=0),0,hcl_curb_concrete) -> 0 | D54: cy | E54: NA | G54: NA | I54: =IF(C54=0,"NA",VLOOKUP(0,conc_basin_cost_cl,3)) -> NA | J54: =IF(C54=0,"--",IF(I54="contact vendor","--",C54*I54)) -> -- | K54: =IF(C54=0,"NA",VLOOKUP(0,conc_basin_cost_cl,IF(ss_cat="large",4,5))) -> NA | M54: =$B$51&" - "&B54 -> Acid Storage Tanks - Secondary Containment - Concrete Curbing | N54: 1 | O54: 1 | P54: 1 | Q54: 1 | R54: 1 | S54: 1 | T54: 1 | U54: 1 | V54: 1 | W54: 0 | X54: 0
A55: 3.3.3 | B55: Secondary Containment - Chemical Resistant Coating | C55: =IF(OR(include_sec_cont=0,HCl_tanks=0),0,hcl_coating_gal) -> 0 | D55: gal | E55: NA | G55: NA | I55: =IF(C55=0,"NA",VLOOKUP(0,conc_coating_cost_cl,3)) -> NA | J55: =IF(C55=0,"--",IF(I55="contact vendor","--",C55*I55)) -> -- | K55: =IF(C55=0,"NA",VLOOKUP(0,conc_coating_cost_cl,IF(ss_cat="large",4,5))) -> NA | M55: Acid Storage Tanks - Secondary Containment - Chemical Resistant Coating | N55: 1 | O55: 1 | P55: 1 | Q55: 1 | R55: 1 | S55: 1 | T55: 1 | U55: 1 | V55: 1 | W55: 0 | X55: 0
A56: 3.4 | B56: Caustic Storage Tanks | W56: 0 | X56: 0
A57: 3.4.1 | B57: Plastic/XLPE | C57: =NaOH_tanks -> 0 | D57: units | E57: =IF(NaOH_tanks=0,"NA",NaOH_tank_vol) -> NA | F57: =IF(NaOH_tanks=0,"","gal") ->  | G57: =IF(NaOH_tanks=0,"NA",IF(curve=1,NaOH_tank_vol,VLOOKUP(NaOH_tank_vol,pl_cst_cost_cl,2))) -> NA | H57: =IF(NaOH_tanks=0,"","gal") ->  | I57: =IF(NaOH_tanks=0,"NA",IF(curve=1,pl_ct_eq,VLOOKUP(NaOH_tank_vol,pl_cst_cost_cl,3))) -> NA | J57: =IF(NaOH_tanks=0,"--",IF(I57="contact vendor","--",C57*I57)) -> -- | K57: =IF(NaOH_tanks=0,"NA",VLOOKUP(NaOH_tank_vol,pl_cst_cost_cl,IF(ss_cat="large",4,5))) -> NA | M57: =$B$56&" - "&B57 -> Caustic Storage Tanks - Plastic/XLPE | N57: 1 | O57: 2 | P57: 3 | Q57: 1 | R57: 2 | S57: 3 | T57: 1 | U57: 2 | V57: 3 | W57: 0 | X57: 0
A58: 3.4.1 | B58: Fiberglass | C58: =NaOH_tanks -> 0 | D58: units | E58: =IF(NaOH_tanks=0,"NA",NaOH_tank_vol) -> NA | F58: =IF(NaOH_tanks=0,"","gal") ->  | G58: =IF(NaOH_tanks=0,"NA",IF(curve=1,NaOH_tank_vol,VLOOKUP(NaOH_tank_vol,fg_cst_cost_cl,2))) -> NA | H58: =IF(NaOH_tanks=0,"","gal") ->  | I58: =IF(NaOH_tanks=0,"NA",IF(curve=1,fg_ct_eq,VLOOKUP(NaOH_tank_vol,fg_cst_cost_cl,3))) -> NA | J58: =IF(NaOH_tanks=0,"--",IF(I58="contact vendor","--",C58*I58)) -> -- | K58: =IF(NaOH_tanks=0,"NA",VLOOKUP(NaOH_tank_vol,fg_cst_cost_cl,IF(ss_cat="large",4,5))) -> NA | M58: =$B$56&" - "&B58 -> Caustic Storage Tanks - Fiberglass | N58: 2 | O58: 1 | P58: 2 | Q58: 2 | R58: 1 | S58: 2 | T58: 2 | U58: 1 | V58: 2 | W58: 0 | X58: 0
A59: 3.4.1 | B59: Stainless Steel | C59: =NaOH_tanks -> 0 | D59: units | E59: =IF(NaOH_tanks=0,"NA",NaOH_tank_vol) -> NA | F59: =IF(NaOH_tanks=0,"","gal") ->  | G59: =IF(NaOH_tanks=0,"NA",IF(curve=1,NaOH_tank_vol,VLOOKUP(NaOH_tank_vol,ss_cst_cost_cl,2))) -> NA | H59: =IF(NaOH_tanks=0,"","gal") ->  | I59: =IF(NaOH_tanks=0,"NA",IF(curve=1,ss_ct_eq,VLOOKUP(NaOH_tank_vol,ss_cst_cost_cl,3))) -> NA | J59: =IF(NaOH_tanks=0,"--",IF(I59="contact vendor","--",C59*I59)) -> -- | K59: =IF(NaOH_tanks=0,"NA",VLOOKUP(NaOH_tank_vol,ss_cst_cost_cl,IF(ss_cat="large",4,5))) -> NA | M59: =$B$56&" - "&B59 -> Caustic Storage Tanks - Stainless Steel | N59: 3 | O59: 3 | P59: 1 | Q59: 3 | R59: 3 | S59: 1 | T59: 3 | U59: 3 | V59: 1 | W59: 0 | X59: 0
A60: 3.4.2 | B60: Heat Tracing | C60: =NaOH_tanks -> 0 | D60: units | E60: =IF(NaOH_tanks=0,"NA",NaOH_tank_vol) -> NA | F60: =IF(NaOH_tanks=0,"","gal") ->  | G60: =IF(NaOH_tanks=0,"NA",IF(curve=1,NaOH_tank_vol,VLOOKUP(NaOH_tank_vol,cst_heat_cost_cl,2))) -> NA | H60: =IF(NaOH_tanks=0,"","gal") ->  | I60: =IF(NaOH_tanks=0,"NA",IF(curve=1,ct_heat_eq,VLOOKUP(NaOH_tank_vol,cst_heat_cost_cl,3))) -> NA | J60: =IF(NaOH_tanks=0,"--",IF(I60="contact vendor","--",C60*I60)) -> -- | K60: =IF(NaOH_tanks=0,"NA",VLOOKUP(NaOH_tank_vol,cst_heat_cost_cl,IF(ss_cat="large",4,5))) -> NA | M60: =$B$56&" - "&B60 -> Caustic Storage Tanks - Heat Tracing | N60: 1 | O60: 1 | P60: 1 | Q60: 1 | R60: 1 | S60: 1 | T60: 1 | U60: 1 | V60: 1 | W60: 0 | X60: 0
A61: 3.4.3 | B61: Insulation | C61: =NaOH_tanks -> 0 | D61: units | E61: =IF(NaOH_tanks=0,"NA",NaOH_tank_vol) -> NA | F61: =IF(NaOH_tanks=0,"","gal") ->  | G61: =IF(NaOH_tanks=0,"NA",IF(curve=1,NaOH_tank_vol,VLOOKUP(NaOH_tank_vol,cst_insul_cost_cl,2))) -> NA | H61: =IF(NaOH_tanks=0,"","gal") ->  | I61: =IF(NaOH_tanks=0,"NA",IF(curve=1,ct_insul_eq,VLOOKUP(NaOH_tank_vol,cst_insul_cost_cl,3))) -> NA | J61: =IF(NaOH_tanks=0,"--",IF(I61="contact vendor","--",C61*I61)) -> -- | K61: =IF(NaOH_tanks=0,"NA",VLOOKUP(NaOH_tank_vol,cst_insul_cost_cl,IF(ss_cat="large",4,5))) -> NA | M61: =$B$56&" - "&B61 -> Caustic Storage Tanks - Insulation | N61: 1 | O61: 1 | P61: 1 | Q61: 1 | R61: 1 | S61: 1 | T61: 1 | U61: 1 | V61: 1 | W61: 0 | X61: 0
A62: 3.4.4 | B62: Secondary Containment - Concrete Curbing | C62: =IF(OR(include_sec_cont=0,NaOH_tanks=0),0,ct_curb_concrete) -> 0 | D62: cy | E62: NA | G62: NA | I62: =IF(C62=0,"NA",VLOOKUP(0,conc_basin_cost_cl,3)) -> NA | J62: =IF(C62=0,"--",IF(I62="contact vendor","--",C62*I62)) -> -- | K62: =IF(C62=0,"NA",VLOOKUP(0,conc_basin_cost_cl,IF(ss_cat="large",4,5))) -> NA | M62: =$B$56&" - "&B62 -> Caustic Storage Tanks - Secondary Containment - Concrete Curbing | N62: 1 | O62: 1 | P62: 1 | Q62: 1 | R62: 1 | S62: 1 | T62: 1 | U62: 1 | V62: 1 | W62: =IF(ISERROR(K62*L62),0,IF(K62<1,0,L62)) -> 0 | X62: =IF(W62,J62/K62,0) -> 0
A63: 3.4.5 | B63: Secondary Containment - Chemical Resistant Coating | C63: =IF(OR(include_sec_cont=0,NaOH_tanks=0),0,ct_coating_gal) -> 0 | D63: gal | E63: NA | G63: NA | I63: =IF(C63=0,"NA",VLOOKUP(0,conc_coating_cost_cl,3)) -> NA | J63: =IF(C63=0,"--",IF(I63="contact vendor","--",C63*I63)) -> -- | K63: =IF(C63=0,"NA",VLOOKUP(0,conc_coating_cost_cl,IF(ss_cat="large",4,5))) -> NA | M63: Caustic Storage Tanks - Secondary Containment - Chemical Resistant Coating | N63: 1 | O63: 1 | P63: 1 | Q63: 1 | R63: 1 | S63: 1 | T63: 1 | U63: 1 | V63: 1 | W63: 0 | X63: 0
A64: 3.5 | B64: Caustic Day Tanks | W64: 0 | X64: 0
A65: 3.5.1 | B65: Plastic/XLPE | C65: =NaOH_day_tanks -> 0 | D65: units | E65: =IF(C65=0,"NA",NaOH_day_tank_vol) -> NA | F65: =IF(C65=0,"","gal") ->  | G65: =IF(C65=0,"NA",IF(curve=1,NaOH_day_tank_vol,VLOOKUP(NaOH_day_tank_vol,pl_cst_cost_cl,2))) -> NA | H65: =IF(C65=0,"","gal") ->  | I65: =IF(C65=0,"NA",IF(curve=1,pl_day_eq,VLOOKUP(NaOH_day_tank_vol,pl_cst_cost_cl,3))) -> NA | J65: =IF(C65=0,"--",IF(I65="contact vendor","--",C65*I65)) -> -- | K65: =IF(C65=0,"NA",VLOOKUP(NaOH_day_tank_vol,pl_cst_cost_cl,IF(ss_cat="large",4,5))) -> NA | M65: =$B$64&" - "&B65 -> Caustic Day Tanks - Plastic/XLPE | N65: 1 | O65: 2 | P65: 3 | Q65: 1 | R65: 2 | S65: 3 | T65: 1 | U65: 2 | V65: 3 | W65: 0 | X65: 0
A66: 3.5.1 | B66: Fiberglass | C66: =NaOH_day_tanks -> 0 | D66: units | E66: =IF(C66=0,"NA",NaOH_day_tank_vol) -> NA | F66: =IF(C66=0,"","gal") ->  | G66: =IF(C66=0,"NA",IF(curve=1,NaOH_day_tank_vol,VLOOKUP(NaOH_day_tank_vol,fg_cst_cost_cl,2))) -> NA | H66: =IF(C66=0,"","gal") ->  | I66: =IF(C66=0,"NA",IF(curve=1,fg_day_eq,VLOOKUP(NaOH_day_tank_vol,fg_cst_cost_cl,3))) -> NA | J66: -- | K66: =IF(C66=0,"NA",VLOOKUP(NaOH_day_tank_vol,fg_cst_cost_cl,IF(ss_cat="large",4,5))) -> NA | M66: =$B$64&" - "&B66 -> Caustic Day Tanks - Fiberglass | N66: 2 | O66: 1 | P66: 2 | Q66: 2 | R66: 1 | S66: 2 | T66: 2 | U66: 1 | V66: 2 | W66: 0 | X66: 0
A67: 3.5.1 | B67: Stainless Steel | C67: =NaOH_day_tanks -> 0 | D67: units | E67: =IF(C67=0,"NA",NaOH_day_tank_vol) -> NA | F67: =IF(C67=0,"","gal") ->  | G67: =IF(C67=0,"NA",IF(curve=1,NaOH_day_tank_vol,VLOOKUP(NaOH_day_tank_vol,ss_cst_cost_cl,2))) -> NA | H67: =IF(C67=0,"","gal") ->  | I67: =IF(C67=0,"NA",IF(curve=1,ss_day_eq,VLOOKUP(NaOH_day_tank_vol,ss_cst_cost_cl,3))) -> NA | J67: -- | K67: =IF(C67=0,"NA",VLOOKUP(NaOH_day_tank_vol,ss_cst_cost_cl,IF(ss_cat="large",4,5))) -> NA | M67: =$B$64&" - "&B67 -> Caustic Day Tanks - Stainless Steel | N67: 3 | O67: 3 | P67: 1 | Q67: 3 | R67: 3 | S67: 1 | T67: 3 | U67: 3 | V67: 1 | W67: 0 | X67: 0
A68: 3.5.2 | B68: Heat Tracing | C68: =NaOH_day_tanks -> 0 | D68: units | E68: =IF(C68=0,"NA",NaOH_day_tank_vol) -> NA | F68: =IF(C68=0,"","gal") ->  | G68: =IF(C68=0,"NA",IF(curve=1,NaOH_day_tank_vol,VLOOKUP(NaOH_day_tank_vol,cst_heat_cost_cl,2))) -> NA | H68: =IF(C68=0,"","gal") ->  | I68: =IF(C68=0,"NA",IF(curve=1,day_heat_eq,VLOOKUP(NaOH_day_tank_vol,cst_heat_cost_cl,3))) -> NA | J68: -- | K68: =IF(C68=0,"NA",VLOOKUP(NaOH_day_tank_vol,cst_heat_cost_cl,IF(ss_cat="large",4,5))) -> NA | M68: =$B$64&" - "&B68 -> Caustic Day Tanks - Heat Tracing | N68: 1 | O68: 1 | P68: 1 | Q68: 1 | R68: 1 | S68: 1 | T68: 1 | U68: 1 | V68: 1 | W68: 0 | X68: 0
A69: 3.5.3 | B69: Insulation | C69: =NaOH_day_tanks -> 0 | D69: units | E69: =IF(C69=0,"NA",NaOH_day_tank_vol) -> NA | F69: =IF(C69=0,"","gal") ->  | G69: =IF(C69=0,"NA",IF(curve=1,NaOH_day_tank_vol,VLOOKUP(NaOH_day_tank_vol,cst_insul_cost_cl,2))) -> NA | H69: =IF(C69=0,"","gal") ->  | I69: =IF(C69=0,"NA",IF(curve=1,day_insul_eq,VLOOKUP(NaOH_day_tank_vol,cst_insul_cost_cl,3))) -> NA | J69: -- | K69: =IF(C69=0,"NA",VLOOKUP(NaOH_day_tank_vol,cst_insul_cost_cl,IF(ss_cat="large",4,5))) -> NA | M69: =$B$64&" - "&B69 -> Caustic Day Tanks - Insulation | N69: 1 | O69: 1 | P69: 1 | Q69: 1 | R69: 1 | S69: 1 | T69: 1 | U69: 1 | V69: 1 | W69: 0 | X69: 0
A70: 3.5.4 | B70: Secondary Containment - Concrete Curbing | C70: =IF(OR(include_sec_cont=0,NaOH_day_tanks=0),0,dt_curb_concrete) -> 0 | D70: cy | E70: NA | G70: NA | I70: =IF(C70=0,"NA",VLOOKUP(0,conc_basin_cost_cl,3)) -> NA | J70: -- | K70: =IF(C70=0,"NA",VLOOKUP(0,conc_basin_cost_cl,IF(ss_cat="large",4,5))) -> NA | M70: =$B$64&" - "&B70 -> Caustic Day Tanks - Secondary Containment - Concrete Curbing | N70: 1 | O70: 1 | P70: 1 | Q70: 1 | R70: 1 | S70: 1 | T70: 1 | U70: 1 | V70: 1 | W70: 0 | X70: 0
A71: 3.5.5 | B71: Secondary Containment - Chemical Resistant Coating | C71: =IF(OR(include_sec_cont=0,NaOH_day_tanks=0),0,dt_coating_gal) -> 0 | D71: gal | E71: NA | G71: NA | I71: =IF(C71=0,"NA",VLOOKUP(0,conc_coating_cost_cl,3)) -> NA | J71: -- | K71: =IF(C71=0,"NA",VLOOKUP(0,conc_coating_cost_cl,IF(ss_cat="large",4,5))) -> NA | M71: Caustic Day Tanks - Secondary Containment - Chemical Resistant Coating | N71: 1 | O71: 1 | P71: 1 | Q71: 1 | R71: 1 | S71: 1 | T71: 1 | U71: 1 | V71: 1 | W71: 0 | X71: 0
A72: 3.6 | B72: Residuals Holding Tanks/Basins | W72: 0 | X72: 0
A73: 3.6.1 | B73: Concrete Basins (includes Excavation, Backfill, and Compaction) | C73: =hbasins -> 0 | D73: units | E73: =IF(hbasins=0,"NA",hbasin_vol) -> NA | F73: =IF(C73=0,"","gal") ->  | G73: =IF(hbasins=0,"NA",hbasin_vol) -> NA | H73: =IF(C73=0,"","gal") ->  | I73: =IF(hbasins=0,"NA",J73/hbasins) -> NA | J73: =IF(hbasins=0,"--",hconc_vol*VLOOKUP(0,conc_basin_cost_cl,3)+hexcavation_vol*VLOOKUP(0,excavate_cost_cl,3)+hbackfill_vol*VLOOKUP(0,backfill_cost_cl,3)+hrailing*VLOOKUP("aluminum railing",metal_cost_cl,3)) -> -- | K73: =IF(hbasins=0,"NA",VLOOKUP(0,conc_basin_cost_cl,IF(ss_cat="large",4,5))) -> NA | M73: =$B$72&" - "&B73 -> Residuals Holding Tanks/Basins - Concrete Basins (includes Excavation, Backfill, and Compaction) | N73: 3 | O73: 3 | P73: 2 | Q73: 3 | R73: 3 | S73: 2 | T73: 3 | U73: 3 | V73: 2 | W73: 0 | X73: 0
A74: 3.6.1 | B74: Steel Tanks | C74: =htanks -> 0 | D74: units | E74: =IF(C74=0,"NA",htank_vol) -> NA | F74: =IF(C74=0,"","gal") ->  | G74: =IF(htanks=0,"NA",IF(curve=1,htank_vol,VLOOKUP(htank_vol,st_bwt_cost_cl,2))) -> NA | H74: =IF(C74=0,"","gal") ->  | I74: =IF(htanks=0,"NA",IF(curve=1,st_ht_eq,VLOOKUP(htank_vol,st_bwt_cost_cl,3))) -> NA | J74: =IF(OR(C74=0,I74="contact vendor"),"--",C74*I74) -> -- | K74: =IF(htanks=0,"NA",VLOOKUP(htank_vol,st_bwt_cost_cl,IF(ss_cat="large",4,5))) -> NA | M74: =$B$72&" - "&B74 -> Residuals Holding Tanks/Basins - Steel Tanks | N74: 4 | O74: 4 | P74: 1 | Q74: 4 | R74: 4 | S74: 1 | T74: 4 | U74: 4 | V74: 1 | W74: 0 | X74: 0
A75: 3.6.1 | B75: Fiberglass Tanks | C75: =htanks -> 0 | D75: units | E75: =IF(C75=0,"NA",htank_vol) -> NA | F75: =IF(C75=0,"","gal") ->  | G75: =IF(htanks=0,"NA",IF(curve=1,htank_vol,VLOOKUP(htank_vol,fg_bwt_cost_cl,2))) -> NA | H75: =IF(C75=0,"","gal") ->  | I75: =IF(htanks=0,"NA",IF(curve=1,fg_ht_eq,VLOOKUP(htank_vol,fg_bwt_cost_cl,3))) -> NA | J75: =IF(OR(C75=0,I75="contact vendor"),"--",C75*I75) -> -- | K75: =IF(htanks=0,"NA",VLOOKUP(htank_vol,fg_bwt_cost_cl,IF(ss_cat="large",4,5))) -> NA | M75: =$B$72&" - "&B75 -> Residuals Holding Tanks/Basins - Fiberglass Tanks | N75: 2 | O75: 1 | P75: 3 | Q75: 2 | R75: 1 | S75: 3 | T75: 2 | U75: 1 | V75: 3 | W75: 0 | X75: 0
A76: 3.6.1 | B76: Plastic/HDPE Tanks | C76: =htanks -> 0 | D76: units | E76: =IF(C76=0,"NA",htank_vol) -> NA | F76: =IF(C76=0,"","gal") ->  | G76: =IF(htanks=0,"NA",IF(curve=1,htank_vol,VLOOKUP(htank_vol,hdpe_bwt_cost_cl,2))) -> NA | H76: =IF(C76=0,"","gal") ->  | I76: =IF(htanks=0,"NA",IF(curve=1,hdpe_ht_eq,VLOOKUP(htank_vol,hdpe_bwt_cost_cl,3))) -> NA | J76: =IF(OR(C76=0,I76="contact vendor"),"--",C76*I76) -> -- | K76: =IF(htanks=0,"NA",VLOOKUP(htank_vol,hdpe_bwt_cost_cl,IF(ss_cat="large",4,5))) -> NA | M76: =$B$72&" - "&B76 -> Residuals Holding Tanks/Basins - Plastic/HDPE Tanks | N76: 1 | O76: 2 | P76: 4 | Q76: 1 | R76: 2 | S76: 4 | T76: 1 | U76: 2 | V76: 4 | W76: 0 | X76: 0
A77: 3.7 | B77: Ferric Chloride Storage Tanks | W77: =IF(ISERROR(K77*L77),0,IF(K77<1,0,L77)) -> 0 | X77: =IF(W77,J77/K77,0) -> 0
A78: 3.7.1 | B78: Plastic/XLPE | C78: =coag_tanks -> 0 | D78: units | E78: =IF(coag_tanks=0,"NA",coag_tank_vol) -> NA | F78: =IF(coag_tanks=0,"","gal") ->  | G78: =IF(coag_tanks=0,"NA",IF(curve=1,coag_tank_vol,VLOOKUP(coag_tank_vol,pl_cst_cost_cl,2))) -> NA | H78: =IF(coag_tanks=0,"","gal") ->  | I78: =IF(coag_tanks=0,"NA",IF(curve=1,pl_coag_st_eq,VLOOKUP(coag_tank_vol,pl_cst_cost_cl,3))) -> NA | J78: =IF(coag_tanks=0,"--",IF(I78="contact vendor","--",C78*I78)) -> -- | K78: =IF(coag_tanks=0,"NA",VLOOKUP(coag_tank_vol,pl_cst_cost_cl,IF(ss_cat="large",4,5))) -> NA | M78: =$B$77&" - "&B78 -> Ferric Chloride Storage Tanks - Plastic/XLPE | N78: 1 | O78: 2 | P78: 2 | Q78: 1 | R78: 2 | S78: 2 | T78: 1 | U78: 2 | V78: 2 | W78: 0 | X78: 0
A79: 3.7.1 | B79: Fiberglass | C79: =coag_tanks -> 0 | D79: units | E79: =IF(coag_tanks=0,"NA",coag_tank_vol) -> NA | F79: =IF(coag_tanks=0,"","gal") ->  | G79: =IF(coag_tanks=0,"NA",IF(curve=1,coag_tank_vol,VLOOKUP(coag_tank_vol,fg_cst_cost_cl,2))) -> NA | H79: =IF(coag_tanks=0,"","gal") ->  | I79: =IF(coag_tanks=0,"NA",IF(curve=1,fg_coag_st_eq,VLOOKUP(coag_tank_vol,fg_cst_cost_cl,3))) -> NA | J79: =IF(coag_tanks=0,"--",IF(I79="contact vendor","--",C79*I79)) -> -- | K79: =IF(coag_tanks=0,"NA",VLOOKUP(coag_tank_vol,fg_cst_cost_cl,IF(ss_cat="large",4,5))) -> NA | M79: =$B$77&" - "&B79 -> Ferric Chloride Storage Tanks - Fiberglass | N79: 2 | O79: 1 | P79: 1 | Q79: 2 | R79: 1 | S79: 1 | T79: 2 | U79: 1 | V79: 1 | W79: 0 | X79: 0
A80: 3.7.2 | B80: Secondary Containment - Concrete Curbing | C80: =IF(OR(include_sec_cont=0,coag_tanks=0),0,coag_curb_concrete) -> 0 | D80: cy | E80: NA | G80: NA | I80: =IF(C80=0,"NA",VLOOKUP(0,conc_basin_cost_cl,3)) -> NA | J80: =IF(C80=0,"--",IF(I80="contact vendor","--",C80*I80)) -> -- | K80: =IF(C80=0,"NA",VLOOKUP(0,conc_basin_cost_cl,IF(ss_cat="large",4,5))) -> NA | M80: Ferric Chloride Storage Tanks - Secondary Containment - Concrete Curbing | N80: 1 | O80: 1 | P80: 1 | Q80: 1 | R80: 1 | S80: 1 | T80: 1 | U80: 1 | V80: 1 | W80: 0 | X80: 0
A81: 3.7.3 | B81: Secondary Containment - Chemical Resistant Coating | C81: =IF(OR(include_sec_cont=0,coag_tanks=0),0,coag_coating_gal) -> 0 | D81: gal | E81: NA | G81: NA | I81: =IF(C81=0,"NA",VLOOKUP(0,conc_coating_cost_cl,3)) -> NA | J81: =IF(C81=0,"--",IF(I81="contact vendor","--",C81*I81)) -> -- | K81: =IF(C81=0,"NA",VLOOKUP(0,conc_coating_cost_cl,IF(ss_cat="large",4,5))) -> NA | M81: Ferric Chloride Storage Tanks - Secondary Containment - Chemical Resistant Coating | N81: 1 | O81: 1 | P81: 1 | Q81: 1 | R81: 1 | S81: 1 | T81: 1 | U81: 1 | V81: 1 | W81: 0 | X81: 0
A82: 3.8 | B82: Polymer Storage Tanks | W82: 0 | X82: 0
A83: 3.8.1 | B83: Plastic/XLPE | C83: =polymer_tanks -> 0 | D83: units | E83: =IF(C83=0,"NA",polymer_tank_vol) -> NA | F83: =IF(C83=0,"","gal") ->  | G83: =IF(C83=0,"NA",IF(curve=1,polymer_tank_vol,VLOOKUP(polymer_tank_vol,pl_cst_cost_cl,2))) -> NA | H83: =IF(C83=0,"","gal") ->  | I83: =IF(C83=0,"NA",IF(curve=1,pl_polymer_st_eq,VLOOKUP(polymer_tank_vol,pl_cst_cost_cl,3))) -> NA | J83: =IF(OR(C83=0,I83="contact vendor"),"--",C83*I83) -> -- | K83: =IF(C83=0,"NA",VLOOKUP(polymer_tank_vol,pl_cst_cost_cl,IF(ss_cat="large",4,5))) -> NA | M83: =$B$82&" - "&B83 -> Polymer Storage Tanks - Plastic/XLPE | N83: 1 | O83: 2 | P83: 3 | Q83: 1 | R83: 2 | S83: 3 | T83: 1 | U83: 2 | V83: 3 | W83: 0 | X83: 0
A84: 3.8.1 | B84: Fiberglass | C84: =polymer_tanks -> 0 | D84: units | E84: =IF(C84=0,"NA",polymer_tank_vol) -> NA | F84: =IF(C84=0,"","gal") ->  | G84: =IF(C84=0,"NA",IF(curve=1,polymer_tank_vol,VLOOKUP(polymer_tank_vol,fg_cst_cost_cl,2))) -> NA | H84: =IF(C84=0,"","gal") ->  | I84: =IF(C84=0,"NA",IF(curve=1,fg_polymer_st_eq,VLOOKUP(polymer_tank_vol,fg_cst_cost_cl,3))) -> NA | J84: =IF(OR(C84=0,I84="contact vendor"),"--",C84*I84) -> -- | K84: =IF(C84=0,"NA",VLOOKUP(polymer_tank_vol,fg_cst_cost_cl,IF(ss_cat="large",4,5))) -> NA | M84: =$B$82&" - "&B84 -> Polymer Storage Tanks - Fiberglass | N84: 2 | O84: 1 | P84: 2 | Q84: 2 | R84: 1 | S84: 2 | T84: 2 | U84: 1 | V84: 2 | W84: 0 | X84: 0
A85: 3.8.1 | B85: Stainless Steel | C85: =polymer_tanks -> 0 | D85: units | E85: =IF(C85=0,"NA",polymer_tank_vol) -> NA | F85: =IF(C85=0,"","gal") ->  | G85: =IF(C85=0,"NA",IF(curve=1,polymer_tank_vol,VLOOKUP(polymer_tank_vol,ss_cst_cost_cl,2))) -> NA | H85: =IF(C85=0,"","gal") ->  | I85: =IF(C85=0,"NA",IF(curve=1,ss_polymer_st_eq,VLOOKUP(polymer_tank_vol,ss_cst_cost_cl,3))) -> NA | J85: =IF(OR(C85=0,I85="contact vendor"),"--",C85*I85) -> -- | K85: =IF(C85=0,"NA",VLOOKUP(polymer_tank_vol,ss_cst_cost_cl,IF(ss_cat="large",4,5))) -> NA | M85: =$B$82&" - "&B85 -> Polymer Storage Tanks - Stainless Steel | N85: 3 | O85: 3 | P85: 1 | Q85: 3 | R85: 3 | S85: 1 | T85: 3 | U85: 3 | V85: 1 | W85: 0 | X85: 0
A86: 4 | B86: Cartridge Filters | W86: 0 | X86: 0
A87: 4.1 | B87: Cartridge Filters | C87: =num_filters -> 2 | D87: units | E87: =filter_size -> 0.03 | F87: MGD | G87: =IF(curve=1,filter_size,VLOOKUP(filter_size,cart_cost_cl,2)) -> 0.03 | H87: MGD | I87: =IF(C87=0,0,IF(curve=1,cart_eq,VLOOKUP(filter_size,cart_cost_cl,3))) -> 1128.794704 | J87: =IF(C87=0,"--",IF(I87="contact vendor","--",C87*I87)) -> 2257.589409 | K87: =IF(C87=0,"NA",VLOOKUP(E87,cart_cost_cl,IF(ss_cat="large",4,5))) -> 30 | L87: 1 | M87: =$B$86&" - "&B87 -> Cartridge Filters - Cartridge Filters | N87: 1 | O87: 1 | P87: 1 | Q87: 1 | R87: 1 | S87: 1 | T87: 1 | U87: 1 | V87: 1 | W87: 1 | X87: 75.25298028
A88: 5 | B88: Piping | W88: 0 | X88: 0
A89: 5.1 | B89: Backwash Piping | W89: 0 | X89: 0
A90: 5.1.1 | B90: CPVC | C90: =back_pipe_length -> 50 | D90: lf | E90: =IF(back_pipe_length=0,"NA",back_pipe_diam) -> 1 | F90: =IF(back_pipe_length=0,"","in. diam") -> in. diam | G90: =IF(back_pipe_length=0,"NA",IF(curve=1,back_pipe_diam,VLOOKUP(back_pipe_diam,cpvc_pipe_cost_cl,2))) -> 1 | H90: =IF(back_pipe_length=0,"","in. diam") -> in. diam | I90: =IF(back_pipe_length=0,"NA",IF(curve=1,cpvc_pipe_eq_back,VLOOKUP(back_pipe_diam,cpvc_pipe_cost_cl,3))) -> 4.612425428 | J90: =IF(back_pipe_length=0,"--",IF(I90="contact vendor","--",C90*I90)) -> 230.6212714 | K90: =IF(back_pipe_length=0,"NA",VLOOKUP(back_pipe_diam,cpvc_pipe_cost_cl,IF(ss_cat="large",4,5))) -> 17 | L90: 0 | M90: =$B$89&" - "&B90 -> Backwash Piping - CPVC | N90: 2 | O90: 1 | P90: 3 | Q90: 2 | R90: 1 | S90: 3 | T90: 2 | U90: 1 | V90: 3 | W90: 0 | X90: 0
A91: 5.1.1 | B91: PVC | C91: =back_pipe_length -> 50 | D91: lf | E91: =IF(back_pipe_length=0,"NA",back_pipe_diam) -> 1 | F91: =IF(back_pipe_length=0,"","in. diam") -> in. diam | G91: =IF(back_pipe_length=0,"NA",IF(curve=1,back_pipe_diam,VLOOKUP(back_pipe_diam,pvc_pipe_cost_cl,2))) -> 1 | H91: =IF(back_pipe_length=0,"","in. diam") -> in. diam | I91: =IF(back_pipe_length=0,"NA",IF(curve=1,pvc_pipe_eq_back,VLOOKUP(back_pipe_diam,pvc_pipe_cost_cl,3))) -> 2.325803826 | J91: =IF(back_pipe_length=0,"--",IF(I91="contact vendor","--",C91*I91)) -> 116.2901913 | K91: =IF(back_pipe_length=0,"NA",VLOOKUP(back_pipe_diam,pvc_pipe_cost_cl,IF(ss_cat="large",4,5))) -> 17 | L91: 1 | M91: =$B$89&" - "&B91 -> Backwash Piping - PVC | N91: 1 | O91: 2 | P91: 4 | Q91: 1 | R91: 2 | S91: 4 | T91: 1 | U91: 2 | V91: 4 | W91: 1 | X91: 6.840599488
A92: 5.1.1 | B92: Stainless Steel | C92: =back_pipe_length -> 50 | D92: lf | E92: =IF(back_pipe_length=0,"NA",back_pipe_diam) -> 1 | F92: =IF(back_pipe_length=0,"","in. diam") -> in. diam | G92: =IF(back_pipe_length=0,"NA",IF(curve=1,back_pipe_diam,VLOOKUP(back_pipe_diam,ss_pipe_cost_cl,2))) -> 1 | H92: =IF(back_pipe_length=0,"","in. diam") -> in. diam | I92: =IF(back_pipe_length=0,"NA",IF(curve=1,ss_pipe_eq_back,VLOOKUP(back_pipe_diam,ss_pipe_cost_cl,3))) -> 43.92635213 | J92: =IF(back_pipe_length=0,"--",IF(I92="contact vendor","--",C92*I92)) -> 2196.317607 | K92: =IF(back_pipe_length=0,"NA",VLOOKUP(back_pipe_diam,ss_pipe_cost_cl,IF(ss_cat="large",4,5))) -> 40 | L92: 0 | M92: =$B$89&" - "&B92 -> Backwash Piping - Stainless Steel | N92: 4 | O92: 4 | P92: 1 | Q92: 4 | R92: 4 | S92: 1 | T92: 4 | U92: 4 | V92: 1 | W92: 0 | X92: 0
A93: 5.1.1 | B93: Steel | C93: =back_pipe_length -> 50 | D93: lf | E93: =IF(back_pipe_length=0,"NA",back_pipe_diam) -> 1 | F93: =IF(back_pipe_length=0,"","in. diam") -> in. diam | G93: =IF(back_pipe_length=0,"NA",IF(curve=1,back_pipe_diam,VLOOKUP(back_pipe_diam,st_pipe_cost_cl,2))) -> 1 | H93: =IF(back_pipe_length=0,"","in. diam") -> in. diam | I93: =IF(back_pipe_length=0,"NA",IF(curve=1,st_pipe_eq_back,VLOOKUP(back_pipe_diam,st_pipe_cost_cl,3))) -> 20.76941738 | J93: =IF(back_pipe_length=0,"--",IF(I93="contact vendor","--",C93*I93)) -> 1038.470869 | K93: =IF(back_pipe_length=0,"NA",VLOOKUP(back_pipe_diam,st_pipe_cost_cl,IF(ss_cat="large",4,5))) -> 33 | L93: 0 | M93: =$B$89&" - "&B93 -> Backwash Piping - Steel | N93: 3 | O93: 3 | P93: 2 | Q93: 3 | R93: 3 | S93: 2 | T93: 3 | U93: 3 | V93: 2 | W93: 0 | X93: 0
A94: 5.2 | B94: Regenerant Piping | W94: 0 | X94: 0
A95: 5.2.1 | B95: CPVC | C95: =brine_pipe_length -> 0 | D95: lf | E95: =IF(brine_pipe_length=0,"NA",brine_pipe_diam) -> NA | F95: =IF(brine_pipe_length=0,"","in. diam") ->  | G95: =IF(brine_pipe_length=0,"NA",IF(curve=1,brine_pipe_diam,VLOOKUP(brine_pipe_diam,cpvc_pipe_cost_cl,2))) -> NA | H95: =IF(brine_pipe_length=0,"","in. diam") ->  | I95: =IF(brine_pipe_length=0,"NA",IF(curve=1,cpvc_pipe_eq_brine,VLOOKUP(brine_pipe_diam,cpvc_pipe_cost_cl,3))) -> NA | J95: =IF(brine_pipe_length=0,"--",IF(I95="contact vendor","--",C95*I95)) -> -- | K95: =IF(brine_pipe_length=0,"NA",VLOOKUP(brine_pipe_diam,cpvc_pipe_cost_cl,IF(ss_cat="large",4,5))) -> NA | M95: =$B$94&" - "&B95 -> Regenerant Piping - CPVC | N95: 2 | O95: 1 | P95: 2 | Q95: 2 | R95: 1 | S95: 2 | T95: 2 | U95: 1 | V95: 2 | W95: 0 | X95: 0
A96: 5.2.1 | B96: PVC | C96: =brine_pipe_length -> 0 | D96: lf | E96: =IF(brine_pipe_length=0,"NA",brine_pipe_diam) -> NA | F96: =IF(brine_pipe_length=0,"","in. diam") ->  | G96: =IF(brine_pipe_length=0,"NA",IF(curve=1,brine_pipe_diam,VLOOKUP(brine_pipe_diam,pvc_pipe_cost_cl,2))) -> NA | H96: =IF(brine_pipe_length=0,"","in. diam") ->  | I96: =IF(brine_pipe_length=0,"NA",IF(curve=1,pvc_pipe_eq_brine,VLOOKUP(brine_pipe_diam,pvc_pipe_cost_cl,3))) -> NA | J96: =IF(brine_pipe_length=0,"--",IF(I96="contact vendor","--",C96*I96)) -> -- | K96: =IF(brine_pipe_length=0,"NA",VLOOKUP(brine_pipe_diam,pvc_pipe_cost_cl,IF(ss_cat="large",4,5))) -> NA | M96: =$B$94&" - "&B96 -> Regenerant Piping - PVC | N96: 1 | O96: 2 | P96: 3 | Q96: 1 | R96: 2 | S96: 3 | T96: 1 | U96: 2 | V96: 3 | W96: 0 | X96: 0
A97: 5.2.1 | B97: Stainless Steel | C97: =brine_pipe_length -> 0 | D97: lf | E97: =IF(brine_pipe_length=0,"NA",brine_pipe_diam) -> NA | F97: =IF(brine_pipe_length=0,"","in. diam") ->  | G97: =IF(brine_pipe_length=0,"NA",IF(curve=1,brine_pipe_diam,VLOOKUP(brine_pipe_diam,ss_pipe_cost_cl,2))) -> NA | H97: =IF(brine_pipe_length=0,"","in. diam") ->  | I97: =IF(brine_pipe_length=0,"NA",IF(curve=1,ss_pipe_eq_brine,VLOOKUP(brine_pipe_diam,ss_pipe_cost_cl,3))) -> NA | J97: =IF(brine_pipe_length=0,"--",IF(I97="contact vendor","--",C97*I97)) -> -- | K97: =IF(brine_pipe_length=0,"NA",VLOOKUP(brine_pipe_diam,ss_pipe_cost_cl,IF(ss_cat="large",4,5))) -> NA | M97: =$B$94&" - "&B97 -> Regenerant Piping - Stainless Steel | N97: 3 | O97: 3 | P97: 1 | Q97: 3 | R97: 3 | S97: 1 | T97: 3 | U97: 3 | V97: 1 | W97: 0 | X97: 0
A98: 5.3 | B98: Process Piping | W98: 0 | X98: 0
A99: 5.3.1 | B99: Ductile Iron | C99: =proc_pipe_length -> 40 | D99: lf | E99: =proc_pipe_diam -> 2 | F99: in. diam | G99: =IF(curve=1,proc_pipe_diam,VLOOKUP(proc_pipe_diam,di_pipe_cost_cl,2)) -> 2 | H99: in. diam | I99: =IF(curve=1,di_pipe_eq_proc,VLOOKUP(proc_pipe_diam,di_pipe_cost_cl,3)) -> contact vendor | J99: =IF(I99="contact vendor","--",C99*I99) -> -- | K99: =VLOOKUP(proc_pipe_diam,di_pipe_cost_cl,IF(ss_cat="large",4,5)) -> 35 | L99: 0 | M99: =$B$98&" "&" - "&B99 -> Process Piping - Ductile Iron | N99: 3 | O99: 3 | P99: 3 | Q99: 3 | R99: 3 | S99: 3 | T99: 3 | U99: 3 | V99: 3 | W99: 0 | X99: 0
A100: 5.3.1 | B100: CPVC | C100: =proc_pipe_length -> 40 | D100: lf | E100: =proc_pipe_diam -> 2 | F100: in. diam | G100: =IF(curve=1,proc_pipe_diam,VLOOKUP(proc_pipe_diam,cpvc_pipe_cost_cl,2)) -> 2 | H100: in. diam | I100: =IF(curve=1,cpvc_pipe_eq_proc,VLOOKUP(proc_pipe_diam,cpvc_pipe_cost_cl,3)) -> 9.80088342 | J100: =IF(I100="contact vendor","--",C100*I100) -> 392.0353368 | K100: =VLOOKUP(proc_pipe_diam,cpvc_pipe_cost_cl,IF(ss_cat="large",4,5)) -> 17 | L100: 0 | M100: =$B$98&" "&" - "&B100 -> Process Piping - CPVC | N100: 2 | O100: 1 | P100: 4 | Q100: 2 | R100: 1 | S100: 4 | T100: 2 | U100: 1 | V100: 4 | W100: 0 | X100: 0
A101: 5.3.1 | B101: PVC | C101: =proc_pipe_length -> 40 | D101: lf | E101: =proc_pipe_diam -> 2 | F101: in. diam | G101: =IF(curve=1,proc_pipe_diam,VLOOKUP(proc_pipe_diam,pvc_pipe_cost_cl,2)) -> 2 | H101: in. diam | I101: =IF(curve=1,pvc_pipe_eq_proc,VLOOKUP(proc_pipe_diam,pvc_pipe_cost_cl,3)) -> 3.418102201 | J101: =IF(I101="contact vendor","--",C101*I101) -> 136.724088 | K101: =VLOOKUP(proc_pipe_diam,pvc_pipe_cost_cl,IF(ss_cat="large",4,5)) -> 17 | L101: 1 | M101: =$B$98&" "&" - "&B101 -> Process Piping - PVC | N101: 1 | O101: 2 | P101: 5 | Q101: 1 | R101: 2 | S101: 5 | T101: 1 | U101: 2 | V101: 5 | W101: 1 | X101: 8.042593414
A102: 5.3.1 | B102: Stainless Steel | C102: =proc_pipe_length -> 40 | D102: lf | E102: =proc_pipe_diam -> 2 | F102: in. diam | G102: =IF(curve=1,proc_pipe_diam,VLOOKUP(proc_pipe_diam,ss_pipe_cost_cl,2)) -> 2 | H102: in. diam | I102: =IF(curve=1,ss_pipe_eq_proc,VLOOKUP(proc_pipe_diam,ss_pipe_cost_cl,3)) -> 95.44119936 | J102: =IF(I102="contact vendor","--",C102*I102) -> 3817.647974 | K102: =VLOOKUP(proc_pipe_diam,ss_pipe_cost_cl,IF(ss_cat="large",4,5)) -> 40 | L102: 0 | M102: =$B$98&" "&" - "&B102 -> Process Piping - Stainless Steel | N102: 5 | O102: 5 | P102: 1 | Q102: 5 | R102: 5 | S102: 1 | T102: 5 | U102: 5 | V102: 1 | W102: 0 | X102: 0
A103: 5.3.1 | B103: Steel | C103: =proc_pipe_length -> 40 | D103: lf | E103: =proc_pipe_diam -> 2 | F103: in. diam | G103: =IF(curve=1,proc_pipe_diam,VLOOKUP(proc_pipe_diam,st_pipe_cost_cl,2)) -> 2 | H103: in. diam | I103: =IF(curve=1,st_pipe_eq_proc,VLOOKUP(proc_pipe_diam,st_pipe_cost_cl,3)) -> 39.40237895 | J103: =IF(I103="contact vendor","--",C103*I103) -> 1576.095158 | K103: =VLOOKUP(proc_pipe_diam,st_pipe_cost_cl,IF(ss_cat="large",4,5)) -> 33 | L103: 0 | M103: =$B$98&" "&" - "&B103 -> Process Piping - Steel | N103: 4 | O103: 4 | P103: 2 | Q103: 4 | R103: 4 | S103: 2 | T103: 4 | U103: 4 | V103: 2 | W103: 0 | X103: 0
A104: 5.4 | B104: Bypass Piping | W104: 0 | X104: 0
A105: 5.4.1 | B105: CPVC | C105: =bp_pipe_length -> 0 | D105: lf | E105: =IF(bp_pct>0,bp_pipe_diam,"NA") -> NA | F105: =IF(bp_pct=0," ","in. diam") ->  | G105: =IF(bp_pct=0,"NA",IF(curve=1,bp_pipe_diam,VLOOKUP(bp_pipe_diam,cpvc_pipe_cost_cl,2))) -> NA | H105: =IF(bp_pct=0," ","in. diam") ->  | I105: =IF(bp_pct=0,"NA",IF(curve=1,cpvc_pipe_eq_bp,VLOOKUP(bp_pipe_diam,cpvc_pipe_cost_cl,3))) -> NA | J105: =IF(OR(C105=0,I105="contact vendor"),"--",C105*I105) -> -- | K105: =IF(bp_pct=0,"NA",VLOOKUP(bp_pipe_diam,cpvc_pipe_cost_cl,IF(ss_cat="large",4,5))) -> NA | M105: =$B$104&" "&" - "&B105 -> Bypass Piping - CPVC | N105: 2 | O105: 1 | P105: 3 | Q105: 2 | R105: 1 | S105: 3 | T105: 2 | U105: 1 | V105: 3 | W105: 0 | X105: 0
A106: 5.4.1 | B106: PVC | C106: =bp_pipe_length -> 0 | D106: lf | E106: =IF(bp_pct>0,bp_pipe_diam,"NA") -> NA | F106: =IF(bp_pct=0," ","in. diam") ->  | G106: =IF(bp_pct=0,"NA",IF(curve=1,bp_pipe_diam,VLOOKUP(bp_pipe_diam,pvc_pipe_cost_cl,2))) -> NA | H106: =IF(bp_pct=0," ","in. diam") ->  | I106: =IF(bp_pct=0,"NA",IF(curve=1,pvc_pipe_eq_bp,VLOOKUP(bp_pipe_diam,pvc_pipe_cost_cl,3))) -> NA | J106: =IF(OR(C106=0,I106="contact vendor"),"--",C106*I106) -> -- | K106: =IF(bp_pct=0,"NA",VLOOKUP(bp_pipe_diam,pvc_pipe_cost_cl,IF(ss_cat="large",4,5))) -> NA | M106: =$B$104&" "&" - "&B106 -> Bypass Piping - PVC | N106: 1 | O106: 2 | P106: 4 | Q106: 1 | R106: 2 | S106: 4 | T106: 1 | U106: 2 | V106: 4 | W106: 0 | X106: 0
A107: 5.4.1 | B107: Stainless Steel | C107: =bp_pipe_length -> 0 | D107: lf | E107: =IF(bp_pct>0,bp_pipe_diam,"NA") -> NA | F107: =IF(bp_pct=0," ","in. diam") ->  | G107: =IF(bp_pct=0,"NA",IF(curve=1,bp_pipe_diam,VLOOKUP(bp_pipe_diam,ss_pipe_cost_cl,2))) -> NA | H107: =IF(bp_pct=0," ","in. diam") ->  | I107: =IF(bp_pct=0,"NA",IF(curve=1,ss_pipe_eq_bp,VLOOKUP(bp_pipe_diam,ss_pipe_cost_cl,3))) -> NA | J107: =IF(OR(C107=0,I107="contact vendor"),"--",C107*I107) -> -- | K107: =IF(bp_pct=0,"NA",VLOOKUP(bp_pipe_diam,ss_pipe_cost_cl,IF(ss_cat="large",4,5))) -> NA | M107: =$B$104&" "&" - "&B107 -> Bypass Piping - Stainless Steel | N107: 4 | O107: 4 | P107: 1 | Q107: 4 | R107: 4 | S107: 1 | T107: 4 | U107: 4 | V107: 1 | W107: 0 | X107: 0
A108: 5.4.1 | B108: Steel | C108: =bp_pipe_length -> 0 | D108: lf | E108: =IF(bp_pct>0,bp_pipe_diam,"NA") -> NA | F108: =IF(bp_pct=0," ","in. diam") ->  | G108: =IF(bp_pct=0,"NA",IF(curve=1,bp_pipe_diam,VLOOKUP(bp_pipe_diam,st_pipe_cost_cl,2))) -> NA | H108: =IF(bp_pct=0," ","in. diam") ->  | I108: =IF(bp_pct=0,"NA",IF(curve=1,st_pipe_eq_bp,VLOOKUP(bp_pipe_diam,st_pipe_cost_cl,3))) -> NA | J108: =IF(OR(C108=0,I108="contact vendor"),"--",C108*I108) -> -- | K108: =IF(bp_pct=0,"NA",VLOOKUP(bp_pipe_diam,st_pipe_cost_cl,IF(ss_cat="large",4,5))) -> NA | M108: =$B$104&" "&" - "&B108 -> Bypass Piping - Steel | N108: 3 | O108: 3 | P108: 2 | Q108: 3 | R108: 3 | S108: 2 | T108: 3 | U108: 3 | V108: 2 | W108: 0 | X108: 0
A109: 5.5 | B109: Influent and Treated Water Piping | W109: 0 | X109: 0
A110: 5.5.1 | B110: Ductile Iron | C110: =in_out_pipe_length -> 40 | D110: lf | E110: =in_out_pipe_diam -> 1.5 | F110: in. diam | G110: =IF(curve=1,in_out_pipe_diam,VLOOKUP(in_out_pipe_diam,di_pipe_cost_cl,2)) -> 1.5 | H110: in. diam | I110: =IF(curve=1,di_pipe_eq_in_out,VLOOKUP(in_out_pipe_diam,di_pipe_cost_cl,3)) -> contact vendor | J110: =IF(I110="contact vendor","--",C110*I110) -> -- | K110: =VLOOKUP(in_out_pipe_diam,di_pipe_cost_cl,IF(ss_cat="large",4,5)) -> 35 | L110: 0 | M110: =$B$109&" "&" - "&B110 -> Influent and Treated Water Piping - Ductile Iron | N110: 3 | O110: 3 | P110: 3 | Q110: 3 | R110: 3 | S110: 3 | T110: 3 | U110: 3 | V110: 3 | W110: 0 | X110: 0
A111: 5.5.1 | B111: CPVC | C111: =in_out_pipe_length -> 40 | D111: lf | E111: =in_out_pipe_diam -> 1.5 | F111: in. diam | G111: =IF(curve=1,in_out_pipe_diam,VLOOKUP(in_out_pipe_diam,cpvc_pipe_cost_cl,2)) -> 1.5 | H111: in. diam | I111: =IF(curve=1,cpvc_pipe_eq_in_out,VLOOKUP(in_out_pipe_diam,cpvc_pipe_cost_cl,3)) -> 7.013311728 | J111: =IF(I111="contact vendor","--",C111*I111) -> 280.5324691 | K111: =VLOOKUP(in_out_pipe_diam,cpvc_pipe_cost_cl,IF(ss_cat="large",4,5)) -> 17 | L111: 0 | M111: =$B$109&" "&" - "&B111 -> Influent and Treated Water Piping - CPVC | N111: 2 | O111: 1 | P111: 4 | Q111: 2 | R111: 1 | S111: 4 | T111: 2 | U111: 1 | V111: 4 | W111: =IF(ISERROR(K111*L111),0,IF(K111<1,0,L111)) -> 0 | X111: =IF(W111,J111/K111,0) -> 0
A112: 5.5.1 | B112: PVC | C112: =in_out_pipe_length -> 40 | D112: lf | E112: =in_out_pipe_diam -> 1.5 | F112: in. diam | G112: =IF(curve=1,in_out_pipe_diam,VLOOKUP(in_out_pipe_diam,pvc_pipe_cost_cl,2)) -> 1.5 | H112: in. diam | I112: =IF(curve=1,pvc_pipe_eq_in_out,VLOOKUP(in_out_pipe_diam,pvc_pipe_cost_cl,3)) -> 2.847676267 | J112: =IF(I112="contact vendor","--",C112*I112) -> 113.9070507 | K112: =VLOOKUP(in_out_pipe_diam,pvc_pipe_cost_cl,IF(ss_cat="large",4,5)) -> 17 | L112: 1 | M112: =$B$109&" "&" - "&B112 -> Influent and Treated Water Piping - PVC | N112: 1 | O112: 2 | P112: 5 | Q112: 1 | R112: 2 | S112: 5 | T112: 1 | U112: 2 | V112: 5 | W112: 1 | X112: 6.700414745
A113: 5.5.1 | B113: Stainless Steel | C113: =in_out_pipe_length -> 40 | D113: lf | E113: =in_out_pipe_diam -> 1.5 | F113: in. diam | G113: =IF(curve=1,in_out_pipe_diam,VLOOKUP(in_out_pipe_diam,ss_pipe_cost_cl,2)) -> 1.5 | H113: in. diam | I113: =IF(curve=1,ss_pipe_eq_in_out,VLOOKUP(in_out_pipe_diam,ss_pipe_cost_cl,3)) -> 70.2752489 | J113: =IF(I113="contact vendor","--",C113*I113) -> 2811.009956 | K113: =VLOOKUP(in_out_pipe_diam,ss_pipe_cost_cl,IF(ss_cat="large",4,5)) -> 40 | L113: 0 | M113: =$B$109&" "&" - "&B113 -> Influent and Treated Water Piping - Stainless Steel | N113: 5 | O113: 5 | P113: 1 | Q113: 5 | R113: 5 | S113: 1 | T113: 5 | U113: 5 | V113: 1 | W113: 0 | X113: 0
A114: 5.5.1 | B114: Steel | C114: =in_out_pipe_length -> 40 | D114: lf | E114: =in_out_pipe_diam -> 1.5 | F114: in. diam | G114: =IF(curve=1,in_out_pipe_diam,VLOOKUP(in_out_pipe_diam,st_pipe_cost_cl,2)) -> 1.5 | H114: in. diam | I114: =IF(curve=1,st_pipe_eq_in_out,VLOOKUP(in_out_pipe_diam,st_pipe_cost_cl,3)) -> 30.20656151 | J114: =IF(I114="contact vendor","--",C114*I114) -> 1208.26246 | K114: =VLOOKUP(in_out_pipe_diam,st_pipe_cost_cl,IF(ss_cat="large",4,5)) -> 33 | L114: 0 | M114: =$B$109&" "&" - "&B114 -> Influent and Treated Water Piping - Steel | N114: 4 | O114: 4 | P114: 2 | Q114: 4 | R114: 4 | S114: 2 | T114: 4 | U114: 4 | V114: 2 | W114: 0 | X114: 0
A115: 5.6 | B115: Acid Piping | W115: 0 | X115: 0
A116: 5.6.1 | B116: CPVC | C116: =acid_pipe_length -> 0 | D116: lf | E116: =IF(acid_pipe_length=0,"NA",acid_pipe_diam) -> NA | F116: =IF(acid_pipe_length=0,"","in. diam") ->  | G116: =IF(acid_pipe_length=0,"NA",IF(curve=1,acid_pipe_diam,VLOOKUP(acid_pipe_diam,cpvc_pipe_cost_cl,2))) -> NA | H116: =IF(acid_pipe_length=0,"","in. diam") ->  | I116: =IF(acid_pipe_length=0,"NA",IF(curve=1,cpvc_pipe_eq_acid,VLOOKUP(acid_pipe_diam,cpvc_pipe_cost_cl,3))) -> NA | J116: =IF(acid_pipe_length=0,"--",IF(I116="contact vendor","--",C116*I116)) -> -- | K116: =IF(acid_pipe_length=0,"NA",VLOOKUP(acid_pipe_diam,cpvc_pipe_cost_cl,IF(ss_cat="large",4,5))) -> NA | M116: =$B$115&" - "&B116 -> Acid Piping - CPVC | N116: 2 | O116: 1 | P116: 2 | Q116: 2 | R116: 1 | S116: 2 | T116: 2 | U116: 1 | V116: 2 | W116: 0 | X116: 0
A117: 5.6.1 | B117: PVC | C117: =acid_pipe_length -> 0 | D117: lf | E117: =IF(acid_pipe_length=0,"NA",acid_pipe_diam) -> NA | F117: =IF(acid_pipe_length=0,"","in. diam") ->  | G117: =IF(acid_pipe_length=0,"NA",IF(curve=1,acid_pipe_diam,VLOOKUP(acid_pipe_diam,pvc_pipe_cost_cl,2))) -> NA | H117: =IF(acid_pipe_length=0,"","in. diam") ->  | I117: =IF(acid_pipe_length=0,"NA",IF(curve=1,pvc_pipe_eq_acid,VLOOKUP(acid_pipe_diam,pvc_pipe_cost_cl,3))) -> NA | J117: =IF(acid_pipe_length=0,"--",IF(I117="contact vendor","--",C117*I117)) -> -- | K117: =IF(acid_pipe_length=0,"NA",VLOOKUP(acid_pipe_diam,pvc_pipe_cost_cl,IF(ss_cat="large",4,5))) -> NA | M117: =$B$115&" - "&B117 -> Acid Piping - PVC | N117: 1 | O117: 2 | P117: 3 | Q117: 1 | R117: 2 | S117: 3 | T117: 1 | U117: 2 | V117: 3 | W117: 0 | X117: 0
A118: 5.6.1 | B118: Stainless Steel | C118: =acid_pipe_length -> 0 | D118: lf | E118: =IF(acid_pipe_length=0,"NA",acid_pipe_diam) -> NA | F118: =IF(acid_pipe_length=0,"","in. diam") ->  | G118: =IF(acid_pipe_length=0,"NA",IF(curve=1,acid_pipe_diam,VLOOKUP(acid_pipe_diam,ss_pipe_cost_cl,2))) -> NA | H118: =IF(acid_pipe_length=0,"","in. diam") ->  | I118: =IF(acid_pipe_length=0,"NA",IF(curve=1,ss_pipe_eq_acid,VLOOKUP(acid_pipe_diam,ss_pipe_cost_cl,3))) -> NA | J118: =IF(acid_pipe_length=0,"--",IF(I118="contact vendor","--",C118*I118)) -> -- | K118: =IF(acid_pipe_length=0,"NA",VLOOKUP(acid_pipe_diam,ss_pipe_cost_cl,IF(ss_cat="large",4,5))) -> NA | M118: =$B$115&" - "&B118 -> Acid Piping - Stainless Steel | N118: 3 | O118: 3 | P118: 1 | Q118: 3 | R118: 3 | S118: 1 | T118: 3 | U118: 3 | V118: 1 | W118: 0 | X118: 0
A119: 5.7 | B119: Caustic Piping | W119: 0 | X119: 0
A120: 5.7.1 | B120: CPVC | C120: =caustic_pipe_length -> 0 | D120: lf | E120: =IF(caustic_pipe_length=0,"NA",caustic_pipe_diam) -> NA | F120: =IF(caustic_pipe_length=0,"","in. diam") ->  | G120: =IF(caustic_pipe_length=0,"NA",IF(curve=1,caustic_pipe_diam,VLOOKUP(caustic_pipe_diam,cpvc_pipe_cost_cl,2))) -> NA | H120: =IF(caustic_pipe_length=0,"","in. diam") ->  | I120: =IF(caustic_pipe_length=0,"NA",IF(curve=1,cpvc_pipe_eq_caustic,VLOOKUP(caustic_pipe_diam,cpvc_pipe_cost_cl,3))) -> NA | J120: =IF(caustic_pipe_length=0,"--",IF(I120="contact vendor","--",C120*I120)) -> -- | K120: =IF(caustic_pipe_length=0,"NA",VLOOKUP(caustic_pipe_diam,cpvc_pipe_cost_cl,IF(ss_cat="large",4,5))) -> NA | M120: =$B$119&" - "&B120 -> Caustic Piping - CPVC | N120: 2 | O120: 1 | P120: 2 | Q120: 2 | R120: 1 | S120: 2 | T120: 2 | U120: 1 | V120: 2 | W120: 0 | X120: 0
A121: 5.7.1 | B121: PVC | C121: =caustic_pipe_length -> 0 | D121: lf | E121: =IF(caustic_pipe_length=0,"NA",caustic_pipe_diam) -> NA | F121: =IF(caustic_pipe_length=0,"","in. diam") ->  | G121: =IF(caustic_pipe_length=0,"NA",IF(curve=1,caustic_pipe_diam,VLOOKUP(caustic_pipe_diam,pvc_pipe_cost_cl,2))) -> NA | H121: =IF(caustic_pipe_length=0,"","in. diam") ->  | I121: =IF(caustic_pipe_length=0,"NA",IF(curve=1,pvc_pipe_eq_caustic,VLOOKUP(caustic_pipe_diam,pvc_pipe_cost_cl,3))) -> NA | J121: =IF(caustic_pipe_length=0,"--",IF(I121="contact vendor","--",C121*I121)) -> -- | K121: =IF(caustic_pipe_length=0,"NA",VLOOKUP(caustic_pipe_diam,pvc_pipe_cost_cl,IF(ss_cat="large",4,5))) -> NA | M121: =$B$119&" - "&B121 -> Caustic Piping - PVC | N121: 1 | O121: 2 | P121: 3 | Q121: 1 | R121: 2 | S121: 3 | T121: 1 | U121: 2 | V121: 3 | W121: 0 | X121: 0
A122: 5.7.1 | B122: Stainless Steel | C122: =caustic_pipe_length -> 0 | D122: lf | E122: =IF(caustic_pipe_length=0,"NA",caustic_pipe_diam) -> NA | F122: =IF(caustic_pipe_length=0,"","in. diam") ->  | G122: =IF(caustic_pipe_length=0,"NA",IF(curve=1,caustic_pipe_diam,VLOOKUP(caustic_pipe_diam,ss_pipe_cost_cl,2))) -> NA | H122: =IF(caustic_pipe_length=0,"","in. diam") ->  | I122: =IF(caustic_pipe_length=0,"NA",IF(curve=1,ss_pipe_eq_caustic,VLOOKUP(caustic_pipe_diam,ss_pipe_cost_cl,3))) -> NA | J122: =IF(caustic_pipe_length=0,"--",IF(I122="contact vendor","--",C122*I122)) -> -- | K122: =IF(caustic_pipe_length=0,"NA",VLOOKUP(caustic_pipe_diam,ss_pipe_cost_cl,IF(ss_cat="large",4,5))) -> NA | M122: =$B$119&" - "&B122 -> Caustic Piping - Stainless Steel | N122: 3 | O122: 3 | P122: 1 | Q122: 3 | R122: 3 | S122: 1 | T122: 3 | U122: 3 | V122: 1 | W122: 0 | X122: 0
A123: 5.8 | B123: Residuals Piping | W123: 0 | X123: 0
A124: 5.8.1 | B124: CPVC | C124: =res_pipe_length -> 60 | D124: lf | E124: =res_pipe_diam -> 1 | F124: in. diam | G124: =IF(curve=1,res_pipe_diam,VLOOKUP(res_pipe_diam,cpvc_pipe_cost_cl,2)) -> 1 | H124: in. diam | I124: =IF(curve=1,cpvc_pipe_eq_res,VLOOKUP(res_pipe_diam,cpvc_pipe_cost_cl,3)) -> 4.612425428 | J124: =IF(I124="contact vendor","--",C124*I124) -> 276.7455257 | K124: =VLOOKUP(res_pipe_diam,cpvc_pipe_cost_cl,IF(ss_cat="large",4,5)) -> 17 | L124: 0 | M124: =$B$123&" "&" - "&B124 -> Residuals Piping - CPVC | N124: 2 | O124: 1 | P124: 3 | Q124: 2 | R124: 1 | S124: 3 | T124: 2 | U124: 1 | V124: 3 | W124: 0 | X124: 0
A125: 5.8.1 | B125: PVC | C125: =res_pipe_length -> 60 | D125: lf | E125: =res_pipe_diam -> 1 | F125: in. diam | G125: =IF(curve=1,res_pipe_diam,VLOOKUP(res_pipe_diam,pvc_pipe_cost_cl,2)) -> 1 | H125: in. diam | I125: =IF(curve=1,pvc_pipe_eq_res,VLOOKUP(res_pipe_diam,pvc_pipe_cost_cl,3)) -> 2.325803826 | J125: =IF(I125="contact vendor","--",C125*I125) -> 139.5482296 | K125: =VLOOKUP(res_pipe_diam,pvc_pipe_cost_cl,IF(ss_cat="large",4,5)) -> 17 | L125: 1 | M125: Residuals Piping - PVC | N125: 1 | O125: 2 | P125: 4 | Q125: 1 | R125: 2 | S125: 4 | T125: 1 | U125: 2 | V125: 4 | W125: 1 | X125: 8.208719386
A126: 5.8.1 | B126: Stainless Steel | C126: =res_pipe_length -> 60 | D126: lf | E126: =res_pipe_diam -> 1 | F126: in. diam | G126: =IF(curve=1,res_pipe_diam,VLOOKUP(res_pipe_diam,ss_pipe_cost_cl,2)) -> 1 | H126: in. diam | I126: =IF(curve=1,ss_pipe_eq_res,VLOOKUP(res_pipe_diam,ss_pipe_cost_cl,3)) -> 43.92635213 | J126: =IF(I126="contact vendor","--",C126*I126) -> 2635.581128 | K126: =VLOOKUP(res_pipe_diam,ss_pipe_cost_cl,IF(ss_cat="large",4,5)) -> 40 | L126: 0 | M126: Residuals Piping - Stainless Steel | N126: 4 | O126: 4 | P126: 1 | Q126: 4 | R126: 4 | S126: 1 | T126: 4 | U126: 4 | V126: 1 | W126: 0 | X126: 0
A127: 5.8.1 | B127: Steel | C127: =res_pipe_length -> 60 | D127: lf | E127: =res_pipe_diam -> 1 | F127: in. diam | G127: =IF(curve=1,res_pipe_diam,VLOOKUP(res_pipe_diam,st_pipe_cost_cl,2)) -> 1 | H127: in. diam | I127: =IF(curve=1,st_pipe_eq_res,VLOOKUP(res_pipe_diam,st_pipe_cost_cl,3)) -> 20.76941738 | J127: =IF(I127="contact vendor","--",C127*I127) -> 1246.165043 | K127: =VLOOKUP(res_pipe_diam,st_pipe_cost_cl,IF(ss_cat="large",4,5)) -> 33 | L127: 0 | M127: Residuals Piping - Steel | N127: 3 | O127: 3 | P127: 2 | Q127: 3 | R127: 3 | S127: 2 | T127: 3 | U127: 3 | V127: 2 | W127: 0 | X127: 0
A128: 5.8.2 | B128: Excavation | C128: =res_trench_vol -> 32.57200318 | D128: cy | E128: NA | G128: NA | I128: =IF(C128=0,"NA",VLOOKUP(0,excavate_cost_cl,3)) -> 30.88 | J128: =IF(OR(I128="contact vendor",C128=0),"--",C128*I128) -> 1005.823458 | K128: =IF(I128="NA","N/A",IF(L124=1,K124,IF(L125=1,K125,IF(L126=1,K126,IF(L127=1,K127,"N/A"))))) -> 17 | L128: 1 | M128: Residuals Piping - Excavation | N128: 1 | O128: 1 | P128: 1 | Q128: 1 | R128: 1 | S128: 1 | T128: 1 | U128: 1 | V128: 1 | W128: 1 | X128: 59.16608578
A129: 5.8.3 | B129: Bedding | C129: =res_pipe_bedding_vol -> 1.003904083 | D129: cy | E129: NA | G129: NA | I129: =IF(C129=0,"NA",VLOOKUP(0,bedding_cost_cl,3)) -> 45.35 | J129: =IF(OR(I129="contact vendor",C129=0),"--",C129*I129) -> 45.52705018 | K129: =IF(I129="NA","N/A",IF(L124=1,K124,IF(L125=1,K125,IF(L126=1,K126,IF(L127=1,K127,"N/A"))))) -> 17 | L129: 1 | M129: Residuals Piping - Bedding | N129: 1 | O129: 1 | P129: 1 | Q129: 1 | R129: 1 | S129: 1 | T129: 1 | U129: 1 | V129: 1 | W129: 1 | X129: 2.678061775
A130: 5.8.4 | B130: Backfill and Compaction | C130: =res_trench_vol -> 32.57200318 | D130: cy | E130: NA | G130: NA | I130: =IF(C130=0,"NA",VLOOKUP(0,backfill_cost_cl,3)) -> 18.65 | J130: =IF(OR(I130="contact vendor",C130=0),"--",C130*I130) -> 607.4678593 | K130: =IF(I130="NA","N/A",IF(L124=1,K124,IF(L125=1,K125,IF(L126=1,K126,IF(L127=1,K127,"N/A"))))) -> 17 | L130: 1 | M130: Residuals Piping - Backfill and Compaction | N130: 1 | O130: 1 | P130: 1 | Q130: 1 | R130: 1 | S130: 1 | T130: 1 | U130: 1 | V130: 1 | W130: 1 | X130: 35.73340349
A131: 5.8.5 | B131: Thrust Blocks | C131: =res_block_vol -> 0.1645957732 | D131: cy | E131: NA | G131: NA | I131: =IF(C131=0,"NA",VLOOKUP(0,conc_basin_cost_cl,3)) -> 739.6055887 | J131: =IF(OR(I131="contact vendor",C131=0),"--",C131*I131) -> 121.7359537 | K131: =IF(I131="NA","N/A",IF(L124=1,K124,IF(L125=1,K125,IF(L126=1,K126,IF(L127=1,K127,"N/A"))))) -> 17 | L131: 1 | M131: Residuals Piping - Thrust Blocks | N131: 1 | O131: 1 | P131: 1 | Q131: 1 | R131: 1 | S131: 1 | T131: 1 | U131: 1 | V131: 1 | W131: 1 | X131: 7.160938455
A132: 5.9 | B132: Ferric Chloride Piping | W132: =IF(ISERROR(K132*L132),0,IF(K132<1,0,L132)) -> 0 | X132: =IF(W132,J132/K132,0) -> 0
A133: 5.9.1 | B133: CPVC | C133: =coag_pipe_length -> 0 | D133: lf | E133: =IF(C133=0,"NA",coag_pipe_diam) -> NA | F133: =IF(C133=0,"","in diam") ->  | G133: =IF(C133=0,"NA",IF(curve=1,coag_pipe_diam,VLOOKUP(coag_pipe_diam,cpvc_pipe_cost_cl,2))) -> NA | H133: =IF(C133=0,"","in diam") ->  | I133: =IF(C133=0,"NA",IF(curve=1,cpvc_pipe_eq_coag,VLOOKUP(coag_pipe_diam,cpvc_pipe_cost_cl,3))) -> NA | J133: =IF(OR(C133=0,I133="contact vendor"),"--",C133*I133) -> -- | K133: =IF(C133=0,"NA",VLOOKUP(coag_pipe_diam,cpvc_pipe_cost_cl,IF(ss_cat="large",4,5))) -> NA | M133: =$B$132&" "&" - "&B133 -> Ferric Chloride Piping - CPVC | N133: 2 | O133: 1 | P133: 1 | Q133: 2 | R133: 1 | S133: 1 | T133: 2 | U133: 1 | V133: 1 | W133: 0 | X133: 0
A134: 5.9.1 | B134: PVC | C134: =coag_pipe_length -> 0 | D134: lf | E134: =IF(C134=0,"NA",coag_pipe_diam) -> NA | F134: =IF(C134=0,"","in diam") ->  | G134: =IF(C134=0,"NA",IF(curve=1,coag_pipe_diam,VLOOKUP(coag_pipe_diam,pvc_pipe_cost_cl,2))) -> NA | H134: =IF(C134=0,"","in diam") ->  | I134: =IF(C134=0,"NA",IF(curve=1,pvc_pipe_eq_coag,VLOOKUP(coag_pipe_diam,pvc_pipe_cost_cl,3))) -> NA | J134: =IF(OR(C134=0,I134="contact vendor"),"--",C134*I134) -> -- | K134: =IF(C134=0,"NA",VLOOKUP(coag_pipe_diam,pvc_pipe_cost_cl,IF(ss_cat="large",4,5))) -> NA | M134: =$B$132&" "&" - "&B134 -> Ferric Chloride Piping - PVC | N134: 1 | O134: 2 | P134: 2 | Q134: 1 | R134: 2 | S134: 2 | T134: 1 | U134: 2 | V134: 2 | W134: 0 | X134: 0
A135: 5.10 | B135: Polymer Piping | W135: 0 | X135: 0
A136: 5.10.1 | B136: CPVC | C136: =polymer_pipe_length -> 0 | D136: lf | E136: =IF(C136=0,"NA",polymer_pipe_diam) -> NA | F136: =IF(C136=0,"","in diam") ->  | G136: =IF(C136=0,"NA",IF(curve=1,polymer_pipe_diam,VLOOKUP(polymer_pipe_diam,cpvc_pipe_cost_cl,2))) -> NA | H136: =IF(C136=0,"","in diam") ->  | I136: =IF(C136=0,"NA",IF(curve=1,cpvc_pipe_eq_polymer,VLOOKUP(polymer_pipe_diam,cpvc_pipe_cost_cl,3))) -> NA | J136: =IF(OR(C136=0,I136="contact vendor"),"--",C136*I136) -> -- | K136: =IF(C136=0,"NA",VLOOKUP(polymer_pipe_diam,cpvc_pipe_cost_cl,IF(ss_cat="large",4,5))) -> NA | M136: =$B$135&" "&" - "&B136 -> Polymer Piping - CPVC | N136: 2 | O136: 1 | P136: 3 | Q136: 2 | R136: 1 | S136: 3 | T136: 2 | U136: 1 | V136: 3 | W136: 0 | X136: 0
A137: 5.10.1 | B137: PVC | C137: =polymer_pipe_length -> 0 | D137: lf | E137: =IF(C137=0,"NA",polymer_pipe_diam) -> NA | F137: =IF(C137=0,"","in diam") ->  | G137: =IF(C137=0,"NA",IF(curve=1,polymer_pipe_diam,VLOOKUP(polymer_pipe_diam,pvc_pipe_cost_cl,2))) -> NA | H137: =IF(C137=0,"","in diam") ->  | I137: =IF(C137=0,"NA",IF(curve=1,pvc_pipe_eq_polymer,VLOOKUP(polymer_pipe_diam,pvc_pipe_cost_cl,3))) -> NA | J137: =IF(OR(C137=0,I137="contact vendor"),"--",C137*I137) -> -- | K137: =IF(C137=0,"NA",VLOOKUP(polymer_pipe_diam,pvc_pipe_cost_cl,IF(ss_cat="large",4,5))) -> NA | M137: =$B$135&" "&" - "&B137 -> Polymer Piping - PVC | N137: 1 | O137: 2 | P137: 4 | Q137: 1 | R137: 2 | S137: 4 | T137: 1 | U137: 2 | V137: 4 | W137: 0 | X137: 0
A138: 5.10.1 | B138: Stainless Steel | C138: =polymer_pipe_length -> 0 | D138: lf | E138: =IF(C138=0,"NA",polymer_pipe_diam) -> NA | F138: =IF(C138=0,"","in diam") ->  | G138: =IF(C138=0,"NA",IF(curve=1,polymer_pipe_diam,VLOOKUP(polymer_pipe_diam,ss_pipe_cost_cl,2))) -> NA | H138: =IF(C138=0,"","in diam") ->  | I138: =IF(C138=0,"NA",IF(curve=1,ss_pipe_eq_polymer,VLOOKUP(polymer_pipe_diam,ss_pipe_cost_cl,3))) -> NA | J138: =IF(OR(C138=0,I138="contact vendor"),"--",C138*I138) -> -- | K138: =IF(C138=0,"NA",VLOOKUP(polymer_pipe_diam,ss_pipe_cost_cl,IF(ss_cat="large",4,5))) -> NA | M138: =$B$135&" "&" - "&B138 -> Polymer Piping - Stainless Steel | N138: 4 | O138: 4 | P138: 1 | Q138: 4 | R138: 4 | S138: 1 | T138: 4 | U138: 4 | V138: 1 | W138: 0 | X138: 0
A139: 5.10.1 | B139: Steel | C139: =polymer_pipe_length -> 0 | D139: lf | E139: =IF(C139=0,"NA",polymer_pipe_diam) -> NA | F139: =IF(C139=0,"","in diam") ->  | G139: =IF(C139=0,"NA",IF(curve=1,polymer_pipe_diam,VLOOKUP(polymer_pipe_diam,st_pipe_cost_cl,2))) -> NA | H139: =IF(C139=0,"","in diam") ->  | I139: =IF(C139=0,"NA",IF(curve=1,st_pipe_eq_polymer,VLOOKUP(polymer_pipe_diam,st_pipe_cost_cl,3))) -> NA | J139: =IF(OR(C139=0,I139="contact vendor"),"--",C139*I139) -> -- | K139: =IF(C139=0,"NA",VLOOKUP(polymer_pipe_diam,st_pipe_cost_cl,IF(ss_cat="large",4,5))) -> NA | M139: =$B$135&" "&" - "&B139 -> Polymer Piping - Steel | N139: 3 | O139: 3 | P139: 2 | Q139: 3 | R139: 3 | S139: 2 | T139: 3 | U139: 3 | V139: 2 | W139: 0 | X139: 0
A140: 6 | B140: Valves and Fittings | W140: 0 | X140: 0
A141: 6.1 | B141: Motor/Air Operated (on/off) | W141: 0 | X141: 0
A142: 6.1.1 | B142: Process - Polypropylene/PVC | C142: =tot_proc_MOVs -> 6 | D142: units | E142: =tank_valve_size -> 2 | F142: in. diam | G142: =IF(curve=1,tank_valve_size,VLOOKUP(tank_valve_size,pp_mov_cost_cl,2)) -> 2 | H142: in. diam | I142: =IF(curve=1,pp_mov_eq_tank,VLOOKUP(tank_valve_size,pp_mov_cost_cl,3)) -> 861.9873313 | J142: =IF(I142="contact vendor","--",C142*I142) -> 5171.923988 | K142: =VLOOKUP(tank_valve_size,pp_mov_cost_cl,IF(ss_cat="large",4,5)) -> 20 | L142: 1 | M142: =$B$140 & " - " & $B$141&" "&" - "&B142 -> Valves and Fittings - Motor/Air Operated (on/off) - Process - Polypropylene/PVC | N142: 1 | O142: 2 | P142: 3 | Q142: 1 | R142: 2 | S142: 3 | T142: 1 | U142: 2 | V142: 3 | W142: 1 | X142: 258.5961994
A143: 6.1.1 | B143: Process - Stainless Steel | C143: =tot_proc_MOVs -> 6 | D143: units | E143: =tank_valve_size -> 2 | F143: in. diam | G143: =IF(curve=1,tank_valve_size,VLOOKUP(tank_valve_size,ss_mov_cost_cl,2)) -> 2 | H143: in. diam | I143: =IF(curve=1,ss_mov_eq_tank,VLOOKUP(tank_valve_size,ss_mov_cost_cl,3)) -> 1534.037501 | J143: =IF(I143="contact vendor","--",C143*I143) -> 9204.225004 | K143: =VLOOKUP(tank_valve_size,ss_mov_cost_cl,IF(ss_cat="large",4,5)) -> 20 | L143: 0 | M143: =$B$140 & " - " & $B$141&" "&" - "&B143 -> Valves and Fittings - Motor/Air Operated (on/off) - Process - Stainless Steel | N143: 3 | O143: 3 | P143: 1 | Q143: 3 | R143: 3 | S143: 1 | T143: 3 | U143: 3 | V143: 1 | W143: 0 | X143: 0
A144: 6.1.1 | B144: Process - Cast Iron | C144: =tot_proc_MOVs -> 6 | D144: units | E144: =tank_valve_size -> 2 | F144: in. diam | G144: =IF(curve=1,tank_valve_size,VLOOKUP(tank_valve_size,ci_mov_cost_cl,2)) -> 2 | H144: in. diam | I144: =IF(curve=1,pp_mov_eq_tank,VLOOKUP(tank_valve_size,ci_mov_cost_cl,3)) -> 861.9873313 | J144: =IF(I144="contact vendor","--",C144*I144) -> 5171.923988 | K144: =VLOOKUP(tank_valve_size,ci_mov_cost_cl,IF(ss_cat="large",4,5)) -> 20 | L144: 0 | M144: Valves and Fittings - Motor/Air Operated (on/off) - Process - Cast Iron | N144: 2 | O144: 1 | P144: 2 | Q144: 2 | R144: 1 | S144: 2 | T144: 2 | U144: 1 | V144: 2 | W144: 0 | X144: 0
A145: 6.1.2 | B145: Backwash - Polypropylene/PVC | C145: =tot_back_MOVs -> 5 | D145: units | E145: =IF(tot_back_MOVs=0,"NA",back_valve_size) -> 1 | F145: =IF(tot_back_MOVs=0,"","in. diam") -> in. diam | G145: =IF(tot_back_MOVs=0,"NA",IF(curve=1,back_valve_size,VLOOKUP(back_valve_size,pp_mov_cost_cl,2))) -> 1 | H145: =IF(tot_back_MOVs=0,"","in. diam") -> in. diam | I145: =IF(tot_back_MOVs=0,"NA",IF(curve=1,pp_mov_eq_back,VLOOKUP(back_valve_size,pp_mov_cost_cl,3))) -> 718.5617205 | J145: =IF(tot_back_MOVs=0,"--",IF(I145="contact vendor","--",C145*I145)) -> 3592.808602 | K145: =IF(tot_back_MOVs=0,"NA",VLOOKUP(back_valve_size,pp_mov_cost_cl,IF(ss_cat="large",4,5))) -> 20 | L145: 1 | M145: Valves and Fittings - Motor/Air Operated (on/off) - Backwash - Polypropylene/PVC | N145: 1 | O145: 2 | P145: 3 | Q145: 1 | R145: 2 | S145: 3 | T145: 1 | U145: 2 | V145: 3 | W145: 1 | X145: 179.6404301
A146: 6.1.2 | B146: Backwash - Stainless Steel | C146: =tot_back_MOVs -> 5 | D146: units | E146: =IF(tot_back_MOVs=0,"NA",back_valve_size) -> 1 | F146: =IF(tot_back_MOVs=0,"","in. diam") -> in. diam | G146: =IF(tot_back_MOVs=0,"NA",IF(curve=1,back_valve_size,VLOOKUP(back_valve_size,ss_mov_cost_cl,2))) -> 1 | H146: in. diam | I146: =IF(tot_back_MOVs=0,"NA",IF(curve=1,ss_mov_eq_back,VLOOKUP(back_valve_size,ss_mov_cost_cl,3))) -> 1432.791532 | J146: =IF(tot_back_MOVs=0,"--",IF(I146="contact vendor","--",C146*I146)) -> 7163.957658 | K146: =IF(tot_back_MOVs=0,"NA",VLOOKUP(back_valve_size,ss_mov_cost_cl,IF(ss_cat="large",4,5))) -> 20 | L146: 0 | M146: Valves and Fittings - Motor/Air Operated (on/off) - Backwash - Stainless Steel | N146: 3 | O146: 3 | P146: 1 | Q146: 3 | R146: 3 | S146: 1 | T146: 3 | U146: 3 | V146: 1 | W146: 0 | X146: 0
A147: 6.1.2 | B147: Backwash - Cast Iron | C147: =tot_back_MOVs -> 5 | D147: units | E147: =IF(tot_back_MOVs=0,"NA",back_valve_size) -> 1 | F147: in. diam | G147: =IF(tot_back_MOVs=0,"NA",IF(curve=1,back_valve_size,VLOOKUP(back_valve_size,ci_mov_cost_cl,2))) -> 1 | H147: in. diam | I147: =IF(tot_back_MOVs=0,"NA",IF(curve=1,ci_mov_eq_back,VLOOKUP(back_valve_size,ci_mov_cost_cl,3))) -> 139.5635155 | J147: =IF(tot_back_MOVs=0,"--",IF(I147="contact vendor","--",C147*I147)) -> 697.8175776 | K147: =IF(tot_back_MOVs=0,"NA",VLOOKUP(back_valve_size,ci_mov_cost_cl,IF(ss_cat="large",4,5))) -> 20 | L147: 0 | M147: =$B$140 & " - " & $B$141&" "&" - "&B147 -> Valves and Fittings - Motor/Air Operated (on/off) - Backwash - Cast Iron | N147: 2 | O147: 1 | P147: 2 | Q147: 2 | R147: 1 | S147: 2 | T147: 2 | U147: 1 | V147: 2 | W147: 0 | X147: 0
A148: 6.1.3 | B148: Regenerant - Polypropylene/PVC | C148: =tot_brine_MOVs -> 0 | D148: units | E148: =IF(tot_brine_MOVs=0,"NA",brine_valve_size) -> NA | F148: =IF(tot_brine_MOVs=0,"","in. diam") ->  | G148: =IF(tot_brine_MOVs=0,"NA",IF(curve=1,brine_valve_size,VLOOKUP(brine_valve_size,pp_mov_cost_cl,2))) -> NA | H148: =IF(tot_brine_MOVs=0,"","in. diam") ->  | I148: =IF(tot_brine_MOVs=0,"NA",IF(curve=1,pp_mov_eq_brine,VLOOKUP(brine_valve_size,pp_mov_cost_cl,3))) -> NA | J148: =IF(tot_brine_MOVs=0,"--",IF(I148="contact vendor","--",C148*I148)) -> -- | K148: =IF(tot_brine_MOVs=0,"NA",VLOOKUP(brine_valve_size,pp_mov_cost_cl,IF(ss_cat="large",4,5))) -> NA | M148: Valves and Fittings - Motor/Air Operated (on/off) - Regenerant - Polypropylene/PVC | N148: 1 | O148: 2 | P148: 2 | Q148: 1 | R148: 2 | S148: 2 | T148: 1 | U148: 2 | V148: 2 | W148: 0 | X148: 0
A149: 6.1.3 | B149: Regenerant - Stainless Steel | C149: =tot_brine_MOVs -> 0 | D149: units | E149: =IF(tot_brine_MOVs=0,"NA",brine_valve_size) -> NA | F149: =IF(tot_brine_MOVs=0,"","in. diam") ->  | G149: =IF(tot_brine_MOVs=0,"NA",IF(curve=1,brine_valve_size,VLOOKUP(brine_valve_size,ss_mov_cost_cl,2))) -> NA | H149: =IF(tot_brine_MOVs=0,"","in. diam") ->  | I149: =IF(tot_brine_MOVs=0,"NA",IF(curve=1,ss_mov_eq_brine,VLOOKUP(brine_valve_size,ss_mov_cost_cl,3))) -> NA | J149: =IF(tot_brine_MOVs=0,"--",IF(I149="contact vendor","--",C149*I149)) -> -- | K149: =IF(tot_brine_MOVs=0,"NA",VLOOKUP(brine_valve_size,ss_mov_cost_cl,IF(ss_cat="large",4,5))) -> NA | M149: Valves and Fittings - Motor/Air Operated (on/off) - Regenerant - Stainless Steel | N149: 2 | O149: 1 | P149: 1 | Q149: 2 | R149: 1 | S149: 1 | T149: 2 | U149: 1 | V149: 1 | W149: 0 | X149: 0
A150: 6.1.4 | B150: Bypass - Polypropylene/PVC | C150: =IF(bp_pct>0,tot_bp_MOVs,0) -> 0 | D150: units | E150: =IF(bp_pct=0,"NA",bypass_valve_size) -> NA | F150: =IF(bp_pct=0," ","in. diam") ->  | G150: =IF(bp_pct=0,"NA",(IF(curve=1,bypass_valve_size,VLOOKUP(bypass_valve_size,pp_mov_cost_cl,2)))) -> NA | H150: =IF(bp_pct=0," ","in. diam") ->  | I150: =IF(bp_pct=0,"NA",(IF(curve=1,pp_mov_eq_bp,VLOOKUP(bypass_valve_size,pp_mov_cost_cl,3)))) -> NA | J150: =IF(OR(C150=0,I150="contact vendor"),"--",C150*I150) -> -- | K150: =IF(bp_pct=0,"NA",VLOOKUP(bypass_valve_size,pp_mov_cost_cl,IF(ss_cat="large",4,5))) -> NA | M150: Valves and Fittings - Motor/Air Operated (on/off) - Bypass - Polypropylene/PVC | N150: 1 | O150: 2 | P150: 3 | Q150: 1 | R150: 2 | S150: 3 | T150: 1 | U150: 2 | V150: 3 | W150: 0 | X150: 0
A151: 6.1.4 | B151: Bypass - Stainless Steel | C151: =IF(bp_pct>0,tot_bp_MOVs,0) -> 0 | D151: units | E151: =IF(bp_pct=0,"NA",bypass_valve_size) -> NA | F151: =IF(bp_pct=0," ","in. diam") ->  | G151: =IF(bp_pct=0,"NA",(IF(curve=1,bypass_valve_size,VLOOKUP(bypass_valve_size,ss_mov_cost_cl,2)))) -> NA | H151: =IF(bp_pct=0," ","in. diam") ->  | I151: =IF(bp_pct=0,"NA",(IF(curve=1,ss_mov_eq_bp,VLOOKUP(bypass_valve_size,ss_mov_cost_cl,3)))) -> NA | J151: =IF(OR(C151=0,I151="contact vendor"),"--",C151*I151) -> -- | K151: =IF(bp_pct=0,"NA",VLOOKUP(bypass_valve_size,ss_mov_cost_cl,IF(ss_cat="large",4,5))) -> NA | M151: Valves and Fittings - Motor/Air Operated (on/off) - Bypass - Stainless Steel | N151: 3 | O151: 3 | P151: 1 | Q151: 3 | R151: 3 | S151: 1 | T151: 3 | U151: 3 | V151: 1 | W151: 0 | X151: 0
A152: 6.1.4 | B152: Bypass - Cast Iron | C152: =IF(bp_pct>0,tot_bp_MOVs,0) -> 0 | D152: units | E152: =IF(bp_pct=0,"NA",bypass_valve_size) -> NA | F152: =IF(bp_pct=0," ","in. diam") ->  | G152: =IF(bp_pct=0,"NA",(IF(curve=1,bypass_valve_size,VLOOKUP(bypass_valve_size,ci_mov_cost_cl,2)))) -> NA | H152: =IF(bp_pct=0," ","in. diam") ->  | I152: =IF(bp_pct=0,"NA",(IF(curve=1,ci_mov_eq_bp,VLOOKUP(bypass_valve_size,ci_mov_cost_cl,3)))) -> NA | J152: =IF(OR(C152=0,I152="contact vendor"),"--",C152*I152) -> -- | K152: =IF(bp_pct=0,"NA",VLOOKUP(bypass_valve_size,ci_mov_cost_cl,IF(ss_cat="large",4,5))) -> NA | M152: =$B$140 & " - " & $B$141&" "&" - "&B152 -> Valves and Fittings - Motor/Air Operated (on/off) - Bypass - Cast Iron | N152: 2 | O152: 1 | P152: 2 | Q152: 2 | R152: 1 | S152: 2 | T152: 2 | U152: 1 | V152: 2 | W152: 0 | X152: 0
A153: 6.1.5 | B153: Acid - Polypropylene/PVC | C153: =tot_acid_MOVs -> 0 | D153: units | E153: =IF(tot_acid_MOVs=0,"NA",acid_valve_size) -> NA | F153: =IF(tot_acid_MOVs=0,"","in. diam") ->  | G153: =IF(tot_acid_MOVs=0,"NA",IF(curve=1,acid_valve_size,VLOOKUP(acid_valve_size,pp_mov_cost_cl,2))) -> NA | H153: =IF(tot_acid_MOVs=0,"","in. diam") ->  | I153: =IF(tot_acid_MOVs=0,"NA",IF(curve=1,pp_mov_eq_acid,VLOOKUP(acid_valve_size,pp_mov_cost_cl,3))) -> NA | J153: =IF(tot_acid_MOVs=0,"--",IF(I153="contact vendor","--",C153*I153)) -> -- | K153: =IF(tot_acid_MOVs=0,"NA",VLOOKUP(acid_valve_size,pp_mov_cost_cl,IF(ss_cat="large",4,5))) -> NA | M153: Valves and Fittings - Motor/Air Operated (on/off) - Acid - Polypropylene/PVC | N153: 1 | O153: 2 | P153: 2 | Q153: 1 | R153: 2 | S153: 2 | T153: 1 | U153: 2 | V153: 2 | W153: 0 | X153: 0
A154: 6.1.5 | B154: Acid - Stainless Steel | C154: =tot_acid_MOVs -> 0 | D154: units | E154: =IF(tot_acid_MOVs=0,"NA",acid_valve_size) -> NA | F154: =IF(tot_acid_MOVs=0,"","in. diam") ->  | G154: =IF(tot_acid_MOVs=0,"NA",IF(curve=1,acid_valve_size,VLOOKUP(acid_valve_size,ss_mov_cost_cl,2))) -> NA | H154: =IF(tot_acid_MOVs=0,"","in. diam") ->  | I154: =IF(tot_acid_MOVs=0,"NA",IF(curve=1,ss_mov_eq_acid,VLOOKUP(acid_valve_size,ss_mov_cost_cl,3))) -> NA | J154: =IF(tot_acid_MOVs=0,"--",IF(I154="contact vendor","--",C154*I154)) -> -- | K154: =IF(tot_acid_MOVs=0,"NA",VLOOKUP(acid_valve_size,ss_mov_cost_cl,IF(ss_cat="large",4,5))) -> NA | M154: Valves and Fittings - Motor/Air Operated (on/off) - Acid - Stainless Steel | N154: 2 | O154: 1 | P154: 1 | Q154: 2 | R154: 1 | S154: 1 | T154: 2 | U154: 1 | V154: 1 | W154: 0 | X154: 0
A155: 6.1.6 | B155: Caustic - Polypropylene/PVC | C155: =tot_caustic_MOVs -> 0 | D155: units | E155: =IF(tot_caustic_MOVs=0,"NA",caustic_valve_size) -> NA | F155: =IF(tot_caustic_MOVs=0,"","in. diam") ->  | G155: =IF(tot_caustic_MOVs=0,"NA",IF(curve=1,caustic_valve_size,VLOOKUP(caustic_valve_size,pp_mov_cost_cl,2))) -> NA | H155: =IF(tot_caustic_MOVs=0,"","in. diam") ->  | I155: =IF(tot_caustic_MOVs=0,"NA",IF(curve=1,pp_mov_eq_caustic,VLOOKUP(caustic_valve_size,pp_mov_cost_cl,3))) -> NA | J155: =IF(tot_caustic_MOVs=0,"--",IF(I155="contact vendor","--",C155*I155)) -> -- | K155: =IF(tot_caustic_MOVs=0,"NA",VLOOKUP(caustic_valve_size,pp_mov_cost_cl,IF(ss_cat="large",4,5))) -> NA | M155: Valves and Fittings - Motor/Air Operated (on/off) - Caustic - Polypropylene/PVC | N155: 1 | O155: 2 | P155: 2 | Q155: 1 | R155: 2 | S155: 2 | T155: 1 | U155: 2 | V155: 2 | W155: 0 | X155: 0
A156: 6.1.6 | B156: Caustic - Stainless Steel | C156: =tot_caustic_MOVs -> 0 | D156: units | E156: =IF(tot_caustic_MOVs=0,"NA",caustic_valve_size) -> NA | F156: =IF(tot_caustic_MOVs=0,"","in. diam") ->  | G156: =IF(tot_caustic_MOVs=0,"NA",IF(curve=1,caustic_valve_size,VLOOKUP(caustic_valve_size,ss_mov_cost_cl,2))) -> NA | H156: =IF(tot_caustic_MOVs=0,"","in. diam") ->  | I156: =IF(tot_caustic_MOVs=0,"NA",IF(curve=1,ss_mov_eq_caustic,VLOOKUP(caustic_valve_size,ss_mov_cost_cl,3))) -> NA | J156: =IF(tot_caustic_MOVs=0,"--",IF(I156="contact vendor","--",C156*I156)) -> -- | K156: =IF(tot_caustic_MOVs=0,"NA",VLOOKUP(caustic_valve_size,ss_mov_cost_cl,IF(ss_cat="large",4,5))) -> NA | M156: Valves and Fittings - Motor/Air Operated (on/off) - Caustic - Stainless Steel | N156: 2 | O156: 1 | P156: 1 | Q156: 2 | R156: 1 | S156: 1 | T156: 2 | U156: 1 | V156: 1 | W156: 0 | X156: 0
A157: 6.1.7 | B157: Residuals - Polypropylene/PVC | C157: =total_res_MOVs -> 0 | D157: units | E157: =IF(C157=0,"NA",res_valve_size) -> NA | F157: =IF(C157=0,"","in. diam") ->  | G157: =IF(C157=0,"NA",IF(curve=1,res_valve_size,VLOOKUP(res_valve_size,pp_mov_cost_cl,2))) -> NA | H157: =IF(C157=0,"","in. diam") ->  | I157: =IF(C157=0,0,IF(curve=1,pp_mov_eq_res,VLOOKUP(res_valve_size,pp_mov_cost_cl,3))) -> 0 | J157: =IF(I157="contact vendor","--",C157*I157) -> 0 | K157: =IF(C157=0,"NA",VLOOKUP(res_valve_size,pp_mov_cost_cl,IF(ss_cat="large",4,5))) -> NA | M157: Valves and Fittings - Motor/Air Operated (on/off) - Residuals - Polypropylene/PVC | N157: 1 | O157: 2 | P157: 3 | Q157: 1 | R157: 2 | S157: 3 | T157: 1 | U157: 2 | V157: 3 | W157: 0 | X157: 0
A158: 6.1.7 | B158: Residuals - Stainless Steel | C158: =total_res_MOVs -> 0 | D158: units | E158: =IF(C158=0,"NA",res_valve_size) -> NA | G158: =IF(C158=0,"NA",IF(curve=1,res_valve_size,VLOOKUP(res_valve_size,ss_mov_cost_cl,2))) -> NA | I158: =IF(C158=0,0,IF(curve=1,ss_mov_eq_res,VLOOKUP(res_valve_size,ss_mov_cost_cl,3))) -> 0 | J158: =IF(I158="contact vendor","--",C158*I158) -> 0 | K158: =IF(C158=0,"NA",VLOOKUP(res_valve_size,ss_mov_cost_cl,IF(ss_cat="large",4,5))) -> NA | M158: Valves and Fittings - Motor/Air Operated (on/off) - Residuals - Stainless Steel | N158: 3 | O158: 3 | P158: 1 | Q158: 3 | R158: 3 | S158: 1 | T158: 3 | U158: 3 | V158: 1 | W158: 0 | X158: 0
A159: 6.1.7 | B159: Residuals - Cast Iron | C159: =total_res_MOVs -> 0 | D159: units | E159: =IF(C159=0,"NA",res_valve_size) -> NA | G159: =IF(C159=0,"NA",IF(curve=1,res_valve_size,VLOOKUP(res_valve_size,ci_mov_cost_cl,2))) -> NA | I159: =IF(C159=0,0,IF(curve=1,ci_mov_eq_res,VLOOKUP(res_valve_size,ci_mov_cost_cl,3))) -> 0 | J159: =IF(I159="contact vendor","--",C159*I159) -> 0 | K159: =IF(C159=0,"NA",VLOOKUP(res_valve_size,ci_mov_cost_cl,IF(ss_cat="large",4,5))) -> NA | M159: Valves and Fittings - Motor/Air Operated (on/off) - Residuals - Cast Iron | N159: 2 | O159: 1 | P159: 2 | Q159: 2 | R159: 1 | S159: 2 | T159: 2 | U159: 1 | V159: 2 | W159: 0 | X159: 0
A160: 6.1.8 | B160: Ferric Chloride - Polypropylene/PVC | C160: =tot_coag_MOVs -> 0 | D160: units | E160: =IF(C160=0,"NA",coag_valve_size) -> NA | F160: =IF(C160=0,"","in. diam") ->  | G160: =IF(C160=0,"NA",IF(curve=1,coag_valve_size,VLOOKUP(coag_valve_size,pp_mov_cost_cl,2))) -> NA | H160: =IF(C160=0,"","in. diam") ->  | I160: =IF(C160=0,"NA",IF(curve=1,pp_mov_eq_coag,VLOOKUP(coag_valve_size,pp_mov_cost_cl,3))) -> NA | J160: =IF(OR(C160=0,I160="contact vendor"),"--",C160*I160) -> -- | K160: =IF(C160=0,"NA",VLOOKUP(coag_valve_size,pp_mov_cost_cl,IF(ss_cat="large",4,5))) -> NA | M160: =$B$140 & " - " & $B$141&" "&" - "&B160 -> Valves and Fittings - Motor/Air Operated (on/off) - Ferric Chloride - Polypropylene/PVC | N160: 1 | O160: 1 | P160: 1 | Q160: 1 | R160: 1 | S160: 1 | T160: 1 | U160: 1 | V160: 1 | W160: =IF(ISERROR(K160*L160),0,IF(K160<1,0,L160)) -> 0 | X160: =IF(W160,J160/K160,0) -> 0
A161: 6.1.9 | B161: Polymer - Polypropylene/PVC | C161: =tot_polymer_MOVs -> 0 | D161: units | E161: =IF(C161=0,"NA",polymer_valve_size) -> NA | G161: =IF(C161=0,"NA",IF(curve=1,polymer_valve_size,VLOOKUP(polymer_valve_size,pp_mov_cost_cl,2))) -> NA | I161: =IF(C161=0,"NA",IF(curve=1,pp_mov_eq_polymer,VLOOKUP(polymer_valve_size,pp_mov_cost_cl,3))) -> NA | J161: =IF(OR(C161=0,I161="contact vendor"),"--",C161*I161) -> -- | K161: =IF(C161=0,"NA",VLOOKUP(polymer_valve_size,pp_mov_cost_cl,IF(ss_cat="large",4,5))) -> NA | M161: Valves and Fittings - Motor/Air Operated (on/off) - Polymer - Polypropylene/PVC | N161: 1 | O161: 2 | P161: 3 | Q161: 1 | R161: 2 | S161: 3 | T161: 1 | U161: 2 | V161: 3 | W161: 0 | X161: 0
A162: 6.1.9 | B162: Polymer - Stainless Steel | C162: =tot_polymer_MOVs -> 0 | D162: units | E162: =IF(C162=0,"NA",polymer_valve_size) -> NA | G162: =IF(C162=0,"NA",IF(curve=1,polymer_valve_size,VLOOKUP(polymer_valve_size,ss_mov_cost_cl,2))) -> NA | I162: =IF(C162=0,"NA",IF(curve=1,ss_mov_eq_polymer,VLOOKUP(polymer_valve_size,ss_mov_cost_cl,3))) -> NA | J162: =IF(OR(C162=0,I162="contact vendor"),"--",C162*I162) -> -- | K162: =IF(C162=0,"NA",VLOOKUP(polymer_valve_size,ss_mov_cost_cl,IF(ss_cat="large",4,5))) -> NA | M162: Valves and Fittings - Motor/Air Operated (on/off) - Polymer - Stainless Steel | N162: 3 | O162: 3 | P162: 1 | Q162: 3 | R162: 3 | S162: 1 | T162: 3 | U162: 3 | V162: 1 | W162: 0 | X162: 0
A163: 6.1.9 | B163: Polymer - Cast Iron | C163: =tot_polymer_MOVs -> 0 | D163: units | E163: =IF(C163=0,"NA",polymer_valve_size) -> NA | G163: =IF(C163=0,"NA",IF(curve=1,polymer_valve_size,VLOOKUP(polymer_valve_size,ci_mov_cost_cl,2))) -> NA | I163: =IF(C163=0,"NA",IF(curve=1,ci_mov_eq_polymer,VLOOKUP(polymer_valve_size,ci_mov_cost_cl,3))) -> NA | J163: =IF(OR(C163=0,I163="contact vendor"),"--",C163*I163) -> -- | K163: =IF(C163=0,"NA",VLOOKUP(polymer_valve_size,ci_mov_cost_cl,IF(ss_cat="large",4,5))) -> NA | M163: Valves and Fittings - Motor/Air Operated (on/off) - Polymer - Cast Iron | N163: 2 | O163: 1 | P163: 2 | Q163: 2 | R163: 1 | S163: 2 | T163: 2 | U163: 1 | V163: 2 | W163: 0 | X163: 0
A164: 6.2 | B164: Manual | W164: 0 | X164: 0
A165: 6.2.1 | B165: Influent and treated water - Polypropylene/PVC | C165: =tot_man_valves -> 2 | D165: units | E165: =in_valve_size -> 1.5 | F165: in. diam | G165: =IF(curve=1,in_valve_size,VLOOKUP(in_valve_size,pp_man_cost_cl,2)) -> 1.5 | H165: in. diam | I165: =IF(curve=1,pp_man_eq,VLOOKUP(in_valve_size,pp_man_cost_cl,3)) -> 207.8491463 | J165: =IF(I165="contact vendor","--",C165*I165) -> 415.6982927 | K165: =VLOOKUP(in_valve_size,pp_man_cost_cl,IF(ss_cat="large",4,5)) -> 20 | L165: 1 | M165: =$B$140 & " - " & $B$164&" "&" - "&B165 -> Valves and Fittings - Manual - Influent and treated water - Polypropylene/PVC | N165: 1 | O165: 2 | P165: 3 | Q165: 1 | R165: 2 | S165: 3 | T165: 1 | U165: 2 | V165: 3 | W165: 1 | X165: 20.78491463
A166: 6.2.1 | B166: Influent and treated water - Stainless Steel | C166: =tot_man_valves -> 2 | D166: units | E166: =in_valve_size -> 1.5 | F166: in. diam | G166: =IF(curve=1,in_valve_size,VLOOKUP(in_valve_size,ss_man_cost_cl,2)) -> 1.5 | H166: in. diam | I166: =IF(curve=1,ss_man_eq,VLOOKUP(in_valve_size,ss_man_cost_cl,3)) -> 395.8808732 | J166: 791.7617464 | K166: =VLOOKUP(in_valve_size,ss_man_cost_cl,IF(ss_cat="large",4,5)) -> 20 | L166: 0 | M166: Valves and Fittings - Manual - Influent and treated water - Stainless Steel | N166: 3 | O166: 3 | P166: 1 | Q166: 3 | R166: 3 | S166: 1 | T166: 3 | U166: 3 | V166: 1 | W166: 0 | X166: 0
A167: 6.2.1 | B167: Influent and treated water - Cast Iron | C167: =tot_man_valves -> 2 | D167: units | E167: =in_valve_size -> 1.5 | F167: in. diam | G167: =IF(curve=1,in_valve_size,VLOOKUP(in_valve_size,ci_bfv_cost_cl,2)) -> 1.5 | H167: in. diam | I167: =IF(curve=1,ci_bfv_eq,VLOOKUP(in_valve_size,ci_bfv_cost_cl,3)) -> 338.9786776 | J167: 677.9573551 | K167: =VLOOKUP(in_valve_size,ci_bfv_cost_cl,IF(ss_cat="large",4,5)) -> 20 | L167: 0 | M167: Valves and Fittings - Manual - Influent and treated water - Cast Iron | N167: 2 | O167: 1 | P167: 2 | Q167: 2 | R167: 1 | S167: 2 | T167: 2 | U167: 1 | V167: 2 | W167: 0 | X167: 0
A168: 6.2.2 | B168: Process - Polypropylene/PVC | C168: =tot_proc_man -> 2 | D168: units | E168: =tank_valve_size -> 2 | F168: in. diam | G168: =IF(curve=1,tank_valve_size,VLOOKUP(tank_valve_size,pp_man_cost_cl,2)) -> 2 | H168: in. diam | I168: =IF(curve=1,pp_man_eq_proc,VLOOKUP(tank_valve_size,pp_man_cost_cl,3)) -> 251.584202 | J168: 503.168404 | K168: =VLOOKUP(tank_valve_size,pp_man_cost_cl,IF(ss_cat="large",4,5)) -> 20 | L168: 1 | M168: Valves and Fittings - Manual - Process - Polypropylene/PVC | N168: 1 | O168: 2 | P168: 3 | Q168: 1 | R168: 2 | S168: 3 | T168: 1 | U168: 2 | V168: 3 | W168: 1 | X168: 25.1584202
A169: 6.2.2 | B169: Process - Stainless Steel | C169: =tot_proc_man -> 2 | D169: units | E169: =tank_valve_size -> 2 | F169: in. diam | G169: =IF(curve=1,tank_valve_size,VLOOKUP(tank_valve_size,ss_man_cost_cl,2)) -> 2 | H169: in. diam | I169: =IF(curve=1,ss_man_eq_proc,VLOOKUP(tank_valve_size,ss_man_cost_cl,3)) -> 516.6909108 | J169: 1033.381822 | K169: =VLOOKUP(tank_valve_size,ss_man_cost_cl,IF(ss_cat="large",4,5)) -> 20 | L169: 0 | M169: Valves and Fittings - Manual - Process - Stainless Steel | N169: 3 | O169: 3 | P169: 1 | Q169: 3 | R169: 3 | S169: 1 | T169: 3 | U169: 3 | V169: 1 | W169: 0 | X169: 0
A170: 6.2.2 | B170: Process - Cast Iron | C170: =tot_proc_man -> 2 | D170: units | E170: =tank_valve_size -> 2 | F170: in. diam | G170: =IF(curve=1,tank_valve_size,VLOOKUP(tank_valve_size,ci_bfv_cost_cl,2)) -> 2 | H170: in. diam | I170: =IF(curve=1,ci_bfv_eq_proc,VLOOKUP(tank_valve_size,ci_bfv_cost_cl,3)) -> 458.0413185 | J170: 916.0826369 | K170: =VLOOKUP(tank_valve_size,ci_bfv_cost_cl,IF(ss_cat="large",4,5)) -> 20 | L170: 0 | M170: Valves and Fittings - Manual - Process - Cast Iron | N170: 2 | O170: 1 | P170: 2 | Q170: 2 | R170: 1 | S170: 2 | T170: 2 | U170: 1 | V170: 2 | W170: 0 | X170: 0
A171: 6.2.3 | B171: Backwash - Polypropylene/PVC | C171: =tot_back_man -> 0 | D171: units | E171: =IF(tot_back_man=0,"NA",back_valve_size) -> NA | F171: =IF(tot_back_man=0,"","in. diam") ->  | G171: =IF(curve=1,back_valve_size,VLOOKUP(back_valve_size,pp_man_cost_cl,2)) -> 1 | H171: =IF(tot_back_man=0,"","in. diam") ->  | I171: =IF(tot_back_man=0,"NA",IF(curve=1,pp_man_eq_back,VLOOKUP(back_valve_size,pp_man_cost_cl,3))) -> NA | J171: =IF(tot_back_man=0,"--",IF(I171="contact vendor","--",C171*I171)) -> -- | K171: =IF(tot_back_man=0,"NA",VLOOKUP(back_valve_size,pp_man_cost_cl,IF(ss_cat="large",4,5))) -> NA | M171: Valves and Fittings - Manual - Backwash - Polypropylene/PVC | N171: 1 | O171: 2 | P171: 3 | Q171: 1 | R171: 2 | S171: 3 | T171: 1 | U171: 2 | V171: 3 | W171: 0 | X171: 0
A172: 6.2.3 | B172: Backwash - Stainless Steel | C172: =tot_back_man -> 0 | D172: units | E172: =IF(tot_back_man=0,"NA",back_valve_size) -> NA | F172: =IF(tot_back_man=0,"","in. diam") ->  | G172: =IF(curve=1,back_valve_size,VLOOKUP(back_valve_size,ss_man_cost_cl,2)) -> 1 | H172: =IF(tot_back_man=0,"","in. diam") ->  | I172: =IF(tot_back_man=0,"NA",IF(curve=1,ss_man_eq_back,VLOOKUP(back_valve_size,ss_man_cost_cl,3))) -> NA | J172: =IF(tot_back_man=0,"--",IF(I172="contact vendor","--",C172*I172)) -> -- | K172: =IF(tot_back_man=0,"NA",VLOOKUP(back_valve_size,ss_man_cost_cl,IF(ss_cat="large",4,5))) -> NA | M172: Valves and Fittings - Manual - Backwash - Stainless Steel | N172: 3 | O172: 3 | P172: 1 | Q172: 3 | R172: 3 | S172: 1 | T172: 3 | U172: 3 | V172: 1 | W172: 0 | X172: 0
A173: 6.2.3 | B173: Backwash - Cast Iron | C173: =tot_back_man -> 0 | D173: units | E173: =IF(tot_back_man=0,"NA",back_valve_size) -> NA | F173: =IF(tot_back_man=0,"","in. diam") ->  | G173: =IF(curve=1,back_valve_size,VLOOKUP(back_valve_size,ci_bfv_cost_cl,2)) -> 1 | H173: =IF(tot_back_man=0,"","in. diam") ->  | I173: =IF(tot_back_man=0,"NA",IF(curve=1,ci_man_eq_back,VLOOKUP(back_valve_size,ci_bfv_cost_cl,3))) -> NA | J173: =IF(tot_back_man=0,"--",IF(I173="contact vendor","--",C173*I173)) -> -- | K173: =IF(tot_back_man=0,"NA",VLOOKUP(back_valve_size,ci_bfv_cost_cl,IF(ss_cat="large",4,5))) -> NA | M173: Valves and Fittings - Manual - Backwash - Cast Iron | N173: 2 | O173: 1 | P173: 2 | Q173: 2 | R173: 1 | S173: 2 | T173: 2 | U173: 1 | V173: 2 | W173: 0 | X173: 0
A174: 6.2.4 | B174: Regenerant - Polypropylene/PVC | C174: =tot_brine_man -> 0 | D174: units | E174: =IF(tot_brine_man=0,"NA",brine_valve_size) -> NA | F174: =IF(tot_brine_man=0,"","in. diam") ->  | G174: =IF(curve=1,brine_valve_size,VLOOKUP(brine_valve_size,pp_man_cost_cl,2)) -> 0 | H174: =IF(tot_brine_man=0,"","in. diam") ->  | I174: =IF(tot_brine_man=0,"NA",IF(curve=1,pp_man_eq_brine,VLOOKUP(brine_valve_size,pp_man_cost_cl,3))) -> NA | J174: =IF(tot_brine_man=0,"--",IF(I174="contact vendor","--",C174*I174)) -> -- | K174: =IF(tot_brine_man=0,"NA",VLOOKUP(brine_valve_size,pp_man_cost_cl,IF(ss_cat="large",4,5))) -> NA | M174: Valves and Fittings - Manual - Regenerant - Polypropylene/PVC | N174: 1 | O174: 2 | P174: 2 | Q174: 1 | R174: 2 | S174: 2 | T174: 1 | U174: 2 | V174: 2 | W174: 0 | X174: 0
A175: 6.2.4 | B175: Regenerant - Stainless Steel | C175: =tot_brine_man -> 0 | D175: units | E175: =IF(tot_brine_man=0,"NA",brine_valve_size) -> NA | F175: =IF(tot_brine_man=0,"","in. diam") ->  | G175: =IF(curve=1,brine_valve_size,VLOOKUP(brine_valve_size,ss_man_cost_cl,2)) -> 0 | H175: =IF(tot_brine_man=0,"","in. diam") ->  | I175: =IF(tot_brine_man=0,"NA",IF(curve=1,ss_man_eq_brine,VLOOKUP(brine_valve_size,ss_man_cost_cl,3))) -> NA | J175: =IF(tot_brine_man=0,"--",IF(I175="contact vendor","--",C175*I175)) -> -- | K175: =IF(tot_brine_man=0,"NA",VLOOKUP(brine_valve_size,ss_man_cost_cl,IF(ss_cat="large",4,5))) -> NA | M175: Valves and Fittings - Manual - Regenerant - Stainless Steel | N175: 2 | O175: 1 | P175: 1 | Q175: 2 | R175: 1 | S175: 1 | T175: 2 | U175: 1 | V175: 1 | W175: 0 | X175: 0
A176: 6.2.5 | B176: Bypass - Polypropylene/PVC | C176: =IF(bp_pct>0,tot_bp_man,0) -> 0 | D176: units | E176: =IF(bp_pct=0,"NA",bypass_valve_size) -> NA | F176: =IF(bp_pct=0," ","in. diam") ->  | G176: =IF(bp_pct=0,"NA",(IF(curve=1,bypass_valve_size,VLOOKUP(bypass_valve_size,pp_man_cost_cl,2)))) -> NA | H176: =IF(bp_pct=0," ","in. diam") ->  | I176: =IF(bp_pct=0,"NA",(IF(curve=1,pp_man_eq_bp,VLOOKUP(bypass_valve_size,pp_man_cost_cl,3)))) -> NA | J176: =IF(OR(C176=0,I176="contact vendor"),"--",C176*I176) -> -- | K176: =IF(bp_pct=0,"NA",VLOOKUP(bypass_valve_size,pp_man_cost_cl,IF(ss_cat="large",4,5))) -> NA | M176: Valves and Fittings - Manual - Bypass - Polypropylene/PVC | N176: 1 | O176: 2 | P176: 3 | Q176: 1 | R176: 2 | S176: 3 | T176: 1 | U176: 2 | V176: 3 | W176: 0 | X176: 0
A177: 6.2.5 | B177: Bypass - Stainless Steel | C177: =IF(bp_pct>0,tot_bp_man,0) -> 0 | D177: units | E177: =IF(bp_pct=0,"NA",bypass_valve_size) -> NA | F177: =IF(bp_pct=0," ","in. diam") ->  | G177: =IF(bp_pct=0,"NA",(IF(curve=1,bypass_valve_size,VLOOKUP(bypass_valve_size,ss_man_cost_cl,2)))) -> NA | H177: =IF(bp_pct=0," ","in. diam") ->  | I177: =IF(bp_pct=0,"NA",(IF(curve=1,ss_man_eq_bp,VLOOKUP(bypass_valve_size,ss_man_cost_cl,3)))) -> NA | J177: =IF(OR(C177=0,I177="contact vendor"),"--",C177*I177) -> -- | K177: =IF(bp_pct=0,"NA",VLOOKUP(bypass_valve_size,ss_man_cost_cl,IF(ss_cat="large",4,5))) -> NA | M177: Valves and Fittings - Manual - Bypass - Stainless Steel | N177: 3 | O177: 3 | P177: 1 | Q177: 3 | R177: 3 | S177: 1 | T177: 3 | U177: 3 | V177: 1 | W177: 0 | X177: 0
A178: 6.2.5 | B178: Bypass - Cast Iron | C178: =IF(bp_pct>0,tot_bp_man,0) -> 0 | D178: units | E178: =IF(bp_pct=0,"NA",bypass_valve_size) -> NA | F178: =IF(bp_pct=0," ","in. diam") ->  | G178: =IF(bp_pct=0,"NA",(IF(curve=1,bypass_valve_size,VLOOKUP(bypass_valve_size,ci_bfv_cost_cl,2)))) -> NA | H178: =IF(bp_pct=0," ","in. diam") ->  | I178: =IF(bp_pct=0,"NA",(IF(curve=1,ci_man_eq_bp,VLOOKUP(bypass_valve_size,ci_bfv_cost_cl,3)))) -> NA | J178: =IF(OR(C178=0,I178="contact vendor"),"--",C178*I178) -> -- | K178: =IF(bp_pct=0,"NA",VLOOKUP(bypass_valve_size,ci_bfv_cost_cl,IF(ss_cat="large",4,5))) -> NA | M178: Valves and Fittings - Manual - Bypass - Cast Iron | N178: 2 | O178: 1 | P178: 2 | Q178: 2 | R178: 1 | S178: 2 | T178: 2 | U178: 1 | V178: 2 | W178: 0 | X178: 0
A179: 6.2.6 | B179: Acid - Polypropylene/PVC | C179: =tot_acid_man -> 0 | D179: units | E179: =IF(tot_acid_man=0,"NA",acid_valve_size) -> NA | F179: =IF(tot_acid_man=0,"","in. diam") ->  | G179: =IF(tot_acid_man=0,"NA",IF(curve=1,acid_valve_size,VLOOKUP(acid_valve_size,pp_man_cost_cl,2))) -> NA | H179: =IF(tot_acid_man=0,"","in. diam") ->  | I179: =IF(tot_acid_man=0,"NA",IF(curve=1,pp_man_eq_acid,VLOOKUP(acid_valve_size,pp_man_cost_cl,3))) -> NA | J179: =IF(tot_acid_man=0,"--",IF(I179="contact vendor","--",C179*I179)) -> -- | K179: =IF(tot_acid_man=0,"NA",VLOOKUP(acid_valve_size,pp_man_cost_cl,IF(ss_cat="large",4,5))) -> NA | M179: Valves and Fittings - Manual - Acid - Polypropylene/PVC | N179: 1 | O179: 2 | P179: 2 | Q179: 1 | R179: 2 | S179: 2 | T179: 1 | U179: 2 | V179: 2 | W179: =IF(ISERROR(K179*L179),0,IF(K179<1,0,L179)) -> 0 | X179: =IF(W179,J179/K179,0) -> 0
A180: 6.2.6 | B180: Acid - Stainless Steel | C180: =tot_acid_man -> 0 | D180: units | E180: =IF(tot_acid_man=0,"NA",acid_valve_size) -> NA | F180: =IF(tot_acid_man=0,"","in. diam") ->  | G180: =IF(tot_acid_man=0,"NA",IF(curve=1,acid_valve_size,VLOOKUP(acid_valve_size,ss_man_cost_cl,2))) -> NA | H180: =IF(tot_acid_man=0,"","in. diam") ->  | I180: =IF(tot_acid_man=0,"NA",IF(curve=1,ss_man_eq_acid,VLOOKUP(acid_valve_size,ss_man_cost_cl,3))) -> NA | J180: =IF(tot_acid_man=0,"--",IF(I180="contact vendor","--",C180*I180)) -> -- | K180: =IF(tot_acid_man=0,"NA",VLOOKUP(acid_valve_size,ss_man_cost_cl,IF(ss_cat="large",4,5))) -> NA | M180: Valves and Fittings - Manual - Acid - Stainless Steel | N180: 2 | O180: 1 | P180: 1 | Q180: 2 | R180: 1 | S180: 1 | T180: 2 | U180: 1 | V180: 1 | W180: 0 | X180: 0
A181: 6.2.7 | B181: Caustic - Polypropylene/PVC | C181: =tot_caustic_man -> 0 | D181: units | E181: =IF(tot_caustic_man=0,"NA",caustic_valve_size) -> NA | F181: =IF(tot_caustic_man=0,"","in. diam") ->  | G181: =IF(tot_caustic_man=0,"NA",(IF(curve=1,caustic_valve_size,VLOOKUP(caustic_valve_size,pp_man_cost_cl,2)))) -> NA | H181: =IF(tot_caustic_man=0,"","in. diam") ->  | I181: =IF(tot_caustic_man=0,"NA",IF(curve=1,pp_man_eq_caustic,VLOOKUP(caustic_valve_size,pp_man_cost_cl,3))) -> NA | J181: =IF(tot_caustic_man=0,"--",IF(I181="contact vendor","--",C181*I181)) -> -- | K181: =IF(tot_caustic_man=0,"NA",VLOOKUP(caustic_valve_size,pp_man_cost_cl,IF(ss_cat="large",4,5))) -> NA | M181: Valves and Fittings - Manual - Caustic - Polypropylene/PVC | N181: 1 | O181: 2 | P181: 2 | Q181: 1 | R181: 2 | S181: 2 | T181: 1 | U181: 2 | V181: 2 | W181: 0 | X181: 0
A182: 6.2.7 | B182: Caustic - Stainless Steel | C182: =tot_caustic_man -> 0 | D182: units | E182: =IF(tot_caustic_man=0,"NA",caustic_valve_size) -> NA | F182: =IF(tot_caustic_man=0,"","in. diam") ->  | G182: =IF(tot_caustic_man=0,"NA",(IF(curve=1,caustic_valve_size,VLOOKUP(caustic_valve_size,ss_man_cost_cl,2)))) -> NA | H182: =IF(tot_caustic_man=0,"","in. diam") ->  | I182: =IF(tot_caustic_man=0,"NA",IF(curve=1,ss_man_eq_caustic,VLOOKUP(caustic_valve_size,ss_man_cost_cl,3))) -> NA | J182: =IF(tot_caustic_man=0,"--",IF(I182="contact vendor","--",C182*I182)) -> -- | K182: =IF(tot_caustic_man=0,"NA",VLOOKUP(caustic_valve_size,ss_man_cost_cl,IF(ss_cat="large",4,5))) -> NA | M182: Valves and Fittings - Manual - Caustic - Stainless Steel | N182: 2 | O182: 1 | P182: 1 | Q182: 2 | R182: 1 | S182: 1 | T182: 2 | U182: 1 | V182: 1 | W182: 0 | X182: 0
A183: 6.2.8 | B183: Residuals - Polypropylene/PVC | C183: =total_res_man -> 0 | D183: units | E183: =IF(C183=0,"NA",res_valve_size) -> NA | F183: =IF(C183=0,"","in. diam") ->  | G183: =IF(C183=0,"NA",IF(curve=1,res_valve_size,VLOOKUP(res_valve_size,pp_man_cost_cl,2))) -> NA | H183: =IF(C183=0,"","in. diam") ->  | I183: =IF(C183=0,"NA",IF(curve=1,pp_man_eq_res,VLOOKUP(res_valve_size,pp_man_cost_cl,3))) -> NA | J183: =IF(OR(C183=0,I183="contact vendor"),"--",C183*I183) -> -- | K183: =IF(C183=0,"NA",VLOOKUP(res_valve_size,pp_man_cost_cl,IF(ss_cat="large",4,5))) -> NA | M183: Valves and Fittings - Manual - Residuals - Polypropylene/PVC | N183: 1 | O183: 2 | P183: 3 | Q183: 1 | R183: 2 | S183: 3 | T183: 1 | U183: 2 | V183: 3 | W183: 0 | X183: 0
A184: 6.2.8 | B184: Residuals - Stainless Steel | C184: =total_res_man -> 0 | D184: units | E184: =IF(C184=0,"NA",res_valve_size) -> NA | G184: =IF(C184=0,"NA",IF(curve=1,res_valve_size,VLOOKUP(res_valve_size,ss_man_cost_cl,2))) -> NA | I184: =IF(C184=0,"NA",IF(curve=1,ss_man_eq_res,VLOOKUP(res_valve_size,ss_man_cost_cl,3))) -> NA | J184: -- | K184: =IF(C184=0,"NA",VLOOKUP(res_valve_size,ss_man_cost_cl,IF(ss_cat="large",4,5))) -> NA | M184: Valves and Fittings - Manual - Residuals - Stainless Steel | N184: 3 | O184: 3 | P184: 1 | Q184: 3 | R184: 3 | S184: 1 | T184: 3 | U184: 3 | V184: 1 | W184: 0 | X184: 0
A185: 6.2.8 | B185: Residuals - Cast Iron | C185: =total_res_man -> 0 | D185: units | E185: =IF(C185=0,"NA",res_valve_size) -> NA | G185: =IF(C185=0,"NA",IF(curve=1,res_valve_size,VLOOKUP(res_valve_size,ci_bfv_cost_cl,2))) -> NA | I185: =IF(C185=0,"NA",IF(curve=1,ci_man_eq_res,VLOOKUP(res_valve_size,ci_bfv_cost_cl,3))) -> NA | J185: -- | K185: =IF(C185=0,"NA",VLOOKUP(res_valve_size,ci_bfv_cost_cl,IF(ss_cat="large",4,5))) -> NA | M185: Valves and Fittings - Manual - Residuals - Cast Iron | N185: 2 | O185: 1 | P185: 2 | Q185: 2 | R185: 1 | S185: 2 | T185: 2 | U185: 1 | V185: 2 | W185: 0 | X185: 0
A186: 6.2.9 | B186: Ferric Chloride - Polypropylene/PVC | C186: =tot_coag_man -> 0 | D186: units | E186: =IF(C186=0,"NA",coag_valve_size) -> NA | F186: =IF(C186=0,"","in. diam") ->  | G186: =IF(C186=0,"NA",IF(curve=1,coag_valve_size,VLOOKUP(coag_valve_size,pp_man_cost_cl,2))) -> NA | H186: =IF(C186=0,"","in. diam") ->  | I186: =IF(C186=0,"NA",IF(curve=1,pp_man_eq_coag,VLOOKUP(coag_valve_size,pp_man_cost_cl,3))) -> NA | J186: =IF(OR(C186=0,I186="contact vendor"),"--",C186*I186) -> -- | K186: =IF(C186=0,"NA",VLOOKUP(coag_valve_size,pp_man_cost_cl,IF(ss_cat="large",4,5))) -> NA | M186: =$B$140 & " - " & $B$164&" "&" - "&B186 -> Valves and Fittings - Manual - Ferric Chloride - Polypropylene/PVC | N186: 1 | O186: 1 | P186: 1 | Q186: 1 | R186: 1 | S186: 1 | T186: 1 | U186: 1 | V186: 1 | W186: =IF(ISERROR(K186*L186),0,IF(K186<1,0,L186)) -> 0 | X186: =IF(W186,J186/K186,0) -> 0
A187: 6.2.10 | B187: Polymer - Polypropylene/PVC | C187: =tot_polymer_man -> 0 | D187: units | E187: =IF(C187=0,"NA",polymer_valve_size) -> NA | G187: =IF(C187=0,"NA",IF(curve=1,polymer_valve_size,VLOOKUP(polymer_valve_size,pp_man_cost_cl,2))) -> NA | I187: =IF(C187=0,"NA",IF(curve=1,pp_man_eq_polymer,VLOOKUP(polymer_valve_size,pp_man_cost_cl,3))) -> NA | J187: -- | K187: =IF(C187=0,"NA",VLOOKUP(polymer_valve_size,pp_man_cost_cl,IF(ss_cat="large",4,5))) -> NA | M187: Valves and Fittings - Manual - Polymer - Polypropylene/PVC | N187: 1 | O187: 2 | P187: 3 | Q187: 1 | R187: 2 | S187: 3 | T187: 1 | U187: 2 | V187: 3 | W187: 0 | X187: 0
A188: 6.2.10 | B188: Polymer - Stainless Steel | C188: =tot_polymer_man -> 0 | D188: units | E188: =IF(C188=0,"NA",polymer_valve_size) -> NA | G188: =IF(C188=0,"NA",IF(curve=1,polymer_valve_size,VLOOKUP(polymer_valve_size,ss_man_cost_cl,2))) -> NA | I188: =IF(C188=0,"NA",IF(curve=1,ss_man_eq_polymer,VLOOKUP(polymer_valve_size,ss_man_cost_cl,3))) -> NA | J188: -- | K188: =IF(C188=0,"NA",VLOOKUP(polymer_valve_size,ss_man_cost_cl,IF(ss_cat="large",4,5))) -> NA | M188: Valves and Fittings - Manual - Polymer - Stainless Steel | N188: 3 | O188: 3 | P188: 1 | Q188: 3 | R188: 3 | S188: 1 | T188: 3 | U188: 3 | V188: 1 | W188: 0 | X188: 0
A189: 6.2.10 | B189: Polymer - Cast Iron | C189: =tot_polymer_man -> 0 | D189: units | E189: =IF(C189=0,"NA",polymer_valve_size) -> NA | G189: =IF(C189=0,"NA",IF(curve=1,polymer_valve_size,VLOOKUP(polymer_valve_size,ci_bfv_cost_cl,2))) -> NA | I189: =IF(C189=0,"NA",IF(curve=1,ci_man_eq_polymer,VLOOKUP(polymer_valve_size,ci_bfv_cost_cl,3))) -> NA | J189: -- | K189: =IF(C189=0,"NA",VLOOKUP(polymer_valve_size,ci_bfv_cost_cl,IF(ss_cat="large",4,5))) -> NA | M189: Valves and Fittings - Manual - Polymer - Cast Iron | N189: 2 | O189: 1 | P189: 2 | Q189: 2 | R189: 1 | S189: 2 | T189: 2 | U189: 1 | V189: 2 | W189: 0 | X189: 0
A190: 6.3 | B190: Check Valves | W190: 0 | X190: 0
A191: 6.3.1 | B191: Backwash - Polypropylene/PVC | C191: =tot_back_chv -> 0 | D191: units | E191: =IF(C191=0,"NA",back_valve_size) -> NA | F191: =IF(C191=0,"","in. diam") ->  | G191: =IF(C191=0,"NA",(IF(curve=1,back_valve_size,VLOOKUP(back_valve_size,pp_chv_cost_cl,2)))) -> NA | H191: =IF(C191=0,"","in. diam") ->  | I191: =IF(C191=0,"NA",(IF(curve=1,pp_chv_eq,VLOOKUP(back_valve_size,pp_chv_cost_cl,3)))) -> NA | J191: =IF(C191=0,"--",(IF(I191="contact vendor","--",C191*I191))) -> -- | K191: =IF(C191=0,"NA",(VLOOKUP(back_valve_size,pp_chv_cost_cl,IF(ss_cat="large",4,5)))) -> NA | M191: =$B$140 & " - " & $B$190&" "&" - "&B191 -> Valves and Fittings - Check Valves - Backwash - Polypropylene/PVC | N191: 1 | O191: 2 | P191: 3 | Q191: 1 | R191: 2 | S191: 3 | T191: 1 | U191: 2 | V191: 3 | W191: 0 | X191: 0
A192: 6.3.1 | B192: Backwash - Stainless Steel | C192: =tot_back_chv -> 0 | D192: units | E192: =IF(C192=0,"NA",back_valve_size) -> NA | F192: =IF(C192=0,"","in. diam") ->  | G192: =IF(C192=0,"NA",(IF(curve=1,back_valve_size,VLOOKUP(back_valve_size,ss_chv_cost_cl,2)))) -> NA | H192: =IF(C192=0,"","in. diam") ->  | I192: =IF(C192=0,"NA",(IF(curve=1,ss_chv_eq,VLOOKUP(back_valve_size,ss_chv_cost_cl,3)))) -> NA | J192: =IF(C192=0,"--",(IF(I192="contact vendor","--",C192*I192))) -> -- | K192: =IF(C192=0,"NA",(VLOOKUP(back_valve_size,ss_chv_cost_cl,IF(ss_cat="large",4,5)))) -> NA | M192: Valves and Fittings - Check Valves - Backwash - Stainless Steel | N192: 3 | O192: 3 | P192: 1 | Q192: 3 | R192: 3 | S192: 1 | T192: 3 | U192: 3 | V192: 1 | W192: 0 | X192: 0
A193: 6.3.1 | B193: Backwash - Cast Iron | C193: =tot_back_chv -> 0 | D193: units | E193: =IF(C193=0,"NA",back_valve_size) -> NA | F193: =IF(C193=0,"","in. diam") ->  | G193: =IF(C193=0,"NA",(IF(curve=1,back_valve_size,VLOOKUP(back_valve_size,ci_chv_cost_cl,2)))) -> NA | H193: =IF(C193=0,"","in. diam") ->  | I193: =IF(C193=0,"NA",(IF(curve=1,ci_chv_eq,VLOOKUP(back_valve_size,ci_chv_cost_cl,3)))) -> NA | J193: =IF(C193=0,"--",(IF(I193="contact vendor","--",C193*I193))) -> -- | K193: =IF(C193=0,"NA",(VLOOKUP(back_valve_size,ci_chv_cost_cl,IF(ss_cat="large",4,5)))) -> NA | M193: Valves and Fittings - Check Valves - Backwash - Cast Iron | N193: 2 | O193: 1 | P193: 2 | Q193: 2 | R193: 1 | S193: 2 | T193: 2 | U193: 1 | V193: 2 | W193: 0 | X193: 0
A194: 6.3.2 | B194: Influent and Treated Water - Polypropylene/PVC | C194: =tot_in_chv -> 2 | D194: units | E194: =in_valve_size -> 1.5 | F194: in. diam | G194: =IF(curve=1,in_valve_size,VLOOKUP(in_valve_size,pp_chv_cost_cl,2)) -> 1.5 | H194: in. diam | I194: =IF(curve=1,pp_chv_eq_in,VLOOKUP(in_valve_size,pp_chv_cost_cl,3)) -> 177.8274995 | J194: =IF(I194="contact vendor","--",C194*I194) -> 355.6549989 | K194: =VLOOKUP(in_valve_size,pp_chv_cost_cl,IF(ss_cat="large",4,5)) -> 20 | L194: 1 | M194: Valves and Fittings - Check Valves - Influent and Treated Water - Polypropylene/PVC | N194: 1 | O194: 2 | P194: 3 | Q194: 1 | R194: 2 | S194: 3 | T194: 1 | U194: 2 | V194: 3 | W194: 1 | X194: 17.78274995
A195: 6.3.2 | B195: Influent and Treated Water- Stainless Steel | C195: =tot_in_chv -> 2 | D195: units | E195: =in_valve_size -> 1.5 | F195: in. diam | G195: =IF(curve=1,in_valve_size,VLOOKUP(in_valve_size,ss_chv_cost_cl,2)) -> 1.5 | H195: in. diam | I195: =IF(curve=1,ss_chv_eq_in,VLOOKUP(in_valve_size,ss_chv_cost_cl,3)) -> 492.6734899 | J195: =IF(I195="contact vendor","--",C195*I195) -> 985.3469798 | K195: =VLOOKUP(in_valve_size,ss_chv_cost_cl,IF(ss_cat="large",4,5)) -> 20 | L195: 0 | M195: Valves and Fittings - Check Valves - Influent and Treated Water- Stainless Steel | N195: 3 | O195: 3 | P195: 1 | Q195: 3 | R195: 3 | S195: 1 | T195: 3 | U195: 3 | V195: 1 | W195: 0 | X195: 0
A196: 6.3.2 | B196: Influent and Treated Water- Cast Iron | C196: =tot_in_chv -> 2 | D196: units | E196: =in_valve_size -> 1.5 | F196: in. diam | G196: =IF(curve=1,in_valve_size,VLOOKUP(in_valve_size,ci_chv_cost_cl,2)) -> 1.5 | H196: in. diam | I196: =IF(curve=1,ci_chv_eq_in,VLOOKUP(in_valve_size,ci_chv_cost_cl,3)) -> contact vendor | J196: =IF(I196="contact vendor","--",C196*I196) -> -- | K196: =VLOOKUP(in_valve_size,ci_chv_cost_cl,IF(ss_cat="large",4,5)) -> 20 | L196: 0 | M196: Valves and Fittings - Check Valves - Influent and Treated Water- Cast Iron | N196: 2 | O196: 1 | P196: 2 | Q196: 2 | R196: 1 | S196: 2 | T196: 2 | U196: 1 | V196: 2 | W196: 0 | X196: 0
A197: 6.3.3 | B197: Bypass - Polypropylene/PVC | C197: =IF(bp_pct>0,IF(design_flow<1,tot_bp_chv_small,tot_bp_chv),0) -> 0 | D197: units | E197: =IF(bp_pct=0,"NA",bypass_valve_size) -> NA | F197: =IF(bp_pct=0," ","in. diam") ->  | G197: =IF(bp_pct=0,"NA",(IF(curve=1,bypass_valve_size,VLOOKUP(bypass_valve_size,pp_chv_cost_cl,2)))) -> NA | H197: =IF(bp_pct=0," ","in. diam") ->  | I197: =IF(bp_pct=0,"NA",(IF(curve=1,pp_chv_eq_bp,VLOOKUP(bypass_valve_size,pp_chv_cost_cl,3)))) -> NA | J197: =IF(OR(C197=0,I197="contact vendor"),"--",C197*I197) -> -- | K197: =IF(bp_pct=0,"NA",VLOOKUP(bypass_valve_size,pp_chv_cost_cl,IF(ss_cat="large",4,5))) -> NA | M197: Valves and Fittings - Check Valves - Bypass - Polypropylene/PVC | N197: 1 | O197: 2 | P197: 3 | Q197: 1 | R197: 2 | S197: 3 | T197: 1 | U197: 2 | V197: 3 | W197: 0 | X197: 0
A198: 6.3.3 | B198: Bypass - Stainless Steel | C198: =IF(bp_pct>0,IF(design_flow<1,tot_bp_chv_small,tot_bp_chv),0) -> 0 | D198: units | E198: =IF(bp_pct=0,"NA",bypass_valve_size) -> NA | F198: =IF(bp_pct=0," ","in. diam") ->  | G198: =IF(bp_pct=0,"NA",(IF(curve=1,bypass_valve_size,VLOOKUP(bypass_valve_size,ss_chv_cost_cl,2)))) -> NA | H198: =IF(bp_pct=0," ","in. diam") ->  | I198: =IF(bp_pct=0,"NA",(IF(curve=1,ss_chv_eq_bp,VLOOKUP(bypass_valve_size,ss_chv_cost_cl,3)))) -> NA | J198: =IF(OR(C198=0,I198="contact vendor"),"--",C198*I198) -> -- | K198: =IF(bp_pct=0,"NA",VLOOKUP(bypass_valve_size,ss_chv_cost_cl,IF(ss_cat="large",4,5))) -> NA | M198: Valves and Fittings - Check Valves - Bypass - Stainless Steel | N198: 3 | O198: 3 | P198: 1 | Q198: 3 | R198: 3 | S198: 1 | T198: 3 | U198: 3 | V198: 1 | W198: 0 | X198: 0
A199: 6.3.3 | B199: Bypass - Cast Iron | C199: =IF(bp_pct>0,IF(design_flow<1,tot_bp_chv_small,tot_bp_chv),0) -> 0 | D199: units | E199: =IF(bp_pct=0,"NA",bypass_valve_size) -> NA | F199: =IF(bp_pct=0," ","in. diam") ->  | G199: =IF(bp_pct=0,"NA",(IF(curve=1,bypass_valve_size,VLOOKUP(bypass_valve_size,ci_chv_cost_cl,2)))) -> NA | H199: =IF(bp_pct=0," ","in. diam") ->  | I199: =IF(bp_pct=0,"NA",(IF(curve=1,ci_chv_eq_bp,VLOOKUP(bypass_valve_size,ci_chv_cost_cl,3)))) -> NA | J199: =IF(OR(C199=0,I199="contact vendor"),"--",C199*I199) -> -- | K199: =IF(bp_pct=0,"NA",VLOOKUP(bypass_valve_size,ci_chv_cost_cl,IF(ss_cat="large",4,5))) -> NA | M199: Valves and Fittings - Check Valves - Bypass - Cast Iron | N199: 2 | O199: 1 | P199: 2 | Q199: 2 | R199: 1 | S199: 2 | T199: 2 | U199: 1 | V199: 2 | W199: 0 | X199: 0
A200: 6.3.4 | B200: Regenerant - Polypropylene/PVC | C200: =tot_brine_chv -> 0 | D200: units | E200: =IF(C200=0,"NA",brine_valve_size) -> NA | F200: =IF(C200=0,"","in. diam") ->  | G200: =IF(C200=0,"NA",(IF(curve=1,brine_valve_size,VLOOKUP(brine_valve_size,pp_chv_cost_cl,2)))) -> NA | H200: =IF(C200=0,"","in. diam") ->  | I200: =IF(C200=0,"NA",(IF(curve=1,pp_chv_eq_brine,VLOOKUP(brine_valve_size,pp_chv_cost_cl,3)))) -> NA | J200: =IF(C200=0,"--",(IF(I200="contact vendor","--",C200*I200))) -> -- | K200: =IF(C200=0,"NA",(VLOOKUP(brine_valve_size,pp_chv_cost_cl,IF(ss_cat="large",4,5)))) -> NA | M200: Valves and Fittings - Check Valves - Regenerant - Polypropylene/PVC | N200: 1 | O200: 2 | P200: 2 | Q200: 1 | R200: 2 | S200: 2 | T200: 1 | U200: 2 | V200: 2 | W200: 0 | X200: 0
A201: 6.3.4 | B201: Regenerant - Stainless Steel | C201: =tot_brine_chv -> 0 | D201: units | E201: =IF(C201=0,"NA",brine_valve_size) -> NA | G201: =IF(C201=0,"NA",(IF(curve=1,brine_valve_size,VLOOKUP(brine_valve_size,ss_chv_cost_cl,2)))) -> NA | I201: =IF(C201=0,"NA",(IF(curve=1,ss_chv_eq_brine,VLOOKUP(brine_valve_size,ss_chv_cost_cl,3)))) -> NA | J201: -- | K201: =IF(C201=0,"NA",(VLOOKUP(brine_valve_size,ss_chv_cost_cl,IF(ss_cat="large",4,5)))) -> NA | M201: Valves and Fittings - Check Valves - Regenerant - Stainless Steel | N201: 2 | O201: 1 | P201: 1 | Q201: 2 | R201: 1 | S201: 1 | T201: 2 | U201: 1 | V201: 1 | W201: 0 | X201: 0
... 282 more rows

Sheet Critical Design Assumptions
A1: Default Critical Design Assumptions
A2: Users may change any of the cells in the Value column; cells in gold are most important and may vary based on contaminant treated and site-specific conditions
A4: Assumption | B4: Range Name | C4: Value | D4: Units | E4: Guidance
A5: Cost estimating method | B5: curve | C5: 1 | D5: <-- enter 1 to use cost equations, leave blank to use lookup tables for component costs | E5: Keeping this assumption with a value of 1 is strongly recommended; the cost equations method is more appropriate for national cost estimating and will be more accurate for nearly all user-specified designs
A6: Minimum average flow as percentage of design | B6: min_avg_flow | C6: 0.1 | E6: The minimum ratio of average flow to design flow. If the ratio falls below this value, it will trigger a warning on the INPUT sheet. If this value is zero, no minimum is enforced.
A8: Vessel Design
A9: Number of redundant vessels for small systems with only one vessel | B9: NRD_small_1 | C9: 1 | D9: units | E9: If a design includes only one operating vessel, there should be at least one additional vessel
A10: Number of redundant vessels for small systems with multiple vessels | B10: NRD_small | C10: 0 | D10: units | E10: Small systems can operate at reduced capacity while one vessel is down for backwash, if there are multiple vessels
A11: Add a redundant unit per x parallel lines | B11: redund_freq | C11: 4 | D11: number of parallel lines/redundant unit
A12: Bypass percentage | B12: bp_pct | C12: 0 | E12: Typically bypass flow ranges between 0 % and 50 % of inflow. Enter zero to remove bypass piping and components. 0% is default consistent with the type of cost curves that EPA will need for its national cost simulation model.
A13: Loading rate minimum | B13: load_min | C13: 1 | D13: gpm/square ft
A14: Maximum vessel height (circular vessels) | B14: max_height | C14: 14 | D14: feet | E14: Systems have used vessels up to 14' diam and height in practice (AWWA Inorganic Contaminants Workshop 2006)
A15: Maximum vessel diameter | B15: max_diam_override | D15: feet | E15: Maximum vessel diameter will be chosen from a table of conventional sizes for commercial vessels, unless entered here. Systems have used vessels up to 14' diam and height in practice (AWWA Inorganic Contaminants Workshop 2006)
A16: Maximum vessel length (longitudinal vessels) | B16: max_length | C16: 53 | D16: feet | E16: Limitation on transportation is 53 feet in length
A17: Free board above media at full expansion | B17: free_board | C17: 0.5 | D17: feet
A18: Underdrain space for horizontal vessels | B18: horiz_underdrain | C18: 1.5 | D18: feet | E18: 1.5 feet is a conservative value for a 10' tank. Bob Dvorin, 5/16/05.
A19: Vessel thickness of wall | B19: Vessel_thickness | C19: 0 | D19: feet | E19: Set to zero because vendor designs and quotes are usually expressed in inside diameter. Increase if user desires to input outside diameter.
A20: Ratio of length to diameter for horizontal vessels | B20: length_diam_ratio | C20: 2.5 | E20: Used only for autosize procedure
A21: Resin expansion during backwash | B21: bed_expansion | C21: 0.5 | E21: Boodoo peer review comments
A22: Resin density | B22: media_density | C22: 43 | D22: lbs/ft3 | E22: Generally varies between 41 to 46 lbs/ft3 with an average of 43 /bs/ft3 (Based on peer review)
A23: Minimum bed depth for autosize | B23: min_bed_depth | C23: 2.4 | D23: feet | E23: Guidance: practical bed depths range from 30 inches to 6 ft.
A24: Maximum bed depth for autosize | B24: max_bed_depth | C24: 6 | D24: feet
A25: Volume Tolerance, vertical vessels <1 mgd | B25: vol_tol_vert_small | C25: 0.5 | E25: Used to check size compatibility of sepecified volume with required volume
A26: Volume Tolerance, vertical vessels >1 mgd | B26: vol_tol_vert_med | C26: 0.4
A27: Volume Tolerance, horizontal vessels | B27: vol_tol_horiz | C27: 0.4
A29: Pumping
A30: Safety factor for pumps | B30: pump_safety_factor | C30: 0.25
A31: Safety factor for tetrachloroferrate mixing equipment | B31: FeCl4_safety_factor | C31: 0.5 | E31: To guarantee preparation of regenerant can be completed in the interval between regenerations
A32: Redundant booster pumps | B32: NRD_pumps | C32: 0 | D32: pumps | E32: Multiple pump approach eliminates need for redundant pumps.
A33: Redundant backwash pumps | B33: NRD_back_pumps | C33: 1 | D33: pump
A34: Redundant regenerant pumps | B34: NRD_regen_pumps | C34: 1 | D34: pump
A35: Redundant pumps for regenerant mixing (FeCl4 only) | B35: NRD_mix_pumps | C35: 1 | D35: pump
A36: Redundant pumps for acid rinse (FeCl4 only) | B36: NRD_rinse_pumps | C36: 1 | D36: pump
A37: Number of redundant polymer metering pumps | B37: NRD_cm_pump | C37: 1 | D37: pumps
A38: Redundant pumps for pH adjustment | B38: NRD_pH_pumps | C38: 1 | D38: pump
A39: Minimum chemical feed pump size | B39: min_chem_flow | C39: 0.13 | D39: gph | E39: Metering pumps will be designed to meet this minimum
A41: Backwash and Regeneration
A42: Backwash loading rate | B42: h2oflush_backwash_rate | C42: 3 | D42: gpm/square ft | E42: 1-5 gpm/square ft
A43: Backwash time | B43: backwash_time | C43: 12 | D43: minutes | E43: 10 to 15 minutes
A44: Backwash frequency outside of regeneration/initial rinse | B44: add_backwash_freq | D44: days | E44: Leave blank to assume backwash occurs only at regneration/resin replacement (initial rinse), enter a value to incorporate additional, out-of-cycle backwashes
A45: Water rinse loading rate | B45: rinse_rate | C45: 3 | D45: gpm/square ft | E45: Assumes same as backwash rate
A46: Regenerant reuse | B46: regen_reuse | C46: 0 | D46: times | E46: With brine storage/mixing tanks, brine may be reused up to 25 times. Cannot reuse brine with salt saturator as the delivery method -- additional tanks would be required. No data available on reuse of tetrachloroferrate regenerant.
A47: Resin life | B47: resin_life | C47: 7 | D47: years | E47: Even when regenerated, media eventually will reach permanent exhaustion.
A48: Saturated brine concentration | B48: brine_conc_sat | C48: 3.1 | D48: lb/gal
A49: Salt density | B49: salt_density | C49: 72 | D49: lbs/ft3 | E49: For calculating storage footprint
A50: Hydrochloric acid weight percent as delivered | B50: HCl_pct | C50: 0.36
A51: Hydrochloric acid molecular weight | B51: HCl_mw | C51: 36.5 | D51: g/mol
A52: Ferric chloride solution density | B52: coag_density | C52: 11.85 | D52: lb/gal
A53: Ferric chloride solution concentration | B53: coag_pct | C53: 0.4
A54: Ferric chloride molecular weight | B54: FeCl3_mw | C54: 162.21 | D54: g/mol
A55: Chemical storage height | B55: storage_height | C55: 10 | D55: ft
A56: Days of chemical storage | B56: cstore_days | C56: 30 | D56: days | E56: Applies to regenerant storage and caustic for pH adjustment
A57: Include mixers for chemical tanks | B57: include_cmix | C57: 0 | D57: <--- enter 1 for yes, 0 for no
A58: Chemical tank mixer horsepower | B58: cmix_hp_per | C58: 0.25 | D58: hp per 1,000 gal
A59: Minimum chemical tank mixer horsepower | B59: min_cmix_hp | C59: =1/3 -> 0.3333333333 | D59: hp
A60: Mixer size for regenerant tanks | B60: mixer_size | C60: 1 | D60: hp
A61: Smallest size of salt saturator | B61: min_saltbox | C61: 5 | D61: tons | E61: The smallest size for which costs are available. Used to determine whether a system will store 1 month, 1 week, or 1 day of salt in the saturators.
A62: Annual resin loss | B62: resin_loss_annual | C62: 0.045 | D62: percent/year | E62: Assume 4 to 5%
A64: pH Adjustment
A65: Treated water pH | B65: pHo | C65: 7 | D65: SU | E65: Removal of carbonates can lower pH and result in red water problems in older homes with galvanized steel pipes
A66: Desired treated water pH | B66: pHf | C66: 8.2 | D66: SU
A67: Desired treated water alkalinity as CaCO3 | B67: alk_I | C67: 25 | D67: ppm
A68: Influent water total dissolved solids | B68: TDS_I | C68: 200 | D68: mg/L
A69: Influent water temperature | B69: t_I | C69: 10 | D69: degrees centigrade
A70: Sodium hydroxide weight percent as delivered | B70: NaOH_pct | C70: 0.5 | E70: Price data are available for 50% and 25% solutions only
A71: Include a separate day tank if daily volume is x or greater | B71: day_tank_needed | C71: 5 | D71: gal
A73: Secondary Containment Requirements
A74: Include secondary containment | B74: include_sec_cont | C74: 1 | D74: <--- enter 1 for yes, 0 for no
A75: Volume required as a percentage of the largest tank | B75: sec_cont_pct_of_largest | C75: 1.1
A76: Volume required as a percentage of total storage | B76: sec_cont_pct_of_total | C76: 0.1
A77: Additional freeboard | B77: sec_cont_freeboard | C77: 6 | D77: inches | E77: Additional freeboard is typically required to contain precipitation when storage is outside; we also include freeboard indoors to ensure a minimum reasonable curb height
A78: Maximum curb thickness | B78: sec_cont_max_thick | C78: 1 | D78: foot | E78: Calculations assume thickness equal to height, up to this maximum
A79: Chemical resistant coating coverage | B79: sec_cont_coating_cvg | C79: 125 | D79: square feet/gallon
A81: Cartridge Filters for Pretreatment
A82: Include cartridge filters | B82: include_cart | C82: 1 | D82: <-- enter 1 for yes, 0 for no
A83: Minimum number of cartridge filters above 1 MGD | B83: min_cart | C83: 2 | D83: units | E83: For small systems (<1 MGD), this limit is ignored.
A85: Number of redundant cartridge filters | B85: init_NRD_cart | C85: 1
A86: Additional redundant cartridge filter per x MGD inflow | B86: addl_redund_cart_per_flow | C86: 50 | D86: MGD
A87: Access space for cartridge filters | B87: space_other_equip | C87: 3 | D87: feet | E87: Provide a minimum of 3 ft (1 m) of clear space around each item of equipment (American Water Works Association and American Society of Civil Engineers. Water Treatment Plant Design. Third Edition. New York: McGraw Hill, 1998. Pp. 695).
A89: Pipe Length Multipliers
A90: Influent and treated water pipe length multiplier | B90: in_out_pipe_mult | C90: 2 | D90: times facility length
A91: Process pipe length multiplier | B91: proc_pipe_mult | C91: 2 | D91: times facility length
A92: Bypass pipe length multiplier | B92: bp_pipe_mult | C92: 2.5 | D92: times facility length
A93: Backwash pipe length multiplier | B93: back_pipe_mult | C93: 2.5 | D93: times facility length
A94: Chemical pipe length multiplier | B94: chem_pipe_mult | C94: 1 | D94: times facility length
A96: Valves and Instrumentation
A97: Number of manual valves on influent and treated water line | B97: tot_man_valves | C97: 2 | D97: valves
A98: Number of manual valves on process line per vessel | B98: proc_man_vessel | C98: 1 | D98: valve/vessel | E98: For filter to waste
A100: Number of check valves on backwash line per backwash pump | B100: back_chv_pump | C100: 1 | D100: valves/pump
A101: Number of check valves on regenerant line per regenerant pump | B101: brine_chv_pump | C101: 1 | D101: valves/pump | E101: Applies only with tetrachlorferrate regeneration
A102: Number of check valves on acid line per metering pump | B102: acid_chv_pump | C102: 1 | D102: valves/pump | E102: Applies only with tetrachlorferrate regeneration
A103: Number of check valves on caustic line per metering pump | B103: caustic_chv_pump | C103: 1 | D103: valves/pump | E103: Applies only with pH adjustment
A104: Number of check valves on ferric chloride line per metering pump | B104: coag_chv_pump | C104: 1 | D104: valves/pump | E104: Applies only with ferric addition to residuals
A105: Number of check valves on polymer line per metering pump | B105: polymer_chv_pump | C105: 1 | D105: valves/pump | E105: Applies only with polymer addition to residuals
A106: Number of check valves on influent line | B106: tot_in_chv | C106: 2 | D106: valves | E106: At both influent and treated water in this technology
A107: Number of check valves on bypass line | B107: tot_bp_chv | C107: 1 | D107: valves
A108: Number of check valves on bypass line for small systems | B108: tot_bp_chv_small | C108: 0 | D108: valves
A110: Flow meters for influent and treated water line | B110: tot_fm_in | C110: 1 | D110: units | E110: Flow meter assemblies include pressure gauges
A111: Flow meters for process line per vessel | B111: fm_proc | C111: 0 | D111: units/vessel
A112: Flow meters for backwash line | B112: fm_back | C112: 1 | D112: units | E112: At backwash discharge outlet
A113: Level switch/alarms per vessel | B113: level_switch | C113: 0 | D113: units/vessel
A114: Level switch/alarms per vessel for small systems | B114: level_switch_small | C114: 0 | D114: units/vessel
A115: High/Low alarms per backwash tank | B115: alarm_back | C115: 1 | D115: units/tank
A116: High/Low alarms per regenerant mixing tank | B116: alarm_brine | C116: 1 | D116: units/tank | E116: Salt saturators come equipped with level alarms, so only added if mixing tanks are used.
A117: High/Low alarms per HCl tank | B117: alarm_acid | C117: 1 | D117: units/tank
A118: High/Low alarms per NaOH tank | B118: alarm_caustic | C118: 1 | D118: units/tank
A119: ORP sensors | B119: ORP_sensor | C119: 0 | D119: units
A120: pH meters for systems without corrosion control | B120: pH_nocorr | C120: 0 | D120: units
A121: pH meters for systems with corrosion control | B121: pH_corr | C121: 2 | D121: units
A122: Temperature meters | B122: temp_meters | C122: 1 | D122: units | E122: One for influent line, one for treated water line
A123: Temperature meters for small systems | B123: temp_meters_small | C123: 0 | D123: units
A124: Turbidity meters per vessel | B124: turb_tank | C124: 0 | D124: units/vessel
A125: Turbidity meters per vessel for small systems | B125: turb_tank_small | C125: 0 | D125: units/vessel
A126: Additional turbididy meters | B126: add_turb | C126: 1 | D126: units | E126: One at backwash discharge outlet
A127: Additional turbididy meters for small systems | B127: add_turb_small | C127: 0 | D127: units
A128: Conductivity meters per vessel | B128: cond_tank | C128: 0 | D128: units/vessel
A129: Additional conductivity meters | B129: add_cond | C129: 0 | D129: units
A130: Head loss sensors per vessel | B130: head_tank | C130: 1 | D130: units/vessel
A131: Head loss sensors per vessel for small systems | B131: head_tank_small | C131: 0 | D131: units/vessel
A132: Head loss sensors per cartridge filter | B132: headloss_cart | C132: 1 | D132: units/filter
A133: Sampling ports per vessel | B133: ports_tank | C133: 1 | D133: units/vessel
A134: Sampling ports for bypass line | B134: ports_bp | C134: 1 | D134: units
A135: Additional sampling ports | B135: add_ports | C135: 3 | D135: units | E135: One for influent line, one for treated water line, one on residual side of backwash line
A136: Number of electrical enclosures | B136: elec_encl | C136: 0 | D136: units | E136: Required only for technologies with significant electric-powered equipment outside a building.
A138: System Controls
A139: Controllers are used only under full automation
A140: To change the degree of automation, change the number of controllers to zero for the appropriate items.
A141: Drive controllers per booster pump | B141: S_booster_pump | C141: 1 | D141: units
A142: Drive controllers per backwash pump | B142: S_back_pump | C142: 1 | D142: units
A143: Drive controllers per eductor | B143: S_eductor | C143: 1 | D143: units
A144: Drive controllers per regenerant mixer | B144: S_mixer | C144: 1 | D144: units
A145: Drive controllers per regenerant pump | B145: S_regen_pump | C145: 1 | D145: units
A146: Drive controllers per metering pump | B146: S_cm_pump | C146: 1 | D146: units
A148: Number of CPUs | B148: plc_cpu | C148: 2 | D148: units | E148: One CPU is needed to run the local and expansion bases and modules (max 8192 I/O); using two to provide redundancy
A149: Ethernet modules | B149: plc_ethernet | C149: 2 | D149: units | E149: One ethernet module is needed; using two to provide redundancy
A150: Operator interfaces | B150: plc_interface | C150: 2 | D150: units | E150: Two to provide redundancy in the event of SCADA node failure
A151: UPSs | B151: ups | C151: 1 | D151: unit | E151: UPS protects the PLC system from undesired outages and surges that can adversely affect the performance of the PLC unit
A152: Computer workstations per x operators | B152: workstation_ratio | C152: 1 | D152: operator/workstation | E152: Minimum will always be one, but larger systems will have multiple workstations to control the system
A153: Number of shifts | B153: shifts_day | C153: 3 | D153: shifts/day | E153: Used to determine number of workstations
A154: Printers per x computer workstations | B154: printer_ratio | C154: 4 | D154: workstations/printer | E154: Minimum will always be one, but larger systems will have multiple printers
A156: Structure/Floorplan
A157: Maximum access space per vessel or tank for custom designed systems | B157: max_space_vessels_cust | C157: 6 | D157: feet | E157: This is the MAXIMUM; space between vessels and tanks defaults to vessel or tank diameter, up to this maximum. Maximum provides space for sandblasting and painting for large vessels (5-8 feet per Richard E. Hubel, Peter Keenan, American Water Works Service Company).
A158: Maximum access space per vessel or tank for pre-engineered systems | B158: max_space_vessels_pre | C158: 1 | D158: feet | E158: Assumes skid-mounting with minimal access space
A159: Access space per pump for custom designed systems | B159: space_pumps_cust | C159: 4 | D159: feet | E159: Provide a minimum of 3 ft (1 m) of clear space around each item of equipment (American Water Works Association and American Society of Civil Engineers. Water Treatment Plant Design. Third Edition. New York: McGraw Hill, 1998. Pp. 695).
A160: Access space per pump for pre-engineered packages | B160: space_pumps_pre | C160: 0 | D160: feet | E160: Pumps on skid for pre-engineered packages, no additional access space
A162: Non fire Buffer for buildings | B162: non_fire_buffer | C162: 10 | D162: feet
A163: Fire Buffer for Buildings | B163: fire_buffer | C163: 40 | D163: feet
A164: Top and bottom dished vessel sections height and access space | B164: Top_bottom_Vessel_space | C164: 6 | D164: feet | E164: This is used to determine the building height for purposes of heating and cooling cost.
A165: Office space per employee | B165: space_office | C165: 100 | D165: square ft
A166: Office space per employee | B166: space_office_small | C166: 0 | D166: square ft | E166: Small systems do not require office space
A167: Concrete pad thickness | B167: pad_thick | C167: =6/12 -> 0.5 | D167: feet
A168: Concrete pad thickness for small systems | B168: pad_thick_small | C168: =4/12 -> 0.3333333333 | D168: feet
A169: Clearance space beneath the ceiling | B169: ceiling_clearance | C169: 3 | D169: feet | E169: Minimum space between the tops of storage tanks and the ceiling
A170: Additional building after… | B170: add_2nd_building | C170: 10000 | D170: sf
A172: Residuals Discharge
A173: Residuals pipe length multiplier | B173: res_pipe_mult | C173: 1 | D173: times facility length
A174: Add coagulant to holding tank | B174: coag_res | C174: 0 | D174: <-- 1 for yes, 0 for no | E174: For additional TSS removal, if desired
A175: Type of coagulant added | B175: coag_type | C175: 1 | D175: <-- 1 for polymer, 2 for ferric chloride, 3 for both polymer & ferric chloride
A176: Minimum settling time when coagulant is used | B176: res_coag_settle_time | C176: 90 | D176: minutes | E176: When coagulant is used, holding tanks will be sized so that residuals are present for at least this long. Based on 90-120 minute settling time in sedimentation basins (Water Treatment Plant Design, 4th ed.)
A177: Polymer dosage | B177: polymer_dose | C177: 100 | D177: mg/L
A178: Polymer solution density | B178: polymer_density | C178: 9.6 | D178: lb/gal
A179: Polymer sludge production factor | B179: polymer_spf | C179: 1 | D179: lbs accumulated per pound added
A180: Ferric chloride dosage | B180: coag_dose | C180: 10 | D180: mg/L
A181: Ferric chloride sludge production factor | B181: coag_spf | C181: 0.99 | D181: lbs accumulated per pound added
A182: Holding tank/basin solids density | B182: ht_solids_density | C182: 25 | D182: lb/ft3
A183: Holding tank/basin suspended solids removal efficiency without coagulant | B183: htank_TSSrem | C183: 0 | E183: Cartridge filtration should result in low solids accumulation on resin, thus no settling without coagulant addition
A184: Holding tank/basin suspended solids removal efficiency with coagulant | B184: coag_TSSrem | C184: 0.5
A185: Clean holding tanks/basins when solids accumulation =x% of capacity | B185: htank_clean_pct | C185: 0.1
A186: Holding tank/basin capacity factor | B186: res_cap_factor | C186: 2 | E186: Holding tanks are designed with a capacity of one generation event, multiplied by this safety factor. This multiplier accounts for less than perfect staggering of generation events and provides for solids accumulation (i.e., it provides excess capacity).
A187: Default number of residuals basins | B187: hbasins_default | C187: 1 | E187: This assumption applies if concrete basins are used. Additonal basins are used, however, if needed to achieve minimum holding time. If tanks are used, number calculated on design sheet.
A188: Holding basin depth to volume ratio | B188: holding_ratio | C188: =3/5 -> 0.6 | E188: This assumption used only if concrete basins are used.
A189: Holding basin freeboard | B189: holding_freeboard | C189: 3 | D189: feet | E189: This assumption used only if concrete basins are used.
A190: Overexcavation for storage basins | B190: overexcavate | C190: 4 | D190: ft | E190: 2 feet each side in each dimension. This assumption used only if concrete basins are used.
A191: Concrete thickness for holding basins | B191: conc_thick | C191: 1 | D191: ft | E191: This assumption used only if concrete basins are used.
A192: Holding tank mixer horsepower (if coagulant is used) | B192: hmix_hp_per | C192: 0.25 | D192: hp per 1,000 gallons
A193: Minimum holding tank mixer horsepower | B193: min_hmix_hp | C193: =1/3 -> 0.3333333333 | D193: hp
A194: Residual solids transfer method | B194: res_transfer_method | C194: 3 | D194: <-- 1 for slurry pumps, 2 for eductors, 3 for manual trabsfer
A195: Time to empty holding tank | B195: transfer_time | C195: 4 | D195: hrs | E195: Target for systems using mechanical transfer. For systems with manual transfer, calcuated based on solids volume.
A196: Minimum residuals pipe diameter | B196: min_res_pipe_size | C196: 1 | D196: in. diam.
A197: Residual solids storage height (for drying pad) | B197: solids_storage_height | C197: 2 | D197: ft
A198: Redundant residuals pumps | B198: NRD_res_pump | C198: 1 | D198: units | E198: Applies only if pumping is included
A199: Distance to discharge point or evaporation pond | B199: add_res_pipe_length | C199: 40 | D199: ft
A200: Number of check valves on residuals line per residuals pump | B200: res_chv_pump | C200: 1 | D200: valves/pump
A201: Number of check valves on residuals line if no pumping | B201: res_chv_no_pump | C201: 1 | D201: valves
A202: Drive controllers per residuals pump | B202: S_res_pump | C202: 1
A203: Flow meters for residuals line | B203: tot_fm_res | C203: 1 | D203: units
A204: High/Low alarms per holding tank | B204: alarm_res | C204: 1 | D204: units/tank
A205: TSS in system influent | B205: influent_TSS | C205: 2 | D205: ppm | E205: This is INFLUENT TSS. Backwash TSS is calculated and will be higher, as TSS removed are concentrated.
A206: TSS in treated water | B206: effluent_TSS | C206: 0.5 | D206: ppm
A207: POTW rate structure | B207: POTW_rate_type | C207: 1 | D207: <-- 1 for national average rate, 2 for a specific rate structure
A208: Apply POTW discharge base charge (i.e., $/month) | B208: POTW_base_fee | C208: 1 | D208: <-- 1 for yes, 2 for no
A209: Apply POTW discharge volume charge (i.e., $/1000 gallons) | B209: POTW_volume_fee | C209: 1 | D209: <-- 1 for yes, 2 for no
A210: Apply POTW discharge TSS charge (i.e., $/lb of TSS over limit below) | B210: POTW_TSS_fee | C210: 1 | D210: <-- 1 for yes, 2 for no
A211: POTW TSS discharge limit (over which fee would be imposed) | B211: POTW_TSS_limit | C211: 250 | D211: ppm | E211: Most common limit for cities with a limit.
A212: Disposal method for non-hazardous secondary solids | B212: solids_method | C212: 1 | D212: <-- 1 for landfill, 2 for land application | E212: Ignored if solids are hazardous or radioactive
A213: Maximum hazardous waste shipment size | B213: max_haz_ship | C213: 18 | D213: tons
A214: Maximum liquid hazardous waste shipment size | B214: max_lhaz_ship | C214: 6000 | D214: gal
A215: Maximum radioactive (non-hazardous) waste shipment size | B215: max_rad_ship | C215: 18 | D215: tons
A216: Maximum radioactive hazardous waste shipment size | B216: max_hazrad_ship | C216: 18 | D216: tons
A217: Miles to non-hazardous solid waste disposal site | B217: non_haz_miles | C217: 10 | D217: miles
... 100 more rows

Sheet O&M Assumptions
A1: Default O&M Assumptions
A2: Users may change any of the cells in the Value column
A4: Assumption | B4: Range Name | C4: Value | D4: Units | E4: Guidance
A5: Media Disposal
A6: Alternate media disposal cost (including transportation) | B6: alt_media_disp | C6: =15*2000/media_density -> 697.6744186 | D6: /ton | E6: Leave blank to use cl.xls disposal cost. Cost shown here is for incineration of perchlorate laden media. From Frank Boodoo, Purolite, 12/7/04.
A8: Materials
A9: Cost for parts & maintenance for booster pumps | B9: booster_pump_maintenance | C9: 0.01 | D9: of installed cost | E9: For calculating cost of actual maintenance materials; not to be confused with depreciation. Initial proposed estimate of 5% seems high (Richard E. Hubel, Peter Keenan, American Water Works Service Company, Inc)
A10: Life of cartridge filters | B10: cart_life | C10: 5 | D10: months | E10: US EPA, Draft of "Design and Cost Estimates for Advanced Water Treatment Technologies", December 2000.
A12: Labor
A13: Labor hours per cartridge filter | B13: hrs_filter | C13: 12 | D13: hrs/unit/yr
A14: Mangerial LOE as a percent of average technical labor | B14: Manager_percent | C14: 0.1 | D14: fraction
A15: Administrative LOE as a percent of average technical labor | B15: Clerical_percent | C15: 0.1 | D15: fraction
A17: Operating LOE assumptions
A18: Minutes per instrument per day | B18: uloe_inst | C18: 5 | D18: min/day | E18: For manual systems only
A19: Recording operating paramenters for automated systems | B19: uloe_inst_auto | C19: 5 | D19: min/day | E19: For semiautomated and automated systems
A20: Minutes per pump per day | B20: uloe_pump | C20: 5 | D20: min/day | E20: For manual and semiautomated systems
A21: Minutes per valve per week | B21: uloe_valve | C21: 5 | D21: min/week | E21: For manual and semiautomated systems
A22: Minutes per 100 sf per day | B22: uloe_fp | C22: 1 | D22: min/100 sf/day
A23: Minutes per regeneration/backwash for automated systems | B23: uloe_autoregen | C23: 10 | D23: min/event | E23: Manual and semiautomated systems use actual regeneration/backwash time
A24: Hours per resin changeout | B24: uloe_throwaway | C24: =8/(20*27) -> 0.01481481481 | D24: hours/cubic foot | E24: Based on 20 cubic yards per day, applied separately to removal and replacement.
A26: Maintenance LOE assumptions
A27: For instruments (includes calibration) | B27: uloe_inst_maint | C27: 10 | D27: min/month
A28: For pumps | B28: uloe_pump_maint | C28: 30.25 | D28: hours/year | E28: Based on vendor recommended maintenance activities; applied to large, frequently operated pumps only
A29: For valves | B29: uloe_valve_maint | C29: 5 | D29: min/year | E29: Applied to main process valves only
A30: For chemical supply systems | B30: uloe_chem_maint | C30: 120 | D30: min/month
A32: Energy
A33: Pump head for booster pumps | B33: booster_pump_head | C33: 25 | D33: psi
A34: Residuals pump head | B34: res_pump_psi | C34: 25 | D34: psi
A35: Pump efficiency for booster pumps | B35: booster_pump_efficiency | C35: 0.75
A36: Pump head for backwash pumps | B36: backwash_pump_head | C36: 14.7 | D36: psi
A38: Lighting and HVAC
A39: Lighting power per sf, low-quality buildings and sheds | B39: lighting_power_low | C39: 0.3 | D39: W/sf | E39: 0.3, 0.6, and 1.2 W/sf are the assumptions used for building capital costs
A40: Lighting power per sf, mid-quality buildings | B40: lighting_power_mid | C40: 0.6 | D40: W/sf
A41: Lighting power per sf, high-quality buildings | B41: lighting_power_high | C41: 1.2 | D41: W/sf
A43: Ventilation air change rate for contactor | B43: Air_changes_contactor | C43: 3 | D43: air changes/hr
A44: Ventilation air change rate for pump room | B44: Air_changes_pump | C44: 20 | D44: air changes/hr | E44: Could be lower (annual average 3 changes/hr) in a northern climate
A45: Ventilation air change rate for chemical storage | B45: Air_changes_chem_storage | C45: 2 | D45: air changes/hr
A46: Ventilation air change rate for offices | B46: Air_changes_office | C46: 2 | D46: air changes/hr
A47: Pressure drop across the fan | B47: Fan_pressure_drop | C47: 0.25 | D47: lbs/ft2
A48: Number of mechanical ventilation days per year first building (small system) | B48: fan_days_build1_small | C48: 90 | D48: days/year | E48: Number of days per year where natural ventilation is applicable cannot be greater than 365 days
A49: Number of mechanical ventilation days per year 2nd building (small system) | B49: fan_days_build2_small | C49: 90 | D49: days/year | E49: For small systems (<1 MGD)
A50: Number of mechanical ventilation days per year first building (medium system) | B50: fan_days_build1_medium | C50: 120 | D50: days/year | E50: For medium systems (1 - 10 MGD)
A51: Number of mechanical ventilation days per year 2nd building (medium system) | B51: fan_days_build2_medium | C51: 120 | D51: days/year
A52: Number of mechanical ventilation days per year first building (large system) | B52: fan_days_build1_large | C52: 185 | D52: days/year | E52: For large systems (> 10 MGD)
A53: Number of mechanical ventilation days per year 2nd building (large system) | B53: fan_days_build2_large | C53: 185 | D53: days/year
A55: R-value for walls | B55: R_wall | C55: 25 | D55: hr-sf-degF/BTU | E55: See Appendix E. If higher R-value materials are desired, user may also need to adjust the cost of building materials in cl.xls
A56: R-value for ceilings | B56: R_ceiling | C56: 49 | D56: hr-sf-degF/BTU | E56: See Appendix E. If higher R-value materials are desired, user may also need to adjust the cost of building materials in cl.xls
A57: Annual heating degree days | B57: heat_DD | C57: 4260 | D57: degree days | E57: Heating and cooling assumptions should be consistent with one another. Assumed values are for a climate that results in a total energy usage for heating and cooling equal to the national median.
A58: Annual cooling degree days | B58: cool_DD | C58: 1415 | D58: degree days | E58: Heating and cooling assumptions should be consistent with one another. Assumed values are for a climate that results in a total energy usage for heating and cooling equal to the national median.
A59: Heating ventilation/infiltration load | B59: heat_viload | C59: 168679 | D59: BTU/cfm | E59: Heating and cooling assumptions should be consistent with one another. Assumed values are for a climate that results in a total energy usage for heating and cooling equal to the national median.
A60: Cooling ventilation/infiltration load | B60: cool_viload | C60: 51771 | D60: BTU/cfm | E60: Heating and cooling assumptions should be consistent with one another. Assumed values are for a climate that results in a total energy usage for heating and cooling equal to the national median.
A61: Electric resistance heating efficiency | B61: resist_eff | C61: 0.98 | E61: See Appendix E
A62: Heat pump heating coefficient of performance | B62: COP | C62: 3.3 | E62: See Appendix E
A63: Natural gas non-condensing furnace efficiency | B63: gas_non_eff | C63: 0.85 | E63: See Appendix E
A64: Natural gas condensing furnace efficiency | B64: gas_eff | C64: 0.9 | E64: See Appendix E
A65: Standard oil furnace efficiency | B65: diesel_non_eff | C65: 0.82 | E65: See Appendix E
A66: Mid-efficiency oil furnace efficiency | B66: diesel_eff | C66: 0.9 | E66: See Appendix E
A67: Air conditioning EER | B67: EER | C67: 11.8 | D67: BTU/Whr | E67: See Appendix E
A68: Heat pump cooling mode EER | B68: hp_EER | C68: 11.8 | D68: BTU/Whr | E68: See Appendix E
A70: Heating Oil Heat Content | B70: diesel_heat_content | C70: 139000 | D70: BTU/gal | E70: U.S. DOE, Energy Information Administration.

Sheet Indirect Assumptions
A1: Default Assumptions for Indirect and Add-On Costs
A2: Users may change any of the cells in the Value column
A4: Assumption | B4: Range Name | C4: Value | D4: Units | E4: Guidance
A5: Concrete Pad
A6: Include concrete pad in total capital cost? | B6: include_pad | C6: 1 | D6: <--- enter 1 for yes, 0 for no
A8: Permits
A9: Include permit costs? | B9: include_permits | C9: 1 | D9: <--- enter 1 for yes, 0 for no
A10: Always include NEPA compliance costs? | B10: include_NEPA | C10: 1 | D10: <--- enter 1 for default, enter 2 for yes, 3 for no | E10: Default of 1 means NEPA compliance is included only for systems that discharge to surface water. Selecting 2 means NEPA compliance will be included in all estimates. Selecting 3 means NEPA compliance will never be included.
A11: HCl strength to trigger RMP requirement | B11: HCl_strength_RMP | C11: 0.37
A12: HCl quantity to trigger RMP requirement | B12: HCl_quant_RMP | C12: 15000 | D12: lbs
A14: Pilot Study
A15: Include pilot study costs? | B15: include_pilot | C15: 1 | D15: <--- enter 1 for yes, 0 for no
A17: Mobilization and Demobilization
A18: Mobilization percentage for small systems | B18: mob_pct_small | C18: 0 | D18: of direct capital cost | E18: Typically 2-5% of the estimated construction cost. Enter 0% to exclude. Excluded by default for pre-engineered packages
A19: Mobilization percentage for medium systems | B19: mob_pct_medium | C19: 0.04 | D19: of direct capital cost
A20: Mobilization percentage for large systems | B20: mob_pct_large | C20: 0.02 | D20: of direct capital cost
A22: Architectural Fees for Treatment Building
A23: Include architectural fee? | B23: include_arch | C23: 1 | D23: <--- enter 1 for yes, 0 for no | E23: Must be added to building cost. Change for special considerations. Includes structural, mechanical, and electrical engineering for building only.
A24: Include architectural fee for small systems? | B24: include_arch_small | C24: 0 | D24: <--- enter 1 for yes, 0 for no
A26: Installation, Transportatation, and O&P
A27: Installation, Transportatation, and O&P percentage | B27: inst_pct | C27: 0 | D27: of direct capital cost | E27: Included in line item unit costs. Add a percentage for special considerations such as a remote site or high cost location.
A29: Sitework
A30: Include sitework costs? | B30: include_sitework | C30: 1 | D30: <--- enter 1 for yes, 0 for no
A32: Standby Power
A33: Include standby power costs? | B33: include_standby | C33: 1 | D33: <--- enter 1 for yes, 0 for no
A34: Include standby power costs for small systems? | B34: include_standby_small | C34: 0 | D34: <--- enter 1 for yes, 0 for no
A35: Design safety factor for standby power | B35: std_safety_factor | C35: 0 | E35: Default 0%. Apply a percentage to increase standby power requirements.
A36: Include heating in standby power | B36: need_heat | C36: 0 | D36: <--- enter 1 for yes, 0 for no | E36: If a system uses gas or diesel heat, heating will not be included, regardless of this assumption.
A37: Include cooling in standby power | B37: need_cool | C37: 0 | D37: <--- enter 1 for yes, 0 for no | E37: If both heating and cooling are included, standby power requirements will be based on the maximum of the two.
A38: Minimum standby power generator size | B38: min_standby | C38: 1.5 | D38: kW | E38: Minimum size for full standby generators
A40: Geotechnical
A41: Include geotechnical costs for low cost systems? | B41: include_geo_low | C41: 0 | D41: <--- enter 1 for yes, 0 for no | E41: Note: geotechnical is always included when evaporation ponds or holding basins are used, regardless of the numbers entered here, because of excavation
A42: Include geotechnical costs for medium cost systems? | B42: include_geo_medium | C42: 0 | D42: <--- enter 1 for yes, 0 for no
A43: Include geotechnical costs for high cost systems? | B43: include_geo_high | C43: 1 | D43: <--- enter 1 for yes, 0 for no
A44: Test pit length | B44: pit_length | C44: 4 | D44: feet
A45: Test pit width | B45: pit_width | C45: 4 | D45: feet
A46: Test pit depth | B46: pit_depth | C46: 7 | D46: feet
A47: Borehole depth without basins | B47: bore_depth_nobasin | C47: 10 | D47: feet
A48: Borehole depth for shallow basins | B48: bore_depth_min | C48: 25 | D48: feet
A49: Borehole depth for deep basins | B49: bore_depth_max | C49: 50 | D49: feet
A50: Basin excavation depth above which deeper boreholes are needed | B50: deep_bore_need | C50: 20 | D50: feet | E50: Systems with deep basins require deeper investigation
A51: Technology footprint above which boreholes are needed | B51: bore_need | C51: 2000 | D51: square feet | E51: Small system geotechnical investigation can be completed with test pits, larger systems and those with basins require boreholes
A52: Minimum number of boreholes | B52: min_holes | C52: 4
A53: Borehole needed every x square feet | B53: hole_per_sf | C53: 1000 | D53: square feet
A54: Boreholes per job | B54: hole_per_job | C54: 24 | D54: boreholes/job
A55: Linear feet bored per day | B55: hole_per_day | C55: 55.5 | D55: l.f./day | E55: RS Means Costworks 2001
A57: Yard Piping
A58: Include yard piping costs? | B58: include_yardpipe | C58: 1 | D58: <--- enter 1 for yes, 0 for no
A59: Frost depth | B59: frost | C59: 38 | D59: inches | E59: Should be consistent with (reflect same climate as) heating and cooling assumptions on O&M assumptions page. Assumptions are for St. Louis, Missouri.
A60: Minimum trench depth to top of pipe | B60: min_trench_depth | C60: 36 | D60: inches | E60: US Army Corps of Engineers recommended minimum cover for distribution pipes of 2.5 ft in grassed areas, 3 ft if buried under pavement or roadways but not less than frost penetration depth (USACOE 1984)
A61: Soil density | B61: soil_dens | C61: 97 | D61: lb/cubic ft. | E61: Based on soil density of loamy sand (1.55 gm/cc)
A62: Coefficient of passive pressure | B62: Coeff_Kp | C62: 3
A63: Reduction factor | B63: Reduction | C63: 0.467
A64: Bedding depth below pipe | B64: bedding_depth | C64: 6 | D64: inches
A65: Bedding depth surrounding the pipe | B65: bedding_pct | C65: 0.25 | D65: of pipe diameter
A66: Trench inside angle | B66: trench_angle | C66: =RADIANS(45) -> 0.7853981634 | D66: radians
A67: Pipe length from water source to the boundary of the 10 foot buffer | B67: yard_in | C67: 0 | D67: feet | E67: Use if technology is first step in treatment process
A68: Pipe length the boundary of the 10 foot buffer to distribution network | B68: yard_out | C68: 0 | D68: feet | E68: Use if technology is last step in treatment process
A70: Electrical (including yard wiring)
A71: Electrical percentage | B71: elect_pct | C71: 0.1 | D71: of direct cost
A73: Instrumentation and Control
A74: Instrumentation and control percentage | B74: i_c_pct | C74: 0 | D74: of direct cost | E74: Included as a direct cost line item.
A76: Contingency
A77: Include contingency costs for low cost systems? | B77: include_conting_low | C77: 0 | D77: <--- enter 1 for yes, 0 for no
A78: Include contingency costs for medium cost systems? | B78: include_conting_medium | C78: 0 | D78: <--- enter 1 for yes, 0 for no
A79: Include contingency costs for high cost systems? | B79: include_conting_high | C79: 1 | D79: <--- enter 1 for yes, 0 for no
A80: Technology complexity factor | B80: complexity | C80: 1.5 | E80: Technology-specific factor. See Appendices for details. Low complexity = 0.5; Average complexity = 1.0; High complexity = 1.5; Very high complexity = 2.0.
A82: Process Engineering
A83: Engineering percentage for small systems | B83: eng_pct_small | C83: 0.2 | D83: of direct capital cost | E83: Enter 0% to exclude.
A84: Engineering percentage for medium systems | B84: eng_pct_medium | C84: 0.12 | D84: of direct capital cost
A85: Engineering percentage for large systems | B85: eng_pct_large | C85: 0.08 | D85: of direct capital cost
A87: Miscellaneous Allowance
A88: Miscellaneous allowance percentage | B88: misc_pct | C88: 0.1 | D88: of direct capital cost | E88: Enter 0% to exclude.
A90: Legal, Fiscal, and Administrative
A91: Legal percentage | B91: legal_pct | C91: 0.02 | D91: of direct capital cost | E91: Enter 0% to exclude. Highly site-specific. Can range from 2-5% of equipment, installation, construction, electrical, and standby power. To estimate, add 5% to total estimated construction cost.
A93: Sales Tax
A94: Sales tax percentage | B94: tax_pct | C94: 0 | D94: of direct capital cost | E94: May be exempt if constructed with public funds. May be as high as 7.25% of equipment and construction, with national average 4.75%.
A96: Financing during Construction
A97: Financing percentage | B97: finance_pct | C97: 0.05 | D97: of direct capital cost | E97: Enter 0% to exclude. Typically assumed to be one year's interest on capital cost.
A98: Financing percentage for small systems | B98: finance_pct_small | C98: 0 | D98: of direct capital cost | E98: Small system construction assumed to take less than one year
A100: Construction Management and General Contractor Overhead
A101: Builder's risk insurance percentage | B101: br_ins_pct | C101: 0.0034 | E101: Enter 0% to exclude. 0.34% is national average rate. RSMeans Building Construction Cost Data 2009, reference section R01100-070
A102: Include performance bond cost? | B102: include_bond | C102: 1 | D102: <--- enter 1 for yes, 0 for no
A103: Include construction management cost? | B103: include_cm | C103: 1 | D103: <--- enter 1 for yes, 0 for no
A104: Include construction management cost for pre-engineered packages? | B104: include_cm_pre | C104: 0 | D104: <--- enter 1 for yes, 0 for no
A106: Heating Table (1=include heating in buildings and O&M, 0 = do not include heating)
C107: System Size
A108: Component Level | C108: Small (<1 mgd) | D108: Medium (1-10 mgd) | E108: Large (>10 mgd)
A109: Buildings 500 square feet or greater
A110: low cost | B110: heating_table | C110: 0 | D110: 1 | E110: 1
A111: mid cost | C111: 1 | D111: 1 | E111: 1
A112: high cost | C112: 1 | D112: 1 | E112: 1
A113: Buildings less than 500 ft2 (other than those used for chlorine storage)
A114: low cost | B114: heating_table_shed | C114: 0 | D114: 0 | E114: 1
A115: mid cost | C115: 0 | D115: 0 | E115: 1
A116: high cost | C116: 1 | D116: 1 | E116: 1
A118: Cooling Table (1=include cooling in buildings and O&M, 0 = do not include cooling)
C119: System Size
A120: Cost Level | C120: Small (<1 mgd) | D120: Medium (1-10 mgd) | E120: Large (>10 mgd)
A121: Buildings 500 square feet or greater
A122: low cost | B122: cooling_table | C122: 0 | D122: 0 | E122: 1
A123: mid cost | C123: 0 | D123: 1 | E123: 1
A124: high cost | C124: 1 | D124: 1 | E124: 1
A125: Buildings less than 500 ft2 (other than those used for chlorine storage)
A126: low cost | B126: cooling_table_shed | C126: 0 | D126: 0 | E126: 0
A127: mid cost | C127: 0 | D127: 0 | E127: 0
A128: high cost | C128: 0 | D128: 0 | E128: 0

Sheet Vessel Constraints
A1: Vessel Constraint Calculations
A2: This sheet performs calculations to confirm that the vessel design on the Input page meets engineering constraints
A4: Calculation | B4: Range Name | C4: Value | D4: Units | E4: Guidance
A5: From Inputs
A6: Design Flow | B6: design_flow | C6: =IF(df_units="gpm",(1-bp_pct)*design_flow_I*24*60/1000000,(1-bp_pct)*design_flow_I) -> 0.03 | D6: MGD | E6: From Inputs, less bypass
A7: Average Flow | B7: average_flow | C7: =(1-bp_pct)*IF(af_units="gpm",average_flow_I*24*60/1000000,IF(af_units="fraction of design flow",average_flow_I*design_flow,average_flow_I)) -> 0.007 | D7: MGD | E7: From Inputs, less bypass
A8: Design Flow Rate | B8: design_flow_rate | C8: =design_flow*1000000/(24*60) -> 20.83333333 | D8: gpm | E8: Design flow expressed in gpm
A9: Average Flow Rate | B9: average_flow_rate | C9: =average_flow*1000000/(24*60) -> 4.861111111 | D9: gpm | E9: Average flow expressed in gpm
A10: Bypass Flow Rate (design) | B10: bp_flow_rate | C10: =bp_pct/(1-bp_pct)*design_flow_rate -> 0 | D10: gpm
A11: Resin type chosen | B11: resin_type | C11: 3 | D11: <-- 1 for Strong Base Polyacrylic, 2 for Strong Base Polystyrenic, 3 for Nitrate-selective, 4 for Perchlorate-selective, 5 for alternative user-defined
A12: Theoretical total empty bed contact time (EBCT) | B12: EBCT | C12: =EBCT_I -> 3 | D12: minutes
A13: Minimum number of vessels in series | B13: Num_tanks | C13: =num_tanks_I -> 2 | D13: units
A14: Vessel geometry | B14: tank_geom | C14: =IF(tank_geom_I="horizontal",2,1) -> 1 | D14: <-- 1 for upright cylindrical, 2 for horizontally-laid cylinder
A16: From Central Cost Database
A17: Maximum Standard Vessel Diameter | B17: max_diam_std_size | C17: =max_vessel_diam_cl -> 14 | D17: feet
A18: Minimum Vessel Diameter | B18: min_diam | C18: =min_vessel_diam_cl -> 1.5 | D18: feet
A19: Maximum Vessel Diameter | B19: max_diam | C19: =IF(max_diam_override>0,max_diam_override,max_diam_std_size) -> 14 | D19: feet | E19: Standard unless overridden on CDA's
A21: Vessel Constraint Verification
A22: Loading rate maximum | B22: load_max | C22: =VLOOKUP("load_max",resin_table,resin_type+1,FALSE) -> 12 | D22: gpm/square ft
A23: EBCT per vessel | B23: EBCT_tank | C23: =EBCT/Num_tanks -> 1.5 | D23: minutes
A24: Vessel surface area | B24: max_sa | C24: =IF(tank_geom=1,(comm_diam-(2*Vessel_thickness))^2*PI()/4,IF(tank_geom=2,(comm_diam-(2*Vessel_thickness))*comm_height_length,0)) -> 1.767145868 | D24: square feet
A25: Height available above media bed (for horizontal vessels) | B25: distance_above | C25: =IF(tank_geom=2,comm_diam-bed_depth-horiz_underdrain,"NA") -> NA | D25: ft
A26: Void space above media bed (for horizontal vessels) | B26: void_above | C26: =IF(tank_geom=2,comm_height_length*(comm_diam*comm_diam/2*ASIN(SQRT(distance_above/comm_diam))-(comm_diam/2-distance_above)*SQRT((comm_diam-distance_above)*distance_above)),"NA") -> NA | D26: cubic feet
A27: Maximum flow per vessel | B27: flow_per_vessel | C27: =IF(tank_geom=1,(max_sa*bed_depth*7.48)/EBCT_tank,media_volume*7.48/EBCT_tank) -> 21.14920174 | D27: gpm | E27: This represents the maximum flow a given vessel could handle, not the flow during normal operating conditions
A28: Number of parallel treatment trains | B28: num_treat_lines | C28: =ROUNDUP(design_flow_rate/flow_per_vessel,0) -> 1 | D28: lines
A29: Number of vessels excluding redundancy | B29: op_num_tanks | C29: =ROUNDUP(design_flow_rate/flow_per_vessel,0)*Num_tanks -> 2 | D29: units
A30: Number of redundant units | B30: NRD | C30: =IF(NRD_I<>"",NRD_I,IF(design_flow>=1,ROUNDUP(num_treat_lines/redund_freq,0),IF(op_num_tanks=1,NRD_small_1,NRD_small))) -> 0
A31: Total number of vessels including redundancy | B31: final_num_tanks | C31: =op_num_tanks+NRD -> 2 | D31: units
A33: Vessel requirements based on bed depth and contact time
A34: Minimum total contact material needed | B34: contact_material | C34: =design_flow_rate*EBCT/(7.481) -> 8.354498062 | D34: cubic feet
A35: Minimum volume of resin per vessel | B35: contact_mat_per_vessel | C35: =contact_material/op_num_tanks -> 4.177249031 | D35: cubic feet
A36: Minimum surface area of contact material | B36: SA | C36: =contact_mat_per_vessel/(bed_depth) -> 1.74052043 | D36: square feet
A38: Quantities based on user-specified vessel dimensions
A39: Final surface area of contact material | B39: comm_SA | C39: =IF(tank_geom=1,(comm_diam-(2*Vessel_thickness))^2*PI()/4,IF(tank_geom=2,(comm_diam-(2*Vessel_thickness))*comm_height_length)) -> 1.767145868 | D39: square feet
A40: Final surface loading rate | B40: comm_load_rate | C40: =(design_flow_rate/num_treat_lines)/comm_SA -> 11.78925504 | D40: gpm/square ft
A41: Media volume per tank | B41: media_volume | C41: =IF(tank_geom=1,comm_SA*bed_depth,comm_vol-underdrain_horiz_void-void_above) -> 4.241150082 | D41: cubic feet
B42: media_volume_gal | C42: =media_volume*7.48 -> 31.72380262 | D42: gallons
A43: Media mass per vessel | B43: media_per_vessel | C43: =media_volume*media_density -> 182.3694535 | D43: lbs/vessel
A44: Total media required | B44: total_media | C44: =media_per_vessel*final_num_tanks -> 364.7389071 | D44: lbs
A46: Media volume when expanded | B46: media_volume_expanded | C46: =media_volume*(1+bed_expansion) -> 6.361725124 | D46: cubic feet
A48: Total vessel volume | B48: comm_vol | C48: =PI()*comm_diam^2/4*comm_height_length -> 7.952156404 | D48: cubic feet
A49: Total vessel volume galons | B49: comm_vol_gal | C49: =comm_vol*7.48 -> 59.4821299 | D49: gal
A51: Checks on user-specified dimensions
A52: Design dimensions for vertical vessels:
A53: Height of vessel required | B53: height | C53: =bed_depth*(1+bed_expansion)+free_board -> 4.1 | D53: feet
A54: Required vessel diameter (circular vessels) | B54: diameter | C54: =(SA*4/PI())^0.5+(2*Vessel_thickness) -> 1.488656925 | D54: feet
A55: Minimum commercial height given diameter | B55: min_comm_height | C55: =VLOOKUP(comm_diam,vessel_size_table_cl,2) -> 3 | D55: feet
A56: Maximum commercial height given diameter | B56: max_comm_height | C56: =VLOOKUP(comm_diam,vessel_size_table_cl,3) -> 6 | D56: feet
A58: Void space required for horizontal vessels:
A59: For freeboard | B59: freeboard_horiz_void | C59: =comm_height_length*(comm_diam*comm_diam/2*ASIN(SQRT(free_board/comm_diam))-(comm_diam/2-free_board)*SQRT((comm_diam-free_board)*free_board)) -> 2.320370896 | D59: cubic feet | E59: Volume of a horizontal slice taken out of a cylinder
A60: For underdrain | B60: underdrain_horiz_void | C60: =comm_height_length*(comm_diam*comm_diam/2*ASIN(SQRT(horiz_underdrain/comm_diam))-(comm_diam/2-horiz_underdrain)*SQRT((comm_diam-horiz_underdrain)*horiz_underdrain)) -> 7.952156404 | D60: cubic feet
A61: Total | B61: horiz_void | C61: =freeboard_horiz_void+underdrain_horiz_void -> 10.2725273 | D61: cubic feet
A63: Volume available for media and expansion:
A64: Vertical vessel | B64: vert_vol_available | C64: =(comm_height_length-free_board)*PI()*comm_diam^2/4 -> 7.068583471 | D64: cubic feet
A65: Horizontal vessel | B65: horiz_vol_available | C65: =comm_vol-61:61 -> -2.320370896 | D65: cubic feet
A66: For selected vessel geometry | B66: input_vol_vess | C66: =CHOOSE(tank_geom,vert_vol_available,horiz_vol_available) -> 7.068583471 | D66: cubic feet | E66: To be compared to vol_vessel, to determine whether vessel is oversized.
A68: Cartridge Filters for Pretreatment
A69: Maximum flow per cartridge filter | B69: cart_per_flow | C69: =VLOOKUP(10^6,cart_cost_cl,1)-0.001 -> 4.32 | D69: MGD
A70: Number of active cartridge filters | B70: active_filters | C70: =IF(include_cart=0,0,MAX(ROUNDUP(design_flow/cart_per_flow,0),IF(design_flow>=1,min_cart,0))) -> 1 | D70: units
A71: Number of redundant cartridge filters | B71: NRD_filters | C71: =IF(include_cart=0,0,init_NRD_cart+ROUNDDOWN(design_flow/addl_redund_cart_per_flow,0)) -> 1 | D71: units
A72: Total number of cartridge filters | B72: num_filters | C72: =active_filters+NRD_filters -> 2 | D72: units
A73: Flow per filter | B73: filter_size | C73: =IF(include_cart=0,0,design_flow/active_filters) -> 0.03 | D73: MGD
A74: Filter length | B74: filter_len | C74: =IF(include_cart=0,0,VLOOKUP(filter_size,cart_dim_table_cl,5)) -> 1.25 | D74: feet
A75: Filter width | B75: filter_wid | C75: =IF(include_cart=0,0,VLOOKUP(filter_size,cart_dim_table_cl,6)) -> 1.25 | D75: feet
A76: Elements per filter | B76: filter_elements | C76: =IF(include_cart=0,0,VLOOKUP(filter_size,cart_dim_table_cl,7)) -> 1 | D76: elements/housing

Sheet Backwash and Regeneration
A1: Backwash and Regeneration Calculations
A3: Calculation | B3: Range Name | C3: Value | D3: Units | E3: Guidance
A4: From Input
A5: Media regeneration or throwaway operation? | B5: regen_type | C5: =IF(throwaway_I="regeneration",1,2) -> 2 | D5: <-- 1 for regeneration, 2 for throwaway
A6: Number of bed volumes before regeneration/throwaway | C6: =BV_regen -> 22000 | D6: For reference only
A7: No backwash | B7: no_backwash | C7: =IF(no_backwash_I="existing pumps",1,IF(no_backwash_I="new pumps","",IF(ss_cat2=1,1,""))) -> 1 | D7: <-- 1 = backwash using existing supply or treated water pumps, blank = include backwash pumps in costs
A8: No backwash tanks | B8: no_back_tank | C8: =IF(no_back_tank_I="existing storage",1,IF(no_back_tank_I="new storage","",IF(ss_cat2=2,"",1))) -> 1 | D8: <-- 1 = backwash from existing storage or supply, blank = include backwash tanks in costs
A9: Brine delivery method | B9: brine_method | C9: =IF(brine_method_I="","",IF(brine_method_I="brine mixing tanks",1,2)) ->  | D9: <-- 1 for brine mixing tanks, 2 for salt saturator
A11: Regeneration Needs
A12: Total resin volume | B12: resin_volume_total | C12: =final_num_tanks*media_volume -> 8.482300165 | D12: cubic feet
A13: Regeneration solution type | B13: regen_sol | C13: =VLOOKUP("regen_sol",resin_table,resin_type+1,FALSE) -> 2 | D13: <-- 1 for brine, 2 for tetrachloroferrate
A14: Time for regeneration | B14: time_regen | C14: =VLOOKUP("time_regen",resin_table,resin_type+1,FALSE) -> 21 | D14: minutes
A16: Brine Regeneration
A17: Brine concentration | B17: brine_conc | C17: =IF(AND(regen_type=1,regen_sol=1),VLOOKUP("brine_conc",resin_table,resin_type+1,FALSE),0) -> 0 | D17: lb/gal
A18: Brine loading rate | B18: brine_load | C18: =IF(AND(regen_type=1,regen_sol=1),VLOOKUP("brine_load",resin_table,resin_type+1,FALSE),0) -> 0 | D18: lb/square ft
A19: Salt needed per vessel | B19: salt_regen | C19: =comm_SA*brine_load -> 0 | D19: lbs
A20: Volume of saturated brine needed per vessel | B20: vol_brine_sat | C20: =IF(AND(regen_type=1,regen_sol=1),salt_regen/brine_conc_sat,0) -> 0 | D20: gallons
A21: Volume of dilute brine needed per vessel | B21: vol_brine | C21: =IF(AND(regen_type=1,regen_sol=1),salt_regen/brine_conc,0) -> 0 | D21: gallons
A22: Salt needed in storage | B22: salt_store | C22: =(regen_month*cstore_days/30)*salt_regen*final_num_tanks/(regen_reuse+1) -> 0 | D22: lbs
A24: Sodium Chloride Purchasing
A25: Quantity required for large quantity purchase | C25: =VLOOKUP("Sodium Chloride - Large Qty",chem_break_table_cl,2,FALSE) -> 27500 | D25: lbs | E25: #N/A indicates that price data do not depend on volume purchased.
A26: Quantity required for mid quantity purchase | C26: =VLOOKUP("Sodium Chloride - Mid Qty",chem_break_table_cl,2,FALSE) -> 5000 | D26: lbs | E26: #N/A indicates that price data do not depend on volume purchased.
A27: Quantity required for small quantity purchase | C27: =VLOOKUP("Sodium Chloride - Small Qty",chem_break_table_cl,2,FALSE) -> 0 | D27: lbs | E27: #N/A indicates that price data do not depend on volume purchased.
A28: Purchase Type | B28: salt_purchase | C28: =IF(AND(ISNA(C25),ISNA(C26),ISNA(C27)),"",IF(salt_store>=C25," - Large Qty",IF(salt_store>=C26," - Mid Qty"," - Small Qty"))) -> - Small Qty | E28: Returns descriptive term based on volume of each purchase for use in determining pricing. Blank indicates that price data do not depend on volume purchased.
A30: Tetrachloroferrate Regeneration
A31: Tetrachloroferrate bed volumes | B31: FeCl4_BV | C31: =IF(AND(regen_type=1,regen_sol=2),VLOOKUP("FeCl4_BV",resin_table,resin_type+1,FALSE),0) -> 0 | D31: bed volumes
A32: Volume of tetrachoroferrate per vessel | B32: vol_FeCl4 | C32: =FeCl4_BV*media_volume_gal -> 0 | D32: gallons
A33: Molarity of HCl in solution | B33: HCl_M | C33: =IF(AND(regen_type=1,regen_sol=2),VLOOKUP("HCl_M",resin_table,resin_type+1,FALSE),0) -> 0 | D33: M
A34: Molarity of FeCl3 in solution | B34: FeCl3_M | C34: =IF(AND(regen_type=1,regen_sol=2),VLOOKUP("FeCl3_M",resin_table,resin_type+1,FALSE),0) -> 0 | D34: M
A35: HCl specific gravity | B35: HCl_sg | C35: =VLOOKUP(HCl_pct,hcl_table_cl,2) -> 1.1789 | D35: kg/L
A36: HCl required for tetrachloroferrate solution | B36: HCl_in_solution | C36: =HCl_M/(HCl_pct*1000*HCl_sg/HCl_mw)*vol_FeCl4 -> 0 | D36: gallons
A37: FeCl3 required | B37: FeCl3_in_solution | C37: =FeCl3_M*FeCl3_mw*vol_FeCl4*3.785/453.59 -> 0 | D37: lbs
A38: FeCl3 needed in storage | B38: FeCl3_store | C38: =MAX(FeCl3_in_solution,(regen_month*cstore_days/30)*FeCl3_in_solution*final_num_tanks/(regen_reuse+1)) -> 0 | D38: lbs
A39: Fill time | B39: fill_time | C39: =IF(AND(regen_type=1,regen_sol=2),regen_freq-regeneration_downtime,"NA") -> NA | D39: minutes
A40: HCl fill rate | B40: HCl_fill_rate | C40: =IF(HCl_in_solution=0,0,HCl_in_solution/fill_time*(1+FeCl4_safety_factor)) -> 0 | D40: gpm
A41: FeCl3 fill rate | B41: FeCl3_fill_rate | C41: =IF(FeCl3_in_solution=0,0,FeCl3_in_solution/coag_pct/coag_density/fill_time*(1+FeCl4_safety_factor)) -> 0 | D41: gpm
A42: Molarity of dilute HCl rinse | B42: dil_HCl_M | C42: =IF(AND(regen_type=1,regen_sol=2),VLOOKUP("dil_HCl_M",resin_table,resin_type+1,FALSE),0) -> 0 | D42: M
A43: HCl rinse bed volumes | B43: HCl_BV | C43: =IF(AND(regen_type=1,regen_sol=2),VLOOKUP("HCl_BV",resin_table,resin_type+1,FALSE),0) -> 0 | D43: bed volumes
A44: HCl rinse volume per vessel | B44: HCl_rinse_vol | C44: =HCl_BV*media_volume_gal -> 0 | D44: gallons
A45: HCl required for rinse | B45: HCl_in_rinse | C45: =dil_HCl_M/(HCl_pct*1000*HCl_sg/HCl_mw)*HCl_rinse_vol -> 0 | D45: gallons
A46: HCl rinse time | B46: HCl_rinse_time | C46: =HCl_rinse_vol/(comm_SA*comm_load_rate) -> 0 | D46: minutes | E46: Assumes rinse rate = design loading rate
A47: HCl metering rate for rinse | B47: HCl_to_rinse_gph | C47: =IF(HCl_rinse_time=0,0,HCl_in_rinse/HCl_rinse_time)*60 -> 0 | D47: gph
A49: Backwash and water rinse
A50: Backwash rate (gpm) | B50: water_flush | C50: =ROUND(h2oflush_backwash_rate*comm_SA,0) -> 5 | D50: gpm
A51: Backwash volume | B51: waterflush_vol | C51: =water_flush*backwash_time -> 60 | D51: gallons
A52: Brine dilution water | B52: brine_dilution_vol | C52: =vol_brine-vol_brine_sat -> 0 | D52: gallons
A53: Water rinse bed volumes | B53: rinse_BV | C53: =IF(regen_type=1,VLOOKUP("rinse_BV",resin_table,resin_type+1,FALSE),0) -> 0 | D53: bed volumes
A54: Water rinse volume | B54: rinse_vol | C54: =media_volume_gal*rinse_BV -> 0 | D54: gallons
A55: Water rinse time | B55: rinse_time | C55: =rinse_vol/(comm_SA*rinse_rate) -> 0 | D55: minutes
A56: Water rinse rate (gpm) | B56: rinse_gpm | C56: =IF(rinse_time=0,0,rinse_vol/rinse_time) -> 0 | D56: gpm
A57: HCl dilution water | B57: dilution_vol | C57: =HCl_rinse_vol-HCl_in_rinse -> 0 | D57: gallons
A58: HCl dilution water rate (gpm) | B58: dilution_gpm | C58: =IF(HCl_rinse_time=0,0,HCl_rinse_vol/HCl_rinse_time) -> 0 | D58: gpm
A59: Total water volume | B59: total_backwash | C59: =waterflush_vol+rinse_vol+dilution_vol+brine_dilution_vol -> 60 | D59: gallons
A60: Backwashes per year per vessel | C60: =365/regen_days+IF(add_backwash_freq=0,0,365/add_backwash_freq) -> 3.660858852 | D60: backwash per year
A61: Total number of backwashes per year (all vessels) | C61: =C60*final_num_tanks -> 7.321717705 | D61: backwash per year | E61: Number of backwash events per year for all vessels includes redundancy
A63: Regenerant Use
A64: Volume of regenerant | B64: vol_regen | C64: =IF(regen_type=1,CHOOSE(regen_sol,vol_brine,vol_FeCl4),0) -> 0 | D64: gallons
A65: Regeneration per vessel frequency | B65: regen_days | C65: =((num_treat_lines*media_volume_gal*BV_regen)/(average_flow*1000000)) -> 99.70337965 | D65: days | E65: Using average flow
A66: Time between regenerations | B66: regen_freq | C66: =regen_days/final_num_tanks*24*60 -> 71786.43335 | D66: minutes | E66: Assumes staggered regeneration
A67: Number of regeneration washes per month | B67: regen_month | C67: =30/regen_days -> 0.3008925084 | D67: washes/vessel/month
A68: Regeneration downtime | B68: regeneration_downtime | C68: =backwash_time+rinse_time+time_regen+HCl_rinse_time -> 33 | D68: minutes
A69: Total days for full regeneration | B69: total_downtime | C69: =regeneration_downtime*final_num_tanks/(24*60) -> 0.04583333333 | D69: days
A70: Number of vessels regenerated at a time | B70: regen_redun | C70: =ROUNDUP(total_downtime/regen_days,0) -> 1
A72: Regenerant Mixing Tanks
A73: Volume required | B73: mix_tank_vol_tot | C73: =IF(OR(regen_type=2,brine_method=2),0,IF(regen_sol=1,vol_brine_sat,vol_regen)) -> 0 | D73: gallons
A74: Maximum chemical storage tank size | B74: max_chem_tank_size | C74: =MAX(VLOOKUP(10^6,pl_cst_cost_cl,1)-1,VLOOKUP(10^6,fg_cst_cost_cl,1)-1,VLOOKUP(10^6,ss_cst_cost_cl,1)-1) -> 30000 | D74: gallons | E74: The largest size for which costs are available.
A75: Mixing tanks | B75: mix_tanks | C75: =IF(OR(regen_type=2,brine_method=2),0,IF(mix_tank_vol_tot>max_chem_tank_size,ROUNDUP(mix_tank_vol_tot/max_chem_tank_size,0)*regen_redun,regen_redun)) -> 0 | D75: units
A76: Mixing tank volume | B76: mix_tank_vol | C76: =IF(mix_tanks=0,0,mix_tank_vol_tot*regen_redun/mix_tanks) -> 0 | D76: gallons
A77: Number of mixers | B77: mixers | C77: =mix_tanks -> 0 | D77: units
A79: Salt Saturators (brine only)
A80: Maximum size of salt saturator | B80: max_saltbox | C80: =MAX(VLOOKUP(10^6,fg_saltbox_cost_cl,1)-0.1,VLOOKUP(10^6,pl_saltbox_cost_cl,1)-0.1) -> 80 | D80: tons | E80: The largest size for which costs are available.
A81: Salt saturator size needed | B81: salt_box_need | C81: =IF(salt_store/cstore_days/2000>=min_saltbox,salt_store/cstore_days/2000,IF(salt_store/(cstore_days/7)/2000>=min_saltbox,salt_store/(cstore_days/7)/2000,salt_store/(cstore_days/30)/2000)) -> 0 | D81: tons | E81: Provides one day, one week, or one month of storage, depending on quantity needed
A82: Days of storage provided by salt saturator | B82: salt_box_days | C82: =IF(salt_store/cstore_days/2000>=min_saltbox,1,IF(salt_store/(cstore_days/7)/2000>=min_saltbox,7,30)) -> 30 | D82: days
A83: Additional salt storage needed | B83: add_salt_store | C83: =IF(cstore_days-salt_box_days>0,cstore_days-salt_box_days,0) -> 0 | D83: days | E83: Additonal storage to total at least as many days supply onsite as specified in CDAs
A84: Number of salt saturators | B84: num_salt_box | C84: =IF(AND(regen_type=1,regen_sol=1,brine_method=2),ROUNDUP(salt_box_need/max_saltbox,0),0) -> 0 | D84: units
A85: Salt saturator size | B85: salt_box_size | C85: =IF(AND(regen_type=1,regen_sol=1,brine_method=2),IF(ROUNDUP(salt_box_need/num_salt_box,0)<min_saltbox,min_saltbox,ROUNDUP(salt_box_need/num_salt_box,0)),0) -> 0 | D85: tons
A87: Eductors (brine only)
A88: Maximum eductor size | B88: max_eductor_size | C88: =VLOOKUP(10^6,eductor_size_table_cl,1) -> 53.5 | D88: gpm | E88: The largest size for which costs are available.
A89: Number of eductors | B89: eductors | C89: =IF(regen_type=2,0,IF(regen_sol=1,IF(brine_method=1,mix_tanks,num_salt_box),0)) -> 0 | D89: units
A91: HCl tanks (tetrachloroferrate only) | E91: FeCl3 tanks are calculated on the residuals management page, because the same supply might be used for residuals coagulation
A92: Total HCl volume required | B92: total_HCl | C92: =(HCl_in_solution+HCl_in_rinse)*regen_redun*regen_month*cstore_days/30 -> 0 | D92: gallons
A93: Maximum chemical storage tank size excluding stainless steel | B93: max_chem_tank_size_noSS | C93: =MAX(VLOOKUP(10^6,pl_cst_cost_cl,1)-1,VLOOKUP(10^6,fg_cst_cost_cl,1)-1) -> 30000 | D93: gallons | E93: The largest size for which costs are available (not including stainless, which is not compatible with hydrochloric acid)
A94: HCl tanks | B94: HCl_tanks | C94: =IF(total_HCl=0,0,ROUNDUP(total_HCl/max_chem_tank_size_noSS,0)) -> 0 | D94: units
A95: HCl tank volume | B95: HCl_tank_vol | C95: =IF(total_HCl=0,0,ROUNDUP(total_HCl/HCl_tanks,0)) -> 0 | D95: gallons
A96: HCl density | B96: HCl_dens | C96: =VLOOKUP(HCl_pct,hcl_table_cl,4) -> 3.542 | D96: lbs/gal
A97: Total HCl in lbs needed in storage | B97: total_HCl_lbs | C97: =total_HCl*C96 -> 0 | D97: lbs
A99: Hydrochloric Acid Purchasing
A100: Quantity required for large quantity purchase | C100: =VLOOKUP("Hydrochloric Acid - Large Qty",chem_break_table_cl,2,FALSE) -> 17710 | D100: lbs | E100: #N/A indicates that price data do not depend on volume purchased.
A101: Quantity required for mid quantity purchase | C101: =VLOOKUP("Hydrochloric Acid - Mid Qty",chem_break_table_cl,2,FALSE) -> 1771 | D101: lbs | E101: #N/A indicates that price data do not depend on volume purchased.
A102: Quantity required for small quantity purchase | C102: =VLOOKUP("Hydrochloric Acid - Small Qty",chem_break_table_cl,2,FALSE) -> 0 | D102: lbs | E102: #N/A indicates that price data do not depend on volume purchased.
A103: Purchase Type | B103: HCl_purchase | C103: =IF(AND(ISNA(C100),ISNA(C101),ISNA(C102)),"",IF(total_HCl_lbs>=C100," - Large Qty",IF(total_HCl_lbs>=C101," - Mid Qty"," - Small Qty"))) -> - Small Qty | E103: Returns descriptive term based on volume of each purchase for use in determining pricing. Blank indicates that price data do not depend on volume purchased.
A105: Backwash tanks
A106: Maximum backwash tank size | B106: max_back_tank_size | C106: =MAX(VLOOKUP(10^6,st_bwt_cost_cl,1)-1,VLOOKUP(10^6,fg_bwt_cost_cl,1)-1,VLOOKUP(10^6,hdpe_bwt_cost_cl,1)-1) -> 289000 | D106: gallons | E106: The largest size for which costs are available.
A107: Backwash tanks | B107: back_tanks | C107: =IF(no_back_tank=1,0,ROUNDUP(total_backwash/max_back_tank_size,0)) -> 0 | D107: units
A108: Backwash tank volume | B108: back_tank_vol | C108: =IF(total_backwash=0,0,IF(back_tanks=0,0,total_backwash/back_tanks)) -> 0 | D108: gal
A110: Secondary Containment for HCl Tanks
A111: Minimum volume required | B111: hcl_cont_volume | C111: =MAX(HCl_tanks*HCl_tank_vol*sec_cont_pct_of_total,HCl_tank_vol*sec_cont_pct_of_largest)/7.48 -> 0 | D111: cubic feet | E111: 7.48 converts gallons to cubic feet
A112: Footprint available | B112: hcl_cont_fp | C112: =IF(HCl_tanks=0,0,acid_tank_fp-HCl_tanks*PI()*(at_diam/2)^2) -> 0 | D112: square feet | E112: Total footprint minus displacement by tanks themselves
A113: Curb height required | B113: hcl_curb_height | C113: =IF(HCl_tanks=0,0,hcl_cont_volume/hcl_cont_fp+sec_cont_freeboard/12) -> 0 | D113: feet
A114: Curb thickness | B114: hcl_curb_thick | C114: =IF(HCl_tanks=0,0,MIN(sec_cont_max_thick,hcl_curb_height)) -> 0 | D114: feet
A115: Curb length (long side) | B115: hcl_curb_len_long | C115: =IF(HCl_tanks=0,0,HCl_tanks*at_diam+2*space_at+(HCl_tanks-1)*space_at+2*hcl_curb_thick) -> 0 | D115: feet
A116: Curb length (short side) | B116: hcl_curb_len_short | C116: =IF(HCl_tanks=0,0,at_diam+2*space_at) -> 0 | D116: feet
A117: Curb concrete volume | B117: hcl_curb_concrete | C117: =IF(HCl_tanks=0,0,ROUNDUP((hcl_curb_len_long*2+hcl_curb_len_short*2)*hcl_curb_height*hcl_curb_thick/27,0)) -> 0 | D117: cubic yards | E117: 27 converts cubic feet to cubic yards
A118: Chemical resistant coating required | B118: hcl_coating_gal | C118: =IF(HCl_tanks=0,0,ROUNDUP((acid_tank_fp+2*(hcl_curb_len_long-2*hcl_curb_thick)*hcl_curb_height+2*hcl_curb_len_short*hcl_curb_height)/sec_cont_coating_cvg,0)) -> 0 | D118: gallons | E118: Covers total footprint plus inside surface and top of curbs
A120: Secondary Containment for Regenerant Mixing Tanks
A121: Minimum volume required | B121: mix_cont_volume | C121: =MAX(mix_tanks*mix_tank_vol*sec_cont_pct_of_total,mix_tank_vol*sec_cont_pct_of_largest)/7.48 -> 0 | D121: cubic feet | E121: 7.48 converts gallons to cubic feet
A122: Footprint available | B122: mix_cont_fp | C122: =IF(mix_tanks=0,0,mix_tank_fp-mix_tanks*PI()*(mx_diam/2)^2) -> 0 | D122: square feet | E122: Total footprint minus displacement by tanks themselves
A123: Curb height required | B123: mix_curb_height | C123: =IF(mix_tanks=0,0,mix_cont_volume/mix_cont_fp+sec_cont_freeboard/12) -> 0 | D123: feet
A124: Curb thickness | B124: mix_curb_thick | C124: =IF(mix_tanks=0,0,MIN(sec_cont_max_thick,mix_curb_height)) -> 0 | D124: feet
A125: Curb length (long side) | B125: mix_curb_len_long | C125: =IF(mix_tanks=0,0,mix_tanks*mx_diam+2*space_st+(mix_tanks-1)*space_st+2*mix_curb_thick) -> 0 | D125: feet
A126: Curb length (short side) | B126: mix_curb_len_short | C126: =IF(mix_tanks=0,0,mx_diam+2*space_st) -> 0 | D126: feet
A127: Curb concrete volume | B127: mix_curb_concrete | C127: =IF(mix_tanks=0,0,ROUNDUP((mix_curb_len_long*2+mix_curb_len_short*2)*mix_curb_height*mix_curb_thick/27,0)) -> 0 | D127: cubic yards | E127: 27 converts cubic feet to cubic yards
A128: Chemical resistant coating required | B128: mix_coating_gal | C128: =IF(mix_tanks=0,0,ROUNDUP((mix_tank_fp+2*(mix_curb_len_long-2*mix_curb_thick)*mix_curb_height+2*mix_curb_len_short*mix_curb_height)/sec_cont_coating_cvg,0)) -> 0 | D128: gallons | E128: Covers total footprint plus inside surface and top of curbs

Sheet pH Adjust
A1: Adjusting pH and alkalinity of finished water
A3: Calculation | B3: Range Name | C3: Value | D3: Units | E3: Guidance
A4: pH Adjustment Chemistry
A5: Ionic strength (I) | B5: I_ion_str | C5: =TDS_I/40000 -> 0.005 | D5: mol/L | E5: 40,000 converts TDS to ionic strength, Equation 4, Trussell 1998
A6: Temperature variance from 25 degrees centigrade | B6: t_minus25 | C6: =t_I-25 -> -15 | D6: degrees C | E6: For use in Equation S14, Trussell 1998
A7: Dielectric constant (D) | B7: D_dielectric | C7: =78.54*(1-0.004579*t_minus25+0.0000119*t_minus25^2+0.000000028*t_minus25^3) -> 84.13738872 | E7: Equation S14, Trussell 1998
A8: Temperature in degrees Kelvin | B8: T_K | C8: =t_I+273 -> 283 | D8: degrees K | E8: 273 converts degrees C to degrees K
A9: Limiting theoretical slope (A) | B9: A_slope_lim | C9: =1290000*(SQRT(2)/(D_dielectric*T_K)^1.5) -> 0.496525447 | E9: Equation S13, Trussell 1998
A10: Monovalent activity coefficient (-log form) | B10: log_gamma_1 | C10: =A_slope_lim*1^2*(SQRT(I_ion_str)/(1+SQRT(I_ion_str))-0.3*I_ion_str) -> 0.03204619055 | E10: Modified Davies equation, Equation S12, Trussell 1998
A11: Divalent activity coefficient (-log form) | B11: log_gamma_2 | C11: =A_slope_lim*2^2*(SQRT(I_ion_str)/(1+SQRT(I_ion_str))-0.3*I_ion_str) -> 0.1281847622 | E11: Modified Davies equation, Equation S12, Trussell 1998
A12: Monovalent activity coefficient (ɣ1) | B12: gamma_1 | C12: =10^-log_gamma_1 -> 0.9288675893
A13: Divalent activity coefficient (ɣ2) | B13: gamma_2 | C13: =10^-log_gamma_2 -> 0.7444152094
A14: Equilibrium constant for carbonic acid (H2CO3) (-log form) | B14: pK_1 | C14: =a1_K1+a2_K1/T_K+a3_K1*LOG10(T_K)+a4_K1*T_K+a5_K1/T_K^2 -> 6.476641144
A15: Equilibrium constant for bicarbonate (HCO3-) (-log form) | B15: pK_2 | C15: =a1_K2+a2_K2/T_K+a3_K2*LOG10(T_K)+a4_K2*T_K+a5_K2/T_K^2 -> 10.48853824
A16: Equilibrium constant for water (H2O) (-log form) | B16: pK_w | C16: =a1_Kw+a2_Kw/T_K+a3_Kw*LOG10(T_K)+a4_Kw*T_K+a5_Kw/T_K^2 -> 14.53856657
A17: Equilibrium constant for carbonic acid (H2CO3) (K1) | B17: K_1 | C17: =10^-pK_1 -> 3.337020356e-07
A18: Equilibrium constant for bicarbonate (HCO3-) (K2) | B18: K_2 | C18: =10^-pK_2 -> 3.246846499e-11
A19: Equilibrium constant for water (H2O) (Kw) | B19: K_w | C19: =10^-pK_w -> 2.893566232e-15
A20: Intermediate calculation | B20: term1_i | C20: =gamma_1*10^-pHo/K_1 -> 0.2783523893 | E20: ɣ110-pH / K1
A21: Intermediate calculation | B21: term2_i | C21: =(gamma_1*K_2)/(gamma_2*10^-pHo) -> 0.0004051355268 | E21: ɣ1K2 / ɣ210-pH
A22: Intermediate calculation | B22: term3_i | C22: =alk_I/50000 -> 0.0005 | D22: eq/L | E22: Alk / 50,000 (where 50,000 converts mg/L to eq/L)
A23: Intermediate calculation | B23: term4_i | C23: =K_w/(gamma_1*10^-pHo) -> 3.115154695e-08 | E23: Kw / ɣ110-pH
A24: Intermediate calculation | B24: term5_i | C24: =10^-pHo/gamma_1 -> 1.07657971e-07 | E24: 10-pH / ɣ1
A25: Intermediate calculation | B25: term6_i | C25: =(2*K_2*gamma_1)/(gamma_2*10^-pHo) -> 0.0008102710536 | E25: 2K2ɣ1 / ɣ210-pH
A26: Initial total inorganic carbon (CT) | B26: C_T_i | C26: =(1+term1_i+term2_i)*((term3_i-term4_i+term5_i)/(1+term6_i)) -> 0.0006389588657 | D26: mol/L | E26: Equation 15, Najm 2001
A27: Intermediate calculation | B27: term1_f | C27: =(2*K_2*gamma_1)/(gamma_2*10^-pHf) -> 0.01284193077 | E27: 2K2ɣ1 / ɣ210-pH
A28: Intermediate calculation | B28: term2_f | C28: =(gamma_1*10^-pHf)/K_1 -> 0.01756284844 | E28: ɣ110-pH / K1
A29: Intermediate calculation | B29: term3_f | C29: =(gamma_1*K_2)/(gamma_2*10^-pHf) -> 0.006420965384 | E29: ɣ1K2 / ɣ210-pH
A30: Intermediate calculation | B30: term4_f | C30: =K_w/(gamma_1*10^-pHf) -> 4.93718747e-07 | E30: Kw / ɣ110-pH
A31: Intermediate calculation | B31: term5_f | C31: =10^-pHf/gamma_1 -> 6.79275875e-09 | E31: 10-pH / ɣ1
A32: Treated water alkalinity | B32: alk_f | C32: =50000*((C_T_i*(1+term1_f))/(1+term2_f+term3_f)+term4_f-term5_f) -> 31.62466666 | D32: mg/L as CaCO3 | E32: Equation 17, Najm 2001, where 50,000 converts eq/L to mg/L
A33: Hydroxide (OH-) required | B33: OH_tot | C33: =(alk_f-alk_I)/50000 -> 0.0001324933332 | D33: mol/L | E33: Equation 20, Najm 2001, where 50,000 converts from mg/L to mol/L
A35: Chemical Usage
A36: NaOH required to raise alkalinity and pH | B36: NaOH_tot | C36: =IF(pH_adj="yes",39.997*OH_tot*1000,0) -> 0 | D36: mg/L | E36: 39.997 is molar mass of NaOH in g/mol, 1,000 converts g to mg
A37: NaOH concentration in lbs/gal | B37: caustic_conc_lb | C37: =VLOOKUP(NaOH_pct,NaOH_table_cl,2) -> 6.364 | D37: lbs/gal
A38: Pounds of pure NaOH needed per day | B38: lb_NaOH_day | C38: =1000000*3.7854*NaOH_tot*2.2*average_flow/1000000 -> 0 | D38: lbs
A39: Pounds of pure NaOH needed in storage | B39: lb_NaOH_store | C39: =ROUNDUP(lb_NaOH_day*cstore_days,0) -> 0 | D39: lbs
A40: Gallons of NaOH needed per day | B40: gal_NaOH_day | C40: =lb_NaOH_day/caustic_conc_lb -> 0 | D40: gal
A41: Gallons of NaOH needed in storage | B41: gal_NaOH_store | C41: =ROUNDUP(lb_NaOH_store/caustic_conc_lb,0) -> 0 | D41: gal
A42: Max NaOH flow (based on design flow) | B42: des_NaOH_flow | C42: =gal_NaOH_day/24*design_flow/average_flow -> 0 | D42: gph
A43: NaOH solution specific gravity | B43: NaOH_spgr | C43: =VLOOKUP(NaOH_pct,NaOH_table_cl,4) -> 1.525
A44: Total weight of bulk NaOH solution in storage | B44: NaOH_lbs | C44: =IF(gal_NaOH_store=0,0,ROUNDUP(gal_NaOH_store*NaOH_spgr*8.345,0)) -> 0 | D44: lbs
A46: NaOH tanks
A47: NaOH tanks | B47: NaOH_tanks | C47: =IF(gal_NaOH_store=0,0,ROUNDUP(gal_NaOH_store/max_chem_tank_size,0)) -> 0 | D47: units
A48: NaOH tank volume | B48: NaOH_tank_vol | C48: =IF(gal_NaOH_store=0,0,ROUNDUP(gal_NaOH_store/NaOH_tanks,0)) -> 0 | D48: gallons
A49: Day tank storage volume required (based on design flow) | B49: NaOH_day_tank_vol_needed | C49: =1000000*3.7854*NaOH_tot*2.2*design_flow/1000000/caustic_conc_lb -> 0 | D49: gallons
A50: Number of day tanks | B50: NaOH_day_tanks | C50: =IF(NaOH_day_tank_vol_needed<day_tank_needed,0,ROUNDUP(NaOH_day_tank_vol_needed/max_chem_tank_size,0)) -> 0 | D50: units
A51: Volume of day tanks | B51: NaOH_day_tank_vol | C51: =IF(NaOH_day_tanks=0,0,ROUNDUP(NaOH_day_tank_vol_needed/NaOH_day_tanks,0)) -> 0 | D51: gallons
A53: Sodium Hydroxide Purchasing
A54: Quantity required for large quantity purchase | C54: =VLOOKUP("Sodium Hydroxide - Large Qty",chem_break_table_cl,2,FALSE) ->  | D54: lbs | E54: #N/A indicates that price data do not depend on volume purchased.
A55: Quantity required for mid quantity purchase | C55: =VLOOKUP("Sodium Hydroxide - Mid Qty",chem_break_table_cl,2,FALSE) ->  | D55: lbs | E55: #N/A indicates that price data do not depend on volume purchased.
A56: Quantity required for small quantity purchase | C56: =VLOOKUP("Sodium Hydroxide - Small Qty",chem_break_table_cl,2,FALSE) ->  | D56: lbs | E56: #N/A indicates that price data do not depend on volume purchased.
A57: Purchase Type | B57: NaOH_purchase | C57: =IF(AND(ISNA(C54),ISNA(C55),ISNA(C56)),"",IF(NaOH_lbs>=C54," - Large Qty",IF(NaOH_lbs>=C55," - Mid Qty"," - Small Qty"))) ->  | E57: Returns descriptive term based on volume of each purchase for use in determining pricing. Blank indicates that price data do not depend on volume purchased.
A59: Mixers
A60: Maximum chemical tank mixer horsepower | B60: cmix_hp_max | C60: =MAX(VLOOKUP(10^6,port_mix_cost_cl,1)-0.1,VLOOKUP(10^6,mount_mix_cost_cl,1)-0.1,VLOOKUP(10^6,imp_mix_cost_cl,1)-0.1) -> 30 | D60: hp
A61: Mixers per storage tank | B61: cmix_per_tank | C61: =IF(AND(include_cmix=1,NaOH_tanks<>0),ROUNDUP(NaOH_tank_vol/1000*cmix_hp_per/cmix_hp_max,0),0) -> 0 | D61: units
A62: Number of storage tank mixers | B62: cmixers | C62: =NaOH_tanks*cmix_per_tank -> 0 | D62: units
A63: Mixer size for storage tanks | B63: cmix_size | C63: =IF(cmixers<>0,MAX(min_cmix_hp,NaOH_tank_vol/1000*cmix_hp_per/cmix_per_tank),0) -> 0 | D63: hp
A64: Mixers per day tank | B64: dmix_per_tank | C64: =IF(AND(include_cmix=1,NaOH_day_tanks<>0),ROUNDUP(NaOH_day_tank_vol/1000*cmix_hp_per/cmix_hp_max,0),0) -> 0 | D64: units
A65: Number of day tank mixers | B65: dmixers | C65: =NaOH_day_tanks*dmix_per_tank -> 0 | D65: units
A66: Mixer size for day tanks | B66: dmix_size | C66: =IF(dmixers<>0,MAX(min_cmix_hp,NaOH_day_tank_vol/1000*cmix_hp_per/dmix_per_tank),0) -> 0 | D66: hp
A68: Secondary Containment for NaOH Storage Tanks
A69: Minimum volume required | B69: ct_cont_volume | C69: =MAX(NaOH_tanks*NaOH_tank_vol*sec_cont_pct_of_total,NaOH_tank_vol*sec_cont_pct_of_largest)/7.48 -> 0 | D69: cubic feet | E69: 7.48 converts gallons to cubic feet
A70: Footprint available | B70: ct_cont_fp | C70: =IF(NaOH_tanks=0,0,NaOH_tank_fp-NaOH_tanks*PI()*(NaOHtank_diam/2)^2) -> 0 | D70: square feet | E70: Total footprint minus displacement by tanks themselves
A71: Curb height required | B71: ct_curb_height | C71: =IF(NaOH_tanks=0,0,ct_cont_volume/ct_cont_fp+sec_cont_freeboard/12) -> 0 | D71: feet
A72: Curb thickness | B72: ct_curb_thick | C72: =IF(NaOH_tanks=0,0,MIN(sec_cont_max_thick,ct_curb_height)) -> 0 | D72: feet
A73: Curb length (long side) | B73: ct_curb_len_long | C73: =IF(NaOH_tanks=0,0,NaOH_tanks*NaOHtank_diam+2*space_NaOHtank+(NaOH_tanks-1)*space_NaOHtank+2*ct_curb_thick) -> 0 | D73: feet
A74: Curb length (short side) | B74: ct_curb_len_short | C74: =IF(NaOH_tanks=0,0,NaOHtank_diam+2*space_NaOHtank) -> 0 | D74: feet
A75: Curb concrete volume | B75: ct_curb_concrete | C75: =IF(NaOH_tanks=0,0,ROUNDUP((ct_curb_len_long*2+ct_curb_len_short*2)*ct_curb_height*ct_curb_thick/27,0)) -> 0 | D75: cubic yards | E75: 27 converts cubic feet to cubic yards
A76: Chemical resistant coating required | B76: ct_coating_gal | C76: =IF(NaOH_tanks=0,0,ROUNDUP((NaOH_tank_fp+2*(ct_curb_len_long-2*ct_curb_thick)*ct_curb_height+2*ct_curb_len_short*ct_curb_height)/sec_cont_coating_cvg,0)) -> 0 | D76: gallons | E76: Covers total footprint plus inside surface and top of curbs
A78: Secondary Containment for NaOH Day Tanks
A79: Minimum volume required | B79: dt_cont_volume | C79: =MAX(NaOH_day_tanks*NaOH_day_tank_vol*sec_cont_pct_of_total,NaOH_day_tank_vol*sec_cont_pct_of_largest)/7.48 -> 0 | D79: cubic feet | E79: 7.48 converts gallons to cubic feet
A80: Footprint available | B80: dt_cont_fp | C80: =IF(NaOH_day_tanks=0,0,NaOHday_tank_fp-NaOH_day_tanks*PI()*(NaOHdaytank_diam/2)^2) -> 0 | D80: square feet | E80: Total footprint minus displacement by tanks themselves
A81: Curb height required | B81: dt_curb_height | C81: =IF(NaOH_day_tanks=0,0,dt_cont_volume/dt_cont_fp+sec_cont_freeboard/12) -> 0 | D81: feet
A82: Curb thickness | B82: dt_curb_thick | C82: =IF(NaOH_day_tanks=0,0,MIN(sec_cont_max_thick,dt_curb_height)) -> 0 | D82: feet
A83: Curb length (long side) | B83: dt_curb_len_long | C83: =IF(NaOH_day_tanks=0,0,NaOH_day_tanks*NaOHdaytank_diam+2*space_NaOHdaytank+(NaOH_day_tanks-1)*space_NaOHdaytank+2*dt_curb_thick) -> 0 | D83: feet
A84: Curb length (short side) | B84: dt_curb_len_short | C84: =IF(NaOH_day_tanks=0,0,NaOHdaytank_diam+2*space_NaOHdaytank) -> 0 | D84: feet
A85: Curb concrete volume | B85: dt_curb_concrete | C85: =IF(NaOH_day_tanks=0,0,ROUNDUP((dt_curb_len_long*2+dt_curb_len_short*2)*dt_curb_height*dt_curb_thick/27,0)) -> 0 | D85: cubic yards | E85: 27 converts cubic feet to cubic yards
A86: Chemical resistant coating required | B86: dt_coating_gal | C86: =IF(NaOH_day_tanks=0,0,ROUNDUP((NaOHday_tank_fp+2*(dt_curb_len_long-2*dt_curb_thick)*dt_curb_height+2*dt_curb_len_short*dt_curb_height)/sec_cont_coating_cvg,0)) -> 0 | D86: gallons | E86: Covers total footprint plus inside surface and top of curbs

Sheet Pumps Pipe Structure
A1: Pumps, Piping, and Structure Calculations
A3: Calculation | B3: Range Name | C3: Value | D3: Units | E3: Guidance
A4: Pump Design
A5: Flow of each booster pump | B5: pump_rating | C5: =IF(lines_pump_I="",IF(ss_cat2=1,0,MIN(MAX(average_flow_rate+bp_flow_rate*average_flow_rate/design_flow_rate,(design_flow_rate+bp_flow_rate)/2)*(1+pump_safety_factor),max_pump_size)),IF(lines_pump_I=0,0,(design_flow_rate+bp_flow_rate)*(1+pump_safety_factor)/lines_pump_I)) -> 0 | D5: gpm | E5: Includes safety factor
A6: Maximum pump size | B6: max_pump_size | C6: =VLOOKUP(10^6,pump_cost_cl,1)-1 -> 10000 | D6: gpm | E6: The largest pump size for which costs are available. For booster pumps, will override lines per pump input, if this input results in pumps that are too large.
A7: Number of booster pumps | B7: booster_pumps | C7: =IF(pump_rating=0,0,ROUNDUP((design_flow_rate+bp_flow_rate)*(1+pump_safety_factor)/pump_rating,0)) -> 0 | D7: units
A8: Total booster pumps | B8: total_booster_pumps | C8: =IF(booster_pumps=0,0,booster_pumps+NRD_pumps) -> 0 | D8: units
A9: Maximum required backwash pump flow | B9: max_back_flow | C9: =MAX(water_flush,rinse_gpm,dilution_gpm) -> 5 | D9: gpm
A10: Number of backwash pumps | B10: backwash_pumps | C10: =IF(OR(no_backwash=1,max_back_flow=0),0,ROUNDUP(max_back_flow*(1+pump_safety_factor)/max_pump_size,0)+NRD_back_pumps) -> 0 | D10: pumps | E10: Includes one pump for redundancy
A11: Backwash pump rating | B11: back_pump_rating | C11: =IF(backwash_pumps=0,0,max_back_flow*(1+pump_safety_factor)/(backwash_pumps-NRD_back_pumps)) -> 0 | D11: gpm | E11: Includes safety factor
A13: Additional pumps for tetrachloroferrate regeneneration
A14: Regenerant flow rate | B14: regen_flow | C14: =vol_regen/time_regen -> 0 | D14: gpm
A15: Maximum chemical pump size | B15: max_chem_pump_size | C15: =VLOOKUP(10^6,chem_pump_cost_cl,1)-0.01 -> 12180 | D15: gph | E15: The largest size for which costs are available. Applies to chemical pumps for regeneration.
A16: Regenerant pumps | B16: regen_pumps | C16: =IF(OR(regen_sol=1,regen_type=2),0,ROUNDUP(regen_flow*(1+pump_safety_factor)/max_pump_size,0)+NRD_regen_pumps) -> 0 | D16: pumps | E16: Includes one pump for redundancy
A17: Regenerant pump rating | B17: regen_pump_rating | C17: =IF(regen_pumps=0,0,regen_flow*(1+pump_safety_factor)/(regen_pumps-NRD_regen_pumps)) -> 0 | D17: gpm | E17: Includes safety factor
A18: Maximum chemical metering pump size | B18: max_cm_pump_size | C18: =MAX(VLOOKUP(10^6,ss_empump_cost_cl,1)-0.01,VLOOKUP(10^6,ss_mmpump_cost_cl,1)-0.01,VLOOKUP(10^6,pvc_empump_cost_cl,1)-0.01,VLOOKUP(10^6,pvc_mmpump_cost_cl,1)-0.01) -> 132 | D18: gph | E18: The largest pump size for which costs are available.
A19: Maximum chemical metering pump size excluding stainless | B19: max_cm_pump_size_noSS | C19: =MAX(VLOOKUP(10^6,pvc_empump_cost_cl,1)-0.01,VLOOKUP(10^6,pvc_mmpump_cost_cl,1)-0.01) -> 132 | D19: gph | E19: The largest size for which costs are available, excluding stainless steel
A20: Acid pumps for regenerant mixing | B20: mix_pumps | C20: =IF(OR(regen_sol=1,regen_type=2),0,ROUNDUP(HCl_fill_rate*60/max_chem_pump_size,0)+NRD_mix_pumps) -> 0 | D20: pumps | E20: Includes one pump for redundancy
A21: Acid pump rating for regenerant mixing | B21: mix_pump_rating | C21: =IF(mix_pumps=0,0,HCl_fill_rate*60/(mix_pumps-NRD_mix_pumps)) -> 0 | D21: gph | E21: Fill rate already includes safety factor
A22: Acid pumps for acid rinse | B22: rinse_pumps | C22: =IF(OR(regen_sol=1,regen_type=2),0,ROUNDUP(HCl_to_rinse_gph*(1+pump_safety_factor)/max_chem_pump_size,0)+NRD_rinse_pumps) -> 0 | D22: pumps | E22: Includes one pump for redundancy
A23: Pump rating for acid rinse | B23: rinse_pump_rating | C23: =IF(rinse_pumps=0,0,HCl_to_rinse_gph*(1+pump_safety_factor)/(rinse_pumps-NRD_rinse_pumps)) -> 0 | D23: gph | E23: Includes safety factor
A24: Ferric chloride pumps for regenerant mixing | B24: coag_mix_pumps | C24: =IF(OR(regen_sol=1,regen_type=2),0,ROUNDUP(FeCl3_fill_rate*60/max_chem_pump_size,0)+NRD_mix_pumps) -> 0 | D24: pumps | E24: Includes one pump for redundancy
A25: Ferric chloride pump rating for regenerant mixing | B25: coag_mix_pump_rating | C25: =IF(coag_mix_pumps=0,0,FeCl3_fill_rate*60/(coag_mix_pumps-NRD_mix_pumps)) -> 0 | D25: gph | E25: Fill rate already includes safety factor
A27: Additional pumps for pH adjustment
A28: Metering pumps for caustic | B28: pH_pumps | C28: =IF(pH_adj="yes",ROUNDUP(des_NaOH_flow*(1+pump_safety_factor)/max_cm_pump_size,0)+NRD_pH_pumps,0) -> 0 | D28: pumps | E28: Includes one pump for redundancy
A29: Metering pump rating for caustic | B29: pH_pump_rating | C29: =IF(pH_pumps=0,0,MAX(min_chem_flow,des_NaOH_flow*(1+pump_safety_factor)/(pH_pumps-NRD_pH_pumps))) -> 0 | D29: gph | E29: Includes safety factor
A31: Piping Design
A32: Influent and treated water pipe length | B32: in_out_pipe_length | C32: =in_out_pipe_mult*facil_length -> 40 | D32: linear feet
A33: Process piping length | B33: proc_pipe_length | C33: =proc_pipe_mult*facil_length -> 40 | D33: linear feet
A34: Backwash piping length | B34: back_pipe_length | C34: =IF(max_back_flow=0,0,back_pipe_mult*facil_length) -> 50 | D34: linear feet
A35: Bypass piping length | B35: bp_pipe_length | C35: =IF(bp_pct>0,bp_pipe_mult*facil_length,0) -> 0 | D35: linear feet
A36: Brine/Regeneration piping length | B36: brine_pipe_length | C36: =IF(regen_type=2,0,chem_pipe_mult*facil_length) -> 0 | D36: linear feet
A37: Acid piping length | B37: acid_pipe_length | C37: =IF(total_HCl=0,0,chem_pipe_mult*facil_length) -> 0 | D37: linear feet | E37: With tetrachloroferrate regeneration only
A38: Caustic piping length | B38: caustic_pipe_length | C38: =IF(NaOH_tot=0,0,chem_pipe_mult*facil_length) -> 0 | D38: linear feet | E38: With pH adjustment only
A39: Ferric chloride pipe length | B39: coag_pipe_length | C39: =IF(coag_pipe_flow=0,0,chem_pipe_mult*facil_length) -> 0 | D39: linear feet | E39: With residuals coagulant addition and/or tetrachloroferrate regeneration
A40: Polymer addition pipe length | B40: polymer_pipe_length | C40: =IF(polymer_day=0,0,chem_pipe_mult*facil_length) -> 0 | D40: linear feet | E40: With residuals polymer addition only
A41: Influent and treated water pipe flow | B41: in_out_pipe_flow | C41: =design_flow_rate+bp_flow_rate -> 20.83333333 | D41: gpm
A42: Influent piping diameter | B42: in_out_pipe_diam | C42: =VLOOKUP(in_out_pipe_flow,pipe_size_table_cl,2) -> 1.5 | D42: inches
A43: Process pipe diameter | B43: proc_pipe_diam | C43: =VLOOKUP(flow_per_vessel,pipe_size_table_cl,2) -> 2 | D43: inches
A44: Backwash pipe diameter | B44: back_pipe_diam | C44: =IF(max_back_flow=0,0,VLOOKUP(max_back_flow,pipe_size_table_cl,2)) -> 1 | D44: inches
A45: Regeneration pipe diameter | B45: brine_pipe_diam | C45: =IF(regen_type=2,0,VLOOKUP(regen_flow,pipe_size_table_cl,2)) -> 0 | D45: inches
A46: Bypass pipe diameter | B46: bp_pipe_diam | C46: =IF(bp_pct>0,VLOOKUP(bp_flow_rate,pipe_size_table_cl,2),0) -> 0 | D46: inches
A47: Acid pipe flow | B47: acid_pipe_flow | C47: =MAX(HCl_fill_rate,HCl_to_rinse_gph/60) -> 0 | D47: gpm
A48: Acid pipe diameter | B48: acid_pipe_diam | C48: =IF(total_HCl>0,VLOOKUP(acid_pipe_flow,pipe_size_table_cl,2),0) -> 0 | D48: inches
A49: Caustic pipe flow | B49: caustic_pipe_flow | C49: =des_NaOH_flow*60 -> 0 | D49: gpm
A50: Caustic pipe diameter | B50: caustic_pipe_diam | C50: =IF(des_NaOH_flow>0,VLOOKUP(caustic_pipe_flow,pipe_size_table_cl,2),0) -> 0 | D50: inches
A51: Ferric chloride pipe flow | B51: coag_pipe_flow | C51: =MAX(FeCl3_fill_rate,coag_rate/60) -> 0 | D51: gpm
A52: Ferric chloride pipe diameter | B52: coag_pipe_diam | C52: =IF(coag_pipe_flow=0,0,VLOOKUP(coag_pipe_flow,pipe_size_table_cl,2)) -> 0 | D52: inches
A53: Polymer pipe flow | B53: polymer_pipe_flow | C53: =polymer_rate/60 -> 0 | D53: gpm
A54: Polymer pipe diameter | B54: polymer_pipe_diam | C54: =IF(polymer_day=0,0,VLOOKUP(polymer_pipe_flow,pipe_size_table_cl,2)) -> 0 | D54: inches
A56: Building Structure
A57: Backwash tank diameter | B57: bt_diam | C57: =ROUNDUP(2*(MAX((2*back_tank_vol/7.48/PI())^(1/3),(4*back_tank_vol/7.48/PI()/(Building_height-ceiling_clearance))^(1/2))),0)/2 -> 0 | D57: feet
A58: Mixing tank diameter | B58: mx_diam | C58: =ROUNDUP(2*(MAX((2*mix_tank_vol/7.48/PI())^(1/3),(4*mix_tank_vol/7.48/PI()/(Building_height-ceiling_clearance))^(1/2))),0)/2 -> 0 | D58: feet
A59: Salt saturator diameter | B59: ss_diam | C59: =ROUNDUP(VLOOKUP(salt_box_size,saltbox_dim_table_cl,3),0) -> 8 | D59: feet
A60: HCl tank diameter | B60: at_diam | C60: =ROUNDUP(2*(MAX((2*HCl_tank_vol/7.48/PI())^(1/3),(4*HCl_tank_vol/7.48/PI()/(Building_height-ceiling_clearance))^(1/2))),0)/2 -> 0 | D60: feet
A61: NaOH tank diameter | B61: NaOHtank_diam | C61: =ROUNDUP(2*(MAX((2*NaOH_tank_vol/7.48/PI())^(1/3),(4*NaOH_tank_vol/7.48/PI()/(Building_height-ceiling_clearance))^(1/2))),0)/2 -> 0 | D61: feet
A62: NaOH day tank diameter | B62: NaOHdaytank_diam | C62: =ROUNDUP(2*(MAX((2*NaOH_day_tank_vol/7.48/PI())^(1/3),(4*NaOH_day_tank_vol/7.48/PI()/(Building_height-ceiling_clearance))^(1/2))),0)/2 -> 0 | D62: feet
A63: Ferric chloride storage tank diameter | B63: coag_st_diam | C63: =ROUNDUP(2*(MAX((2*coag_tank_vol/7.48/PI())^(1/3),(4*coag_tank_vol/7.48/PI()/(Building_height-ceiling_clearance))^(1/2))),0)/2 -> 0 | D63: feet
A64: Polymer storage tank diameter | B64: polymer_st_diam | C64: =ROUNDUP(2*(MAX((2*polymer_tank_vol/7.48/PI())^(1/3),(4*polymer_tank_vol/7.48/PI()/(Building_height-ceiling_clearance))^(1/2))),0)/2 -> 0 | D64: feet
A65: Residuals holding tank diameter | B65: ht_diam | C65: =ROUNDUP(2*(MAX((2*htank_vol/7.48/PI())^(1/3),(4*htank_vol/7.48/PI()/(Building_height-ceiling_clearance))^(1/2))),0)/2 -> 0 | D65: feet
A66: Maximum access space per vessel or tank | B66: max_space_vessels | C66: =IF(ss_cat2=1,max_space_vessels_pre,max_space_vessels_cust) -> 1 | D66: feet
A67: Access space per vessel | B67: space_vessels | C67: =IF(tank_geom=2,max_space_vessels,IF(comm_diam>max_space_vessels,max_space_vessels,comm_diam)) -> 1 | D67: feet
A68: Access space per backwash tank | B68: space_bt | C68: =IF(bt_diam>max_space_vessels,max_space_vessels,bt_diam) -> 0 | D68: feet
A69: Access space per regenerant mixing tank | B69: space_st | C69: =IF(mx_diam>max_space_vessels,max_space_vessels,mx_diam) -> 0 | D69: feet
A70: Access space per salt saturator | B70: space_ss | C70: =IF(ss_diam>max_space_vessels,max_space_vessels,ss_diam) -> 1 | D70: feet
A71: Access space per HCl tank | B71: space_at | C71: =IF(at_diam>max_space_vessels,max_space_vessels,at_diam) -> 0 | D71: feet
A72: Access space per NaOH tank | B72: space_NaOHtank | C72: =IF(NaOHtank_diam>max_space_vessels,max_space_vessels,NaOHtank_diam) -> 0 | D72: feet
A73: Access space per NaOH day tank | B73: space_NaOHdaytank | C73: =IF(NaOHdaytank_diam>max_space_vessels,max_space_vessels,NaOHdaytank_diam) -> 0 | D73: feet
A74: Access space per ferric chloride storage tank | B74: space_coag_st | C74: =IF(coag_st_diam>max_space_vessels,max_space_vessels,coag_st_diam) -> 0 | D74: feet
A75: Access space per polymer holding tank | B75: space_polymer_st | C75: =IF(polymer_st_diam>max_space_vessels,max_space_vessels,polymer_st_diam) -> 0 | D75: feet
A76: Access space per residuals holding tank | B76: space_ht | C76: =IF(ht_diam>max_space_vessels,max_space_vessels,ht_diam) -> 0 | D76: feet
A77: Access space per pump | B77: space_pumps | C77: =IF(ss_cat2=1,space_pumps_pre,space_pumps_cust) -> 0 | D77: feet
A78: Footprint for vessels (large system assumptions) | C78: =IF(tank_geom=1,ROUNDUP(((comm_diam+2*space_vessels)^2+(final_num_tanks-1)*(comm_diam+2*space_vessels)*(comm_diam+space_vessels)),0),IF(tank_geom=2,ROUNDUP((comm_diam+2*space_vessels)*(comm_height_length+2*space_vessels)+(final_num_tanks-1)*(comm_height_length+2*space_vessels)*(comm_diam+space_vessels),0))) -> 21 | D78: square feet
A79: Footprint for vessels (skid mounted small system) | C79: =IF(tank_geom=1,ROUNDUP(((comm_diam+2*space_vessels)^2+(final_num_tanks-1)*(comm_diam+2*space_vessels)*(comm_diam+space_vessels/2)),0),IF(tank_geom=2,ROUNDUP((comm_diam+2*space_vessels)*(comm_height_length+2*space_vessels)+(final_num_tanks-1)*(comm_height_length+2*space_vessels)*(comm_diam+space_vessels/2),0))) -> 20 | D79: square feet | E79: Space between skid mounted vessels is reduced, outside access space remains the same
A80: Footprints for vessels | B80: vessel_fp | C80: =IF(ss_cat2=1,C79,C78) -> 20 | D80: square feet
A81: Footprint for backwash tank | B81: back_tank_fp | C81: =IF(back_tanks=0,0,ROUNDUP((bt_diam+2*space_bt)^2+(back_tanks-1)*(bt_diam+2*space_bt)*(bt_diam+space_bt),0)) -> 0 | D81: square feet
A82: Booster pump footprint | C82: =IF(total_booster_pumps=0,0,ROUNDUP((VLOOKUP(pump_rating,pump_dim_table_cl,3)+space_pumps)*(VLOOKUP(pump_rating,pump_dim_table_cl,4)+2*space_pumps)+(total_booster_pumps-1)*(VLOOKUP(pump_rating,pump_dim_table_cl,3)+space_pumps)*(VLOOKUP(pump_rating,pump_dim_table_cl,4)+space_pumps),0)) -> 0 | D82: square feet
A83: Backwash pump footprint | C83: =IF(backwash_pumps=0,0,ROUNDUP((VLOOKUP(back_pump_rating,pump_dim_table_cl,3)+space_pumps)*(VLOOKUP(back_pump_rating,pump_dim_table_cl,4)+2*space_pumps)+(backwash_pumps-1)*(VLOOKUP(back_pump_rating,pump_dim_table_cl,3)+space_pumps)*(VLOOKUP(back_pump_rating,pump_dim_table_cl,4)+space_pumps),0)) -> 0 | D83: square feet
A84: Residuals pump footprint | C84: =IF(res_pumps=0,0,ROUNDUP((VLOOKUP(res_pump_rating,pump_dim_table_cl,3)+space_pumps)*(VLOOKUP(res_pump_rating,pump_dim_table_cl,4)+2*space_pumps)+(res_pumps-1)*(VLOOKUP(res_pump_rating,pump_dim_table_cl,3)+space_pumps)*(VLOOKUP(res_pump_rating,pump_dim_table_cl,4)+space_pumps),0)) -> 0 | D84: square feet
A85: Residual solids transfer equipment footprint | C85: =IF(res_transfer_method=1,ROUNDUP(IF(res_transfer_rate<40000,99.152*res_transfer_rate^0.0434,0.8761*res_transfer_rate^0.49),0),0) -> 0 | D85: square feet | E85: If slurry pumps are used
A86: Footprint for pumps | B86: pump_fp | C86: =SUM(C82:C85) -> 0 | D86: square feet
A87: Footprint for regenerant pumps | B87: regen_pump_fp | C87: =IF(regen_pumps=0,0,ROUNDUP((VLOOKUP(regen_pump_rating,pump_dim_table_cl,3)+space_pumps)*(VLOOKUP(regen_pump_rating,pump_dim_table_cl,4)+2*space_pumps)+(regen_pumps-1)*(VLOOKUP(regen_pump_rating,pump_dim_table_cl,3)+space_pumps)*(VLOOKUP(regen_pump_rating,pump_dim_table_cl,4)+space_pumps),0)) -> 0 | D87: square feet
A88: Footprint for regenerant mixing tanks | B88: mix_tank_fp | C88: =IF(mix_tanks=0,0,ROUNDUP((mx_diam+2*space_st)^2+(mix_tanks-1)*(mx_diam+2*space_st)*(mx_diam+space_st),0)) -> 0 | D88: square feet
A89: Footprint for salt saturators | B89: saltbox_fp | C89: =IF(num_salt_box=0,0,ROUNDUP((VLOOKUP(salt_box_size,saltbox_dim_table_cl,3)+2*space_ss)^2+(num_salt_box-1)*(VLOOKUP(salt_box_size,saltbox_dim_table_cl,3)+2*space_ss)*(VLOOKUP(salt_box_size,saltbox_dim_table_cl,3)+space_ss),0)) -> 0 | D89: square feet
A90: Footprint for salt storage | B90: store_fp | C90: =IF(regen_type=2,0,IF(regen_sol=1,IF(brine_method=1,ROUNDUP(salt_store/salt_density/storage_height,0),ROUNDUP((salt_store*add_salt_store/cstore_days)/salt_density/storage_height,0)),0)) -> 0 | D90: square feet
A91: Footprint for HCl tanks | B91: acid_tank_fp | C91: =IF(HCl_tanks=0,0,ROUNDUP((at_diam+2*space_at)^2+(HCl_tanks-1)*(at_diam+2*space_at)*(at_diam+space_at),0)) -> 0 | D91: square feet
A92: Footprint for NaOH storage tanks | B92: NaOH_tank_fp | C92: =IF(NaOH_tanks=0,0,ROUNDUP((NaOHtank_diam+2*space_NaOHtank)^2+(NaOH_tanks-1)*(NaOHtank_diam+2*space_NaOHtank)*(NaOHtank_diam+space_NaOHtank),0)) -> 0 | D92: square feet
A93: Footprint for NaOH day tanks | B93: NaOHday_tank_fp | C93: =IF(NaOH_tanks=0,0,ROUNDUP((NaOHdaytank_diam+2*space_NaOHdaytank)^2+(NaOH_day_tanks-1)*(NaOHdaytank_diam+2*space_NaOHdaytank)*(NaOHdaytank_diam+space_NaOHdaytank),0)) -> 0 | D93: square feet
A94: Ferric chloride storage tank footprint | B94: coag_fp | C94: =IF(coag_tanks=0,0,ROUNDUP((coag_st_diam+2*space_coag_st)^2+(coag_tanks-1)*(coag_st_diam+2*space_coag_st)*(coag_st_diam+space_coag_st),0)) -> 0 | D94: square feet
A95: Polymer storage tank footprint | B95: polymer_fp | C95: =IF(polymer_tanks=0,0,ROUNDUP((polymer_st_diam+2*space_polymer_st)^2+(polymer_tanks-1)*(polymer_st_diam+2*space_polymer_st)*(polymer_st_diam+space_polymer_st),0)) -> 0 | D95: square feet
A96: Residuals holding tank footprint | B96: htank_fp | C96: =IF(OR(res_holding<>"tanks",htanks=0),0,ROUNDUP((ht_diam+2*space_ht)^2+(htanks-1)*(ht_diam+2*space_ht)*(ht_diam+space_ht),0)) -> 0 | D96: square feet
A97: Residuals holding basin footprint | B97: hbasin_fp | C97: =IF(res_holding<>"basins",0,ROUNDUP(hbasins*hbasin_length*hbasin_width*2,0)) -> 0 | D97: square feet
A98: Cartridge filter footprint | B98: cart_fp | C98: =IF(include_cart=0,0,(filter_len+2*space_other_equip)*(filter_wid+2*space_other_equip)+(num_filters-1)*(filter_len+2*space_other_equip)*(filter_wid+space_other_equip)) -> 83.375 | D98: square feet
A99: Office space | B99: office_fp | C99: =VLOOKUP(design_flow,labor_table_cl,3)*IF(ss_cat2=1,space_office_small,space_office) -> 0 | D99: square feet
A100: Exact building footprint required | B100: fp_required | C100: =SUM(C86:C99,back_tank_fp,vessel_fp) -> 103.375 | D100: square feet
A101: Footprint of building 1 | B101: build1_fp | C101: =ROUNDUP(IF(fp_required<add_2nd_building,fp_required,vessel_fp),-1) -> 110 | D101: square feet | E101: If total footprint is large, building 1 contains vessels only. If total footprint is small, building 1 contains all equipment.
A102: Footprint of building 2 | B102: build2_fp | C102: =ROUNDUP(IF(fp_required<add_2nd_building,0,SUM(back_tank_fp,C86:C99)),-1) -> 0 | D102: square feet | E102: If total footprint is large, a second building is used for pumps, backwash, and chemical storage
A103: Actual total building footprint | B103: total_fp | C103: =build1_fp+build2_fp -> 110 | D103: square feet
A104: Concrete Class A for vessel and pumps padding | B104: concrete | C104: =ROUNDUP((fp_required-office_fp)*IF(ss_cat2=1,pad_thick_small,pad_thick)/27,0) -> 2 | D104: cubic yards
A105: Facility dimension assumed square | B105: facil_length | C105: =ROUNDUP(total_fp^0.5,-1) -> 20 | D105: feet
A106: Additional footprint for evaporation pond | B106: ep_fp | C106: =IF(ep_cells=0,0,ROUNDUP((ep_cell_side+2*non_fire_buffer)^2+(ep_cells-1)*(ep_cell_side+2*non_fire_buffer)*(ep_cell_side+non_fire_buffer),0)) -> 0 | D106: square feet
A107: Land needed | B107: land_required | C107: =ROUNDUP(((build1_fp)^0.5+(2*non_fire_buffer))*((build1_fp)^0.5+(non_fire_buffer+fire_buffer))+IF(build2_fp=0,0,((build2_fp)^0.5+(2*non_fire_buffer))*((build2_fp)^0.5+(non_fire_buffer+fire_buffer)))+ep_fp+solids_pad_area,-2)/43560 -> 0.04361799816 | D107: acres
A109: Land acquisition cost | B109: land_cost_cl | C109: =VLOOKUP(design_flow,land_cost_cl,3) -> 21165.71325 | D109: /acre

Sheet Instrumentation and Control
A1: Instrumentation and Control Calculations
A3: Calculation | B3: Range Name | C3: Value | D3: Units | E3: Guidance
A4: From Inputs
A5: Component level | B5: component_level | C5: =IF(component_level_I="high cost",2,IF(component_level_I="mid cost",1,"")) ->  | D5: blank = low cost, 1 = mid cost, 2 = high cost
A6: Manual system controls | B6: manual | C6: =IF(manual_I="manual",1,IF(manual_I="semi-automated",2,IF(manual_I="fully automated",3,IF(component_level="",1,IF(component_level=2,3,CHOOSE(ss_cat2,3,3,3)))))) -> 3 | D6: 1 = fully manual system, 2 = semi-automated system, 3 = fully automated system. | E6: Based on system size and component level (see cell comment), unless user overrides on input sheet
A8: Valves and Instrumentation
A9: Size of valves for influent and treated water lines | B9: in_valve_size | C9: =in_out_pipe_diam -> 1.5 | D9: inches
A10: Size of valves for vessel pipe line | B10: tank_valve_size | C10: =proc_pipe_diam -> 2 | D10: inches
A11: Size of valves for backwash line | B11: back_valve_size | C11: =back_pipe_diam -> 1 | D11: inches
A12: Size of valves for regenerant line | B12: brine_valve_size | C12: =brine_pipe_diam -> 0 | D12: inches
A13: Size of valves for acid line | B13: acid_valve_size | C13: =acid_pipe_diam -> 0 | D13: inches
A14: Size of valves for caustic line | B14: caustic_valve_size | C14: =caustic_pipe_diam -> 0 | D14: inches
A15: Size of valves for bypass line | B15: bypass_valve_size | C15: =bp_pipe_diam -> 0 | D15: inches
A16: Size of valves for ferric chloride line | B16: coag_valve_size | C16: =coag_pipe_diam -> 0 | D16: inches
A17: Size of valves for polymer line | B17: polymer_valve_size | C17: =polymer_pipe_diam -> 0 | D17: inches
A19: Number of MOVs for process line per vessel | B19: proc_MOV_vessel | C19: =VLOOKUP(IF(Num_tanks=1,"proc_mov_vessel_par","proc_mov_vessel_ser"),valve_table,manual+1,FALSE) -> 2 | D19: valves/vessel | E19: Depends on whether system is operated in parallel or series (lead/lag)
A20: Number of MOVs for process line | B20: tot_proc_MOVs | C20: =final_num_tanks*proc_MOV_vessel+total_booster_pumps*VLOOKUP("proc_MOV_pump",valve_table,manual+1,FALSE)+num_filters*VLOOKUP("proc_MOV_filter",valve_table,manual+1,FALSE) -> 6 | D20: valves
A21: Number of MOVs for backwash line | B21: tot_back_MOVs | C21: =IF(back_pipe_length=0,0,final_num_tanks*VLOOKUP("back_MOV_vessel",valve_table,manual+1,FALSE)+backwash_pumps*VLOOKUP("back_MOV_pump",valve_table,manual+1,FALSE)+back_tanks*VLOOKUP("back_MOV_tank",valve_table,manual+1,FALSE)+IF(regen_sol=2,mix_tanks,IF(brine_method=1,mix_tanks,num_salt_box))*VLOOKUP("back_MOV_brine",valve_table,manual+1,FALSE)+VLOOKUP("back_MOV_add",valve_table,manual+1,FALSE)+VLOOKUP("back_MOV_eductor",valve_table,manual+1,FALSE)*eductors) -> 5 | D21: valves
A22: Number of MOVs for regenerant line | B22: tot_brine_MOVs | C22: =IF(brine_pipe_length=0,0,IF(regen_sol=2,final_num_tanks*VLOOKUP("brine_MOV_vessel",valve_table,manual+1,FALSE)+mix_tanks*VLOOKUP("brine_MOV_tank",valve_table,manual+1,FALSE)+regen_pumps*VLOOKUP("brine_MOV_pump",valve_table,manual+1,FALSE),IF(brine_method=1,mix_tanks,num_salt_box)*VLOOKUP("brine_MOV_tank",valve_table,manual+1,FALSE)+VLOOKUP("brine_MOV_vessel",valve_table,manual+1,FALSE)*final_num_tanks)) -> 0 | D22: valves
A23: Number of MOVs for acid line | B23: tot_acid_MOVs | C23: =IF(acid_pipe_length=0,0,(mix_pumps+rinse_pumps)*VLOOKUP("acid_MOV_pump",valve_table,manual+1,FALSE)) -> 0 | D23: valves | E23: Applies only with tetrachlorferrate regeneration
A24: Number of MOVs for caustic line | B24: tot_caustic_MOVs | C24: =IF(caustic_pipe_length=0,0,pH_pumps*VLOOKUP("caustic_MOV_pump",valve_table,manual+1,FALSE)+VLOOKUP("chem_MOV_day",valve_table,manual+1,FALSE)*NaOH_day_tanks) -> 0 | D24: valves | E24: Applies only with pH adjustment
A25: Number of MOVs for bypass line | B25: tot_bp_MOVs | C25: =IF(bp_pipe_length=0,0,VLOOKUP("tot_bp_movs",valve_table,manual+1,FALSE)) -> 0 | D25: valves
A26: Number of MOVs for ferric chloride line | B26: tot_coag_MOVs | C26: =IF(coag_pipe_length=0,0,(cm_pumps_coag+coag_mix_pumps)*VLOOKUP("chem_MOV_pump",valve_table,manual+1,FALSE)) -> 0 | D26: valves
A27: Number of MOVs for polymer line | B27: tot_polymer_MOVs | C27: =IF(polymer_day=0,0,(cm_pumps_polymer)*VLOOKUP("chem_MOV_pump",valve_table,manual+1,FALSE)) -> 0 | D27: valves
A28: Total number of MOVs | B28: tot_MOVs | C28: =tot_bp_MOVs+tot_caustic_MOVs+tot_acid_MOVs+tot_brine_MOVs+tot_back_MOVs+tot_proc_MOVs+tot_coag_MOVs+tot_polymer_MOVs -> 11 | D28: valves
A30: Number of manual valves for process line per vessel | B30: proc_man_vessel_cont | C30: =VLOOKUP(IF(Num_tanks=1,"proc_man_vessel_par","proc_man_vessel_ser"),valve_table,manual+1,FALSE) -> 0 | D30: valves/vessel | E30: Depends on whether system is operated in parallel or series (lead/lag)
A31: Number of manual valves for process line | B31: tot_proc_man | C31: =(proc_man_vessel_cont+proc_man_vessel)*final_num_tanks+total_booster_pumps*VLOOKUP("proc_man_pump",valve_table,manual+1,FALSE)+num_filters*VLOOKUP("proc_man_filter",valve_table,manual+1,FALSE) -> 2 | D31: valves
A32: Number of manual valves for backwash line | B32: tot_back_man | C32: =IF(back_pipe_length=0,0,final_num_tanks*VLOOKUP("back_man_vessel",valve_table,manual+1,FALSE)+backwash_pumps*VLOOKUP("back_man_pump",valve_table,manual+1,FALSE)+back_tanks*VLOOKUP("back_man_tank",valve_table,manual+1,FALSE)+IF(regen_sol=2,mix_tanks,IF(brine_method=1,mix_tanks,num_salt_box)*VLOOKUP("back_man_brine",valve_table,manual+1,FALSE)+VLOOKUP("back_man_add",valve_table,manual+1,FALSE)+VLOOKUP("back_man_eductor",valve_table,manual+1,FALSE)*eductors)) -> 0 | D32: valves
A33: Number of manual valves for regenerant line | B33: tot_brine_man | C33: =IF(brine_pipe_length=0,0,IF(regen_sol=2,final_num_tanks*VLOOKUP("brine_man_vessel",valve_table,manual+1,FALSE)+mix_tanks*VLOOKUP("brine_man_tank",valve_table,manual+1,FALSE)+regen_pumps*VLOOKUP("brine_man_pump",valve_table,manual+1,FALSE),IF(brine_method=1,mix_tanks,num_salt_box)*VLOOKUP("brine_man_tank",valve_table,manual+1,FALSE)+VLOOKUP("brine_man_vessel",valve_table,manual+1,FALSE)*final_num_tanks)) -> 0 | D33: valves
A34: Number of manual valves for acid line | B34: tot_acid_man | C34: =IF(acid_pipe_length=0,0,(mix_pumps+rinse_pumps)*VLOOKUP("acid_man_pump",valve_table,manual+1,FALSE)) -> 0 | D34: valves | E34: Applies only with tetrachlorferrate regeneration
A35: Number of manual valves for caustic line | B35: tot_caustic_man | C35: =IF(caustic_pipe_length=0,0,pH_pumps*VLOOKUP("caustic_man_pump",valve_table,manual+1,FALSE)+VLOOKUP("chem_man_day",valve_table,manual+1,FALSE)*NaOH_day_tanks) -> 0 | D35: valves | E35: Applies only with pH adjustment
A36: Number of manual valves for bypass line | B36: tot_bp_man | C36: =IF(bp_pipe_length=0,0,VLOOKUP("tot_bp_man",valve_table,manual+1,FALSE)) -> 0 | D36: valves
A37: Number of manual valves for ferric chloride line | B37: tot_coag_man | C37: =IF(coag_pipe_length=0,0,(cm_pumps_coag+coag_mix_pumps)*VLOOKUP("chem_man_pump",valve_table,manual+1,FALSE)) -> 0 | D37: valves
A38: Number of manual valves for polymer line | B38: tot_polymer_man | C38: =IF(polymer_day=0,0,(cm_pumps_polymer)*VLOOKUP("chem_man_pump",valve_table,manual+1,FALSE)) -> 0 | D38: valves
A40: Number of check valves backwash line | B40: tot_back_chv | C40: =back_chv_pump*backwash_pumps -> 0 | D40: valves
A41: Number of check valves regenerant line | B41: tot_brine_chv | C41: =brine_chv_pump*regen_pumps -> 0 | D41: valves
A42: Number of check valves acid line | B42: tot_acid_chv | C42: =acid_chv_pump*(mix_pumps+rinse_pumps) -> 0 | D42: valves
A43: Number of check valves caustic line | B43: tot_caustic_chv | C43: =caustic_chv_pump*pH_pumps -> 0 | D43: valves | E43: Applies only with pH adjustment
A44: Number of check valves for ferric chloride line | B44: tot_coag_chv | C44: =coag_chv_pump*(cm_pumps_coag+coag_mix_pumps) -> 0 | D44: valves
A45: Number of check valves polymer line | B45: tot_polymer_chv | C45: =polymer_chv_pump*cm_pumps_polymer -> 0 | D45: valves
A47: Size of flow meters for influent line | B47: in_meter_size | C47: =in_out_pipe_diam -> 1.5 | D47: inches
A48: Size of flow meters for process line | B48: proc_meter_size | C48: =proc_pipe_diam -> 2 | D48: inches
A49: Size of flow meters for backwash line | B49: back_meter_size | C49: =back_pipe_diam -> 1 | D49: inches
A50: Number of flow meters for process line | B50: tot_fm_proc | C50: =fm_proc*final_num_tanks -> 0 | D50: units
A51: Total flow meters for backwash line | B51: tot_fm_back | C51: =IF(max_back_flow=0,0,fm_back) -> 1 | D51: units
A53: Total level switch/alarms | B53: tot_level_switch | C53: =final_num_tanks*IF(ss_cat2=1,level_switch_small,level_switch) -> 0 | D53: units
A54: Total high/low alarms for backwash tanks | B54: tot_back_alarm | C54: =back_tanks*alarm_back -> 0 | D54: units
A55: Total high/low alarms for mixing tanks | B55: tot_brine_alarm | C55: =alarm_brine*mix_tanks -> 0 | D55: units
A56: Total high/low alarms for HCl tanks | B56: tot_acid_alarm | C56: =alarm_acid*HCl_tanks -> 0 | D56: units
A57: Total high/low alarms for NaOH tanks | B57: tot_caustic_alarm | C57: =alarm_caustic*(NaOH_tanks+NaOH_day_tanks) -> 0 | D57: units
A58: pH meters | B58: pH_controls | C58: =IF(pH_adj="yes",pH_corr,pH_nocorr) -> 0 | D58: units
A59: Total turbidity meters | B59: tot_turb_meters | C59: =IF(ss_cat2=1,turb_tank_small*final_num_tanks+add_turb_small,turb_tank*final_num_tanks+add_turb) -> 0 | D59: units
A60: Total conductivity meters | B60: tot_cond_meters | C60: =cond_tank*final_num_tanks+add_cond -> 0 | D60: units
A61: Total head loss sensors | B61: tot_head_sens | C61: =IF(ss_cat2=1,head_tank_small,head_tank)*final_num_tanks+headloss_cart*num_filters -> 2 | D61: units
A62: Sampling ports | B62: ports | C62: =ports_tank*final_num_tanks+add_ports+IF(bp_pct>0,ports_bp,0) -> 5 | D62: units
A63: Total drive controllers | B63: tot_switches | C63: =IF(manual=2,0,S_booster_pump*total_booster_pumps+S_back_pump*backwash_pumps+S_res_pump*(res_pumps+cm_pumps_coag+cm_pumps_polymer)+S_eductor*eductors+S_mixer*(mixers+hmixers+dmixers+cmixers+coag_cmixers+polymer_cmixers)+S_cm_pump*(rinse_pumps+mix_pumps+coag_mix_pumps+pH_pumps)+S_regen_pump*regen_pumps) -> 0 | D63: units
A65: System Controls
A66: Flow meter lookup code - influent and treated water | B66: fm_lkp_io | C66: =IF(OUTPUT!L268=1,"flow_op",IF(OUTPUT!L269=1,"flow_prop",IF(OUTPUT!L270=1,"flow_ven","flow_mag"))) -> flow_prop | E66: These codes are used to look up SCADA requirements, which depend on the type of flow meter selected.
A67: Flow meter lookup code - process | B67: fm_lkp_proc | C67: =IF(OUTPUT!L273=1,"flow_op",IF(OUTPUT!L274=1,"flow_prop",IF(OUTPUT!L275=1,"flow_ven","flow_mag"))) -> flow_mag
A68: Flow meter lookup code - backwash | B68: fm_lkp_back | C68: =IF(OUTPUT!L278=1,"flow_op",IF(OUTPUT!L279=1,"flow_prop",IF(OUTPUT!L280=1,"flow_ven","flow_mag"))) -> flow_prop
A69: Flow meter lookup code - residuals | B69: fm_lkp_res | C69: =IF(OUTPUT!L283=1,"flow_op",IF(OUTPUT!L284=1,"flow_prop",IF(OUTPUT!L285=1,"flow_ven","flow_mag"))) -> flow_prop
A70: Total discrete inputs | B70: discrete_inputs | C70: =VLOOKUP(fm_lkp_io,port_table,2,FALSE)*tot_fm_in+VLOOKUP(fm_lkp_proc,port_table,2,FALSE)*tot_fm_proc+VLOOKUP(fm_lkp_back,port_table,2,FALSE)*tot_fm_back+VLOOKUP(fm_lkp_res,port_table,2,FALSE)*tot_fm_res+VLOOKUP("alarm",port_table,2,FALSE)*(tot_level_switch+tot_back_alarm+tot_brine_alarm+tot_acid_alarm+tot_caustic_alarm+tot_res_alarm)+VLOOKUP("orp",port_table,2,FALSE)*ORP_sensor+VLOOKUP("ph",port_table,2,FALSE)*pH_controls+VLOOKUP("temp",port_table,2,FALSE)*IF(ss_cat2=1,temp_meters_small,temp_meters)+VLOOKUP("cond",port_table,2,FALSE)*tot_cond_meters+VLOOKUP("turb",port_table,2,FALSE)*tot_turb_meters+VLOOKUP("head",port_table,2,FALSE)*tot_head_sens+VLOOKUP("port",port_table,2,FALSE)*ports+VLOOKUP("switch",port_table,2,FALSE)*tot_switches+VLOOKUP("valve",port_table,2,FALSE)*tot_MOVs -> 7 | D70: units
A71: Total discrete outputs | B71: discrete_outputs | C71: =IF(manual=2,0,VLOOKUP(fm_lkp_io,port_table,3,FALSE)*tot_fm_in+VLOOKUP(fm_lkp_proc,port_table,3,FALSE)*tot_fm_proc+VLOOKUP(fm_lkp_back,port_table,3,FALSE)*tot_fm_back+VLOOKUP(fm_lkp_res,port_table,3,FALSE)*tot_fm_res+VLOOKUP("alarm",port_table,3,FALSE)*(tot_level_switch+tot_back_alarm+tot_brine_alarm+tot_acid_alarm+tot_caustic_alarm+tot_res_alarm)+VLOOKUP("orp",port_table,3,FALSE)*ORP_sensor+VLOOKUP("ph",port_table,3,FALSE)*pH_controls+VLOOKUP("temp",port_table,3,FALSE)*IF(ss_cat2=1,temp_meters_small,temp_meters)+VLOOKUP("cond",port_table,3,FALSE)*tot_cond_meters+VLOOKUP("turb",port_table,3,FALSE)*tot_turb_meters+VLOOKUP("head",port_table,3,FALSE)*tot_head_sens+VLOOKUP("port",port_table,3,FALSE)*ports+VLOOKUP("switch",port_table,3,FALSE)*tot_switches+VLOOKUP("valve",port_table,3,FALSE)*tot_MOVs) -> 0 | D71: units
A72: Total analog inputs | B72: analog_inputs | C72: =VLOOKUP(fm_lkp_io,port_table,4,FALSE)*tot_fm_in+VLOOKUP(fm_lkp_proc,port_table,4,FALSE)*tot_fm_proc+VLOOKUP(fm_lkp_back,port_table,4,FALSE)*tot_fm_back+VLOOKUP(fm_lkp_res,port_table,4,FALSE)*tot_fm_res+VLOOKUP("alarm",port_table,4,FALSE)*(tot_level_switch+tot_back_alarm+tot_brine_alarm+tot_acid_alarm+tot_caustic_alarm+tot_res_alarm)+VLOOKUP("orp",port_table,4,FALSE)*ORP_sensor+VLOOKUP("ph",port_table,4,FALSE)*pH_controls+VLOOKUP("temp",port_table,4,FALSE)*IF(ss_cat2=1,temp_meters_small,temp_meters)+VLOOKUP("cond",port_table,4,FALSE)*tot_cond_meters+VLOOKUP("turb",port_table,4,FALSE)*tot_turb_meters+VLOOKUP("head",port_table,4,FALSE)*tot_head_sens+VLOOKUP("port",port_table,4,FALSE)*ports+VLOOKUP("switch",port_table,4,FALSE)*tot_switches+VLOOKUP("valve",port_table,4,FALSE)*tot_MOVs -> 14 | D72: units
A73: Total analog outputs | B73: analog_outputs | C73: =IF(manual=2,0,VLOOKUP(fm_lkp_io,port_table,5,FALSE)*tot_fm_in+VLOOKUP(fm_lkp_proc,port_table,5,FALSE)*tot_fm_proc+VLOOKUP(fm_lkp_back,port_table,5,FALSE)*tot_fm_back+VLOOKUP(fm_lkp_res,port_table,5,FALSE)*tot_fm_res+VLOOKUP("alarm",port_table,5,FALSE)*(tot_level_switch+tot_back_alarm+tot_brine_alarm+tot_acid_alarm+tot_caustic_alarm+tot_res_alarm)+VLOOKUP("orp",port_table,5,FALSE)*ORP_sensor+VLOOKUP("ph",port_table,5,FALSE)*pH_controls+VLOOKUP("temp",port_table,5,FALSE)*IF(ss_cat2=1,temp_meters_small,temp_meters)+VLOOKUP("cond",port_table,5,FALSE)*tot_cond_meters+VLOOKUP("turb",port_table,5,FALSE)*tot_turb_meters+VLOOKUP("head",port_table,5,FALSE)*tot_head_sens+VLOOKUP("port",port_table,5,FALSE)*ports+VLOOKUP("switch",port_table,5,FALSE)*tot_switches+VLOOKUP("valve",port_table,5,FALSE)*tot_MOVs) -> 11 | D73: units
A74: I/O Discrete Output Modules | B74: plc_discrete_output | C74: =ROUNDUP(discrete_outputs/32,0) -> 0 | D74: units
A75: I/O Discrete Input Modules | B75: plc_discrete_input | C75: =ROUNDUP(discrete_inputs/32,0) -> 1 | D75: units
A76: I/O Combination Analog Modules | B76: plc_combination_analog | C76: =ROUNDUP((analog_inputs + analog_outputs)/12,0) -> 3 | D76: units
A77: Total number of PLC slots used | B77: plc_slots | C77: =plc_cpu + plc_ethernet + plc_discrete_input + plc_discrete_output + plc_combination_analog -> 8 | D77: units
A78: Expansions required | B78: plc_expansions | C78: =IF(plc_slots<=9,0,ROUNDUP((plc_slots-9)/8,0)) -> 0 | D78: units
A79: PLC Rack/Power Supplies | B79: plc_rack | C79: =1+plc_expansions -> 1 | D79: units
A80: Base Expansion Modules | B80: plc_base_expansion | C80: =plc_expansions -> 0 | D80: units
A81: Base Expansion Controller Modules | B81: plc_base_expansion_controller | C81: =plc_expansions -> 0 | D81: units
A82: Number of computer workstations | B82: workstations | C82: =ROUNDUP(Operator_LOE/2080/shifts_day/workstation_ratio,0) -> 1 | D82: units
A83: Number of printers | B83: printers | C83: =ROUNDUP(workstations/printer_ratio,0) -> 1 | D83: units

Sheet Residuals Management
A1: Residuals Management Calculations
A3: Calculation | B3: Range Name | C3: Value | D3: Units | E3: Guidance
A4: From Inputs
A5: Discharge option for spent regenerant/backwash | B5: res_s2_opt | C5: =IF(res_s2_opt_I="","",IF(res_s2_opt_I="surface water",1,IF(res_s2_opt_I="POTW",2,IF(res_s2_opt_I="evaporation pond",3,4)))) -> 2 | D5: <-- 1 for direct discharge to surface water, 2 for discharge to POTW, 3 for evaporation pond, 4 for hazardous waste disposal
A6: Holding tank for spent regenerant/backwash | B6: res_s1_opt | C6: =IF(res_s1_opt_I="","",IF(res_s2_opt<>3,IF(OR(res_s1_opt_I="holding tank",res_s2_opt=4),1,2),"")) -> 2 | D6: =IF(res_s2_opt<>3,"<-- 1 for holding tank, 2 for no holding tank (input ignored if continuous regeneration is required)","") -> <-- 1 for holding tank, 2 for no holding tank (input ignored if continuous regeneration is required)
A7: Characteristics of spent resin | B7: media_haz | C7: =IF(media_haz_I="hazardous",2,IF(media_haz_I="radioactive",3,IF(media_haz_I="radioactive hazardous",4,1))) -> 1 | D7: <-- 1 for non-hazardous, 2 for hazardous, 3 for radioactive, 4 for radioactive hazardous
A8: =IF(res_s2_opt=3,"Characteristics of evaporation pond solids","Characteristics of holding tank solids") -> Characteristics of holding tank solids | B8: solids_haz | C8: =IF(solids_haz_I="hazardous",2,IF(solids_haz_I="radioactive",3,IF(solids_haz_I="radioactive hazardous",4,1))) -> 1 | D8: <-- 1 for non-hazardous, 2 for hazardous, 3 for radioactive, 4 for radioactive hazardous
A10: Spent Regenerant/Backwash
A11: Regenerant volume per vessel | B11: regen_vol | C11: =IF(regen_type=2,0,IF(regen_sol=1,vol_brine,vol_FeCl4+HCl_in_rinse)) -> 0 | D11: gal | E11: Regnerant only, not backwash/rinse water
A12: Single regeneration/replacement event volume | B12: res_vol | C12: =(total_backwash+regen_vol/(regen_reuse+1)) -> 60 | D12: gal | E12: Regeneration/intial rinse for one vessel
A13: Single out-of-cycle backwash event volume | B13: res_outcycle_vol | C13: =IF(add_backwash_freq=0,0,total_backwash) -> 0 | D13: gal | E13: Backwashing one vessel
A14: Time between regen/replace events | B14: res_stagger_time | C14: =IF(regen_redun>1,"NA",regen_days*24*60/num_treat_lines) -> 143572.8667 | D14: minutes | E14: NA if continuous regeneration is required
A15: Time between out-of-cycle backwash events | B15: res_outcycle_stagger_time | C15: =add_backwash_freq*24*60/final_num_tanks -> 0 | D15: minutes | E15: Zero indicates no out-of-cycle backwash
A16: Actual residuals discharge flow rate | B16: res_flow_actual | C16: =IF(regen_redun>1,res_vol*regen_redun/regeneration_downtime,IF(AND(res_s1_opt=1,res_s2_opt<>3),res_vol/res_stagger_time,res_vol*regen_redun/regeneration_downtime)) -> 1.818181818 | D16: gpm | E16: Accounts for flow equalization if holding tanks used
A17: Actual out-of-cycle backwash discharge flow rate | B17: res_outcycle_flow_actual | C17: =IF(add_backwash_freq=0,0,IF(AND(res_s1_opt=1,res_s2_opt<>3),res_outcycle_vol/res_outcycle_stagger_time,total_backwash/backwash_time)) -> 0 | D17: gpm | E17: Accounts for flow equalization if holding tanks used
A18: Design residuals discharge flow rate | B18: res_flow | C18: =IF(regen_redun>1,res_flow_actual,IF(AND(res_s1_opt=1,res_s2_opt<>3),res_cap_factor*res_vol/res_stagger_time,res_flow_actual)) -> 1.818181818 | D18: gpm | E18: Accounts for less than perfect staggering if holding tanks are used
A19: Design out-of-cycle residuals discharge flow rate | B19: res_outcycle_flow | C19: =IF(add_backwash_freq=0,0,IF(AND(res_s1_opt=1,res_s2_opt<>3),res_cap_factor*res_outcycle_vol/res_outcycle_stagger_time,res_outcycle_flow_actual)) -> 0 | D19: gpm | E19: Accounts for less than perfect staggering if holding tanks are used
A20: Annual residuals dischage | B20: res_flow_annual | C20: =IF(regen_redun>1,res_flow*365*24*60,res_vol*final_num_tanks*(365/regen_days))+IF(add_backwash_freq=0,0,res_outcycle_vol*final_num_tanks*(365/add_backwash_freq)) -> 439.3030623 | D20: gal | E20: Total including any out-of-cycle backwash
A21: Regenerant portion of annual residuals discharge | B21: regen_flow_annual | C21: =IF(regen_redun>1,(regen_vol/(regen_reuse+1)*regen_redun/regeneration_downtime)*365*24*60,regen_vol/(regen_reuse+1)*num_treat_lines*(365/regen_days)) -> 0 | D21: gal
A23: Evaporation Pond or Holding Tank Solids | E23: Does not currently account for contaminant contribution to solids
A24: TSS in residuals (influent TSS removal contribution) | C24: =(influent_TSS-effluent_TSS)*average_flow*1000000*365/res_flow_annual -> 8724.045719 | D24: ppm
A25: TSS in residuals (media attrition contribution) | C25: =resin_loss_vol_annual*media_density*453590/(res_flow_annual*3.78) -> 0 | D25: ppm
A26: TSS in residuals | B26: TSS_residuals | C26: =SUM(C24:C25) -> 8724.045719 | D26: ppm
A27: Evaporation pond TSS accumulation | C27: =IF(res_s2_opt=3,TSS_residuals*res_flow_annual*3.785/1000/453.59/dredging_freq,0) -> 0 | D27: lbs
A28: Evaporation pond TDS (regenerant) accumulation | C28: =IF(res_s2_opt=3,IF(regen_sol=1,brine_conc*regen_flow_annual/dredging_freq,IF(regen_vol=0,0,(FeCl3_in_solution/regen_vol)*regen_flow_annual/dredging_freq)),0) -> 0 | D28: lbs
A29: Total evaporation pond solids accumulation | B29: ep_solids | C29: =C27+C28 -> 0 | D29: lbs | E29: Conservative estimate assumes all TSS removed in regeneration, no regenerant loss during regeneration
A30: Holding tank annual TSS accumulation | C30: =IF(res_holding<>"none",TSS_residuals*IF(coag_res=1,coag_TSSrem,htank_TSSrem)*res_flow_annual*3.785/1000/453.59,0) -> 0 | D30: lbs/year
A31: Holding tank annual coagulant accumulation | C31: =IF(AND(res_holding<>"none",coag_res=1),IF(coag_type<>1,coag_dose*coag_spf*8.34*res_flow_annual/10^6,0)+IF(coag_type<>2,polymer_dose*polymer_spf*8.34*res_flow_annual/10^6,0),0) -> 0 | D31: lbs/year
A32: Holding tank annual solids accumulation | B32: ht_solids | C32: =C31+C30 -> 0 | D32: lbs/year
A33: Holding tank cleaning frequency | B33: ht_clean_freq | C33: =IF(res_holding="none",0,ROUNDUP((ht_solids/ht_solids_density*7.48)/(IF(res_holding="tanks",htanks*htank_vol,hbasins*hbasin_vol)*htank_clean_pct),0)) -> 0 | D33: times per year
A34: Residual solids quantity (total per event) | B34: res_solids | C34: =IF(res_s2_opt=3,ep_solids,IF(OR(res_holding="none",ht_solids=0),0,ht_solids/ht_clean_freq))/2000 -> 0 | D34: tons
A35: Residual solids disposal frequency | B35: sol_disp_freq | C35: =IF(res_s2_opt=3,dredging_freq,IF(res_s1_opt=1,ht_clean_freq,0)) -> 0 | D35: times per year
A37: Spent Media
A38: Replacement/disposal frequency | B38: disp_freq | C38: =IF(regen_type=1,1/resin_life,365/regen_days) -> 3.660858852 | D38: times per year
A39: Spent media quantity (total per event) | B39: spent_media | C39: =IF(regen_type=1,total_media-resin_loss_vol_annual*media_density,media_per_vessel*num_treat_lines)/2000 -> 0.09118472677 | D39: tons | E39: For regenerated systems this is reduced by one year's media loss, assuming disposal takes place before adding loss replacement for the year
A40: Spent resin quantity (average per year) | B40: spent_media_yr | C40: =spent_media*disp_freq -> 0.3338144142 | D40: tons
A42: Spent Cartridge Filters
A43: Replacement/disposal frequency | B43: cart_disp_freq | C43: =12/cart_life -> 2.4 | D43: times per year
A44: Disposal weight (total per event) | B44: cart_disp_wt | C44: =active_filters*filter_elements*VLOOKUP(filter_size,cart_wt_table,3)/2000 -> 0.008 | D44: tons
A46: Capital Items
A47: Holding tanks (for flow equalization)
A48: Maximum holding tank size | B48: max_htank_size | C48: =MAX(VLOOKUP(10^6,st_bwt_cost_cl,1)-1,VLOOKUP(10^6,fg_bwt_cost_cl,1)-1,VLOOKUP(10^6,hdpe_bwt_cost_cl,1)-1) -> 289000 | D48: gal | E48: The largest size for which costs are available.
A49: Number of holding tanks | B49: htanks | C49: =IF(coag_res=1,0,IF(regen_redun>1,0,IF(AND(res_s1_opt=1,res_s2_opt<>3),ROUNDUP(MAX(res_flow*res_stagger_time,res_outcycle_flow*res_outcycle_stagger_time)/max_htank_size,0),0))) -> 0 | D49: units | E49: Use basins, instead of tanks, when cogulant is added
A50: Holding tank volume | B50: htank_vol | C50: =IF(htanks=0,0,res_cap_factor*MAX(regen_redun*res_vol,res_outcycle_vol)/htanks) -> 0 | D50: gal
A52: Holding basins (for flow equalization)
A53: Holding basin redundancy factor | B53: hbasin_redun | C53: =IF(coag_res=1,ROUNDUP(res_coag_settle_time/IF(res_outcycle_vol=0,res_stagger_time,MIN(res_stagger_time,res_outcycle_stagger_time)),0),1) -> 1 | E53: To account for minumum coagulation time, when concrete basins are used, rather than tanks
A54: Number of holding basins | B54: hbasins | C54: =IF(regen_redun>1,0,IF(AND(res_s1_opt=1,res_s2_opt<>3),hbasins_default*hbasin_redun,0)) -> 0 | D54: units | E54: If concrete basins are used, rather than tanks
A55: Total residuals storage volume in cubic feet | B55: total_hvol_ft | C55: =IF(hbasins=0,0,MAX(res_cap_factor*res_vol,res_cap_factor*res_outcycle_vol)*hbasin_redun/7.48) -> 0 | D55: cubic feet | E55: If concrete basins are used, rather than tanks
A56: Residuals storage volume per basin in cubic feet | B56: hvol_ft | C56: =IF(hbasins=0,0,total_hvol_ft/hbasins) -> 0 | D56: cubic feet | E56: If concrete basins are used, rather than tanks
A57: Holiding basin operating depth | B57: hbasin_op_depth | C57: =IF(hbasins=0,0,ROUNDUP(hvol_ft^(1/3)*holding_ratio,0)) -> 0 | D57: ft | E57: If concrete basins are used, rather than tanks
A58: Holiding basin width | B58: hbasin_width | C58: =IF(hbasins=0,0,ROUNDUP((hvol_ft/hbasin_op_depth)^0.5,0)) -> 0 | D58: ft | E58: If concrete basins are used, rather than tanks
A59: Holiding basin length | B59: hbasin_length | C59: =hbasin_width -> 0 | D59: ft | E59: If concrete basins are used, rather than tanks
A60: Holiding basin depth including freeboard | B60: hbasin_depth | C60: =IF(hbasins=0,0,hbasin_op_depth+holding_freeboard) -> 0 | D60: ft | E60: If concrete basins are used, rather than tanks
A61: Holiding basin volume | B61: hbasin_vol | C61: =ROUND(hbasin_width*hbasin_length*hbasin_depth*7.48,0) -> 0 | D61: gal | E61: If concrete basins are used, rather than tanks
A62: Concrete volume | B62: hconc_vol | C62: =(2*(hbasin_width*hbasins+conc_thick*(hbasins+1))*hbasin_depth*conc_thick+(hbasins+1)*hbasin_length*hbasin_depth*conc_thick+(hbasin_length+2*conc_thick)*(hbasin_width*hbasins+conc_thick*(hbasins+1))*conc_thick)/27 -> 0.07407407407 | D62: cubic yards | E62: If concrete basins are used, rather than tanks
A63: Excavation volume | B63: hexcavation_vol | C63: =IF(hbasins=0,0,((hbasins*hbasin_width+(hbasins+1)*conc_thick+overexcavate)*(hbasin_length+2*conc_thick+overexcavate)*(hbasin_depth+conc_thick+overexcavate)+0.5*(3*(hbasin_depth+conc_thick+overexcavate)*(hbasin_depth+conc_thick+overexcavate)*(hbasin_length+2*conc_thick+overexcavate)))/27) -> 0 | D63: cubic yards | E63: If concrete basins are used, rather than tanks
A64: Backfill volume | B64: hbackfill_vol | C64: =IF(hbasins=0,0,hexcavation_vol-(hbasins*hbasin_width+(hbasins+1)*conc_thick)*(hbasin_length+2*conc_thick)*(hbasin_depth+conc_thick)/27) -> 0 | D64: cubic yards | E64: If concrete basins are used, rather than tanks
A65: Railing length | B65: hrailing | C65: =IF(hbasins=0,0,2*(hbasins*hbasin_width+2*conc_thick/2+(hbasins-1)*conc_thick)+2*(hbasin_length+2*conc_thick/2)) -> 0 | D65: lf | E65: If concrete basins are used, rather than tanks
A67: Residuals holding type selected | B67: res_holding | C67: =IF(AND(hbasins<>0,coag_res=1),"basins",IF(OUTPUT!L73=1,"basins",IF(OR(OUTPUT!L74=1,OUTPUT!L75=1,OUTPUT!L76=1),"tanks","none"))) -> none | D67: units | E67: Basins when coagulant is added; otherwise based on priority lookups on the output sheet
A69: Holding Tank Mixers (if coagulant is used)
A70: Mixers per holding tank | B70: hmix_per_tank | C70: =IF(AND(res_holding<>"none",coag_res=1),ROUNDUP(IF(res_holding="tanks",htank_vol,hbasin_vol)/1000*hmix_hp_per/hmix_hp_max,0),0) -> 0 | D70: units
A71: Max holding tank mixer horsepower | B71: hmix_hp_max | C71: =VLOOKUP(10^6,imp_mix_cost_cl,1)-0.1 -> 30 | D71: hp | E71: The largest impeller mixer size available
A72: Number of holding tank mixers | B72: hmixers | C72: =IF(AND(res_holding<>"none",coag_res=1),IF(res_holding="tanks",htanks,hbasins)*hmix_per_tank,0) -> 0 | D72: units
A73: Mixer size for holding tanks | B73: hmix_size | C73: =IF(AND(res_holding<>"none",coag_res=1),MAX(min_hmix_hp,IF(res_holding="tanks",htank_vol,hbasin_vol)/1000*hmix_hp_per/hmix_per_tank),0) -> 0 | D73: hp
A75: Ferric Chloride Addition
A76: Pounds of pure ferric chloride needed per event | B76: coag_day_lbs | C76: =IF(AND(res_holding<>"none",coag_res=1,coag_type<>1),coag_dose*8.34*MAX(res_vol,res_outcycle_vol)/10^6,0) -> 0 | D76: lbs
A77: Gallons of solution needed per event | B77: coag_day_gal | C77: =coag_day_lbs/coag_pct/coag_density -> 0 | D77: gal
A78: Pounds of pure ferric chloride in storage | B78: coag_storage_lbs | C78: =IF(AND(res_holding<>"none",coag_res=1,coag_type<>1),coag_dose*8.34*res_flow_annual/10^6/365*cstore_days,0)+FeCl3_store -> 0 | D78: lbs | E78: Includes FeCl3 supply for regeneration, if tetrachloroferrate solution is used
A79: Ferric chloride storage in gallons | B79: coag_storage_gal | C79: =coag_storage_lbs/coag_pct/coag_density -> 0 | D79: gal | E79: Includes FeCl3 supply for regeneration, if tetrachloroferrate solution is used
A80: Number of ferric chloride storage tanks | B80: coag_tanks | C80: =ROUNDUP(coag_storage_gal/max_chem_tank_size_noSS,0) -> 0 | D80: units
A81: Ferric chloride storage tank size | B81: coag_tank_vol | C81: =IF(coag_tanks>0,ROUNDUP(coag_storage_gal/coag_tanks,0),0) -> 0 | D81: gal
A82: Mixers per ferric chloride storage tank | B82: coag_cmix_per_tank | C82: =IF(AND(include_cmix=1,coag_tanks<>0),ROUNDUP(coag_tank_vol/1000*cmix_hp_per/cmix_hp_max,0),0) -> 0 | D82: units
A83: Number of ferric chloride storage tank mixers | B83: coag_cmixers | C83: =IF(AND(res_holding<>"none",coag_res=1,coag_type<>1),coag_tanks*coag_cmix_per_tank,0) -> 0 | D83: units
A84: Mixer size for storage tanks | B84: coag_cmix_size | C84: =IF(coag_cmixers<>0,MAX(min_cmix_hp,coag_tank_vol/1000*cmix_hp_per/coag_cmix_per_tank),0) -> 0 | D84: hp
A85: Ferric chloride solution feed rate for residuals | B85: coag_rate | C85: =IF(coag_day_gal=0,0,coag_dose*8.34*MAX(res_vol/regeneration_downtime,res_outcycle_vol/backwash_time)/10^6/coag_density) -> 0 | D85: gph
A86: Number of ferric chloride metering pumps for residuals | B86: cm_pumps_coag | C86: =IF(coag_day_gal=0,0,ROUNDUP(coag_rate/max_cm_pump_size_noSS,0)+NRD_cm_pump) -> 0 | D86: units
A87: Ferric chloride metering pump rating for residuals | B87: cm_pump_rating_coag | C87: =IF(coag_day_gal=0,0,MAX(min_chem_flow,coag_rate*(1+pump_safety_factor))/(cm_pumps_coag-NRD_cm_pump)) -> 0 | D87: gph
A89: Secondary Containment for Ferric Chloride
A90: Minimum volume required | B90: coag_cont_volume | C90: =MAX(coag_tanks*coag_tank_vol*sec_cont_pct_of_total,coag_tank_vol*sec_cont_pct_of_largest)/7.48 -> 0 | D90: cubic feet | E90: 7.48 converts gallons to cubic feet
A91: Footprint available | B91: coag_cont_fp | C91: =IF(coag_tanks=0,0,coag_fp-coag_tanks*PI()*(coag_st_diam/2)^2) -> 0 | D91: square feet | E91: Total footprint minus displacement by tanks themselves
A92: Curb height required | B92: coag_curb_height | C92: =IF(coag_tanks=0,0,coag_cont_volume/coag_cont_fp+sec_cont_freeboard/12) -> 0 | D92: feet
A93: Curb thickness | B93: coag_curb_thick | C93: =IF(coag_tanks=0,0,MIN(sec_cont_max_thick,coag_curb_height)) -> 0 | D93: feet
A94: Curb length (long side) | B94: coag_curb_len_long | C94: =IF(coag_tanks=0,0,coag_tanks*coag_st_diam+2*space_coag_st+(coag_tanks-1)*space_coag_st+2*coag_curb_thick) -> 0 | D94: feet
A95: Curb length (short side) | B95: coag_curb_len_short | C95: =IF(coag_tanks=0,0,coag_st_diam+2*space_coag_st) -> 0 | D95: feet
A96: Curb concrete volume | B96: coag_curb_concrete | C96: =IF(coag_tanks=0,0,ROUNDUP((coag_curb_len_long*2+coag_curb_len_short*2)*coag_curb_height*coag_curb_thick/27,0)) -> 0 | D96: cubic yards | E96: 27 converts cubic feet to cubic yards
A97: Chemical resistant coating required | B97: coag_coating_gal | C97: =IF(coag_tanks=0,0,ROUNDUP((coag_fp+2*(coag_curb_len_long-2*coag_curb_thick)*coag_curb_height+2*coag_curb_len_short*coag_curb_height)/sec_cont_coating_cvg,0)) -> 0 | D97: gallons | E97: Covers total footprint plus inside surface and top of curbs
A99: Polymer Addition
A100: Polymer needed per event | B100: polymer_day | C100: =IF(AND(res_holding<>"none",coag_res=1,coag_type<>2),polymer_dose*8.34*MAX(res_vol,res_outcycle_vol)/10^6/polymer_density,0) -> 0 | D100: gal
A101: Polymer storage in gallons | B101: polymer_storage | C101: =IF(AND(res_holding<>"none",coag_res=1,coag_type<>2),polymer_dose*8.34*res_flow_annual/10^6/polymer_density/365*cstore_days,0) -> 0 | D101: gal
A102: Polymer storage in pounds | B102: polymer_storage_lbs | C102: =polymer_storage*polymer_density -> 0 | D102: lbs
A103: Number of chemical storage tanks | B103: polymer_tanks | C103: =ROUNDUP(polymer_storage/max_chem_tank_size,0) -> 0 | D103: units
A104: Chemical storage tank size | B104: polymer_tank_vol | C104: =IF(polymer_tanks>0,ROUNDUP(polymer_storage/polymer_tanks,0),0) -> 0 | D104: gal
A105: Mixers per storage tank | B105: polymer_cmix_per_tank | C105: =IF(AND(include_cmix=1,polymer_tanks<>0),ROUNDUP(polymer_tank_vol/1000*cmix_hp_per/cmix_hp_max,0),0) -> 0 | D105: units
A106: Number of storage tank mixers | B106: polymer_cmixers | C106: =IF(AND(res_holding<>"none",coag_res=1,coag_type<>2),polymer_tanks*polymer_cmix_per_tank,0) -> 0 | D106: units
A107: Mixer size for storage tanks | B107: polymer_cmix_size | C107: =IF(polymer_tanks<>0,polymer_tank_vol/1000*cmix_hp_per/polymer_cmix_per_tank,0) -> 0 | D107: hp
A108: Solution feed rate | B108: polymer_rate | C108: =IF(polymer_day=0,0,polymer_dose*8.34*MAX(res_vol/regeneration_downtime,res_outcycle_vol/backwash_time)/10^6/polymer_density) -> 0 | D108: gph
A109: Number of chemical metering pumps | B109: cm_pumps_polymer | C109: =IF(polymer_day=0,0,ROUNDUP(polymer_rate/max_cm_pump_size,0)+NRD_cm_pump) -> 0 | D109: units
A110: Chemical metering pump rating | B110: cm_pump_rating_polymer | C110: =IF(polymer_day=0,0,MAX(min_chem_flow,polymer_rate*(1+pump_safety_factor)/(cm_pumps_polymer-NRD_cm_pump))) -> 0 | D110: gph
A112: Pumps
A113: Number of pumps | B113: res_pumps | C113: =IF(res_holding<>"none",ROUNDUP(MAX(res_flow,res_outcycle_flow)*(1+pump_safety_factor)/max_pump_size,0)+NRD_res_pump,0) -> 0 | D113: units
A114: Pump design rating | B114: res_pump_rating | C114: =IF(res_holding<>"none",MAX(res_flow,res_outcycle_flow)*(1+pump_safety_factor)/(res_pumps-NRD_res_pump),0) -> 0 | D114: gpm
A116: Solids transfer for holding tanks
A117: Transfer rate required | B117: res_transfer_rate | C117: =res_solids*2000/transfer_time -> 0 | D117: lbs/hr
A118: Transfer rate in gallons | B118: res_transfer_rate_gal | C118: =res_transfer_rate/(ht_solids_density/7.48*60) -> 0 | D118: gpm
A119: Number of slurry pump systems | B119: res_slurry_pumps | C119: =IF(res_transfer_method=1,1,0) -> 0 | D119: units
A120: Number of eductors | B120: res_eductors | C120: =IF(res_transfer_method<>2,0,ROUNDUP(res_transfer_rate_gal/max_eductor_size,0)) -> 0 | D120: units
A121: Effective transfer rate | B121: res_eff_transfer_rate | C121: =IF(res_eductors=0,0,res_transfer_rate_gal/res_eductors) -> 0 | D121: gpm
A122: Eductor size | B122: res_eductor_size | C122: =IF(res_transfer_method=2,VLOOKUP(res_eff_transfer_rate,eductor_size_table_cl,2),"NA") -> NA | D122: inches
A124: Solids drying pad
A125: Area required | B125: solids_pad_area | C125: =ROUNDUP(res_solids*2000/ht_solids_density/solids_storage_height,-1) -> 0 | D125: square ft
A126: Concrete | B126: solids_pad_concrete | C126: =ROUNDUP(solids_pad_area*IF(ss_cat2=1,pad_thick_small,pad_thick)/27,0) -> 0 | D126: cubic yds
A128: Evaporation Ponds
A129: Total open surface area required | B129: ep_total_sa | C129: =IF(res_s2_opt=3,(res_flow_annual/7.48)*ep_safety_factor/((pan_evap*evap_ratio-precip)*0.0328),0) -> 0 | D129: square feet
A130: Required depth for solids accumulation | B130: ep_solids_depth | C130: =IF(res_s2_opt=3,ep_solids/ep_solids_density/ep_total_sa,0) -> 0 | D130: feet
A131: Required depth for liquid accumulation | B131: ep_water_depth | C131: =IF(res_s2_opt=3,(res_flow_annual/7.48)*winter_days/365/ep_total_sa,0) -> 0 | D131: feet
A132: Total excavated depth | B132: ep_depth | C132: =IF(res_s2_opt=3,ep_solids_depth+ep_water_depth+ep_freeboard,0) -> 0 | D132: feet | E132: Additional freeboard provided above grade by dike
A133: Number of cells | B133: ep_cells | C133: =IF(res_s2_opt=3,IF(ROUNDUP(ep_total_sa/(max_ep_cell_area*43560),0)<min_ep_cells,min_ep_cells,ROUNDUP(ep_total_sa/(max_ep_cell_area*43560),0)),0) -> 0 | D133: cells
A134: Cell side length | B134: ep_cell_side | C134: =IF(res_s2_opt=3,SQRT(ep_total_sa/ep_cells),0) -> 0 | D134: feet
A135: Total excavation volume | B135: ep_excavation_vol | C135: =IF(res_s2_opt=3,ROUNDUP(((ep_cell_side+ep_overexcavate)^2*(ep_depth+ep_overexcavate)+0.5*(3*(ep_depth+ep_overexcavate)*(ep_cell_side+ep_overexcavate)*(ep_depth+ep_overexcavate)))*ep_cells/27,0),0) -> 0 | D135: cubic yards
A136: Total backfill volume | B136: ep_backfill_vol | C136: =IF(res_s2_opt=3,ROUNDUP(ep_excavation_vol-(ep_cell_side^2*ep_depth*ep_cells)/27,0),0) -> 0 | D136: cubic yards
A137: Dike volume | B137: dike_volume | C137: =IF(res_s2_opt=3,ep_cells*ep_cell_side*4*dike_xsection/27,0) -> 0 | D137: cubic yards
A138: Liner area | B138: liner_area | C138: =(ep_cell_side^2+ep_cell_side*(ep_depth+2)*4)*ep_cells -> 0 | D138: square feet | E138: Assumes liner extends 2 feet up dike side slope
A140: Piping
A141: Pipe length | B141: res_pipe_length | C141: =res_pipe_mult*facil_length+add_res_pipe_length -> 60 | D141: ft
A142: Pipe diameter | B142: res_pipe_diam | C142: =MAX(min_res_pipe_size,VLOOKUP(MAX(res_flow,res_outcycle_flow),pipe_size_table_cl,2)) -> 1 | D142: inches
A143: Buried pipe length | B143: buried_res_pipe_length | C143: =IF(res_s2_opt=4,0,add_res_pipe_length) -> 40 | D143: ft
A144: Trench depth to top of pipe | B144: res_trn_depth | C144: =MAX(frost,min_trench_depth) -> 38 | D144: in. diam
A145: Thrust force | B145: res_thrust_force | C145: =VLOOKUP(res_pipe_diam,thrust_block_table_cl,2)*2.2 -> 764.7983868 | D145: inches
A146: Bearing Area (L x H) | B146: res_bearing_area | C146: =1.5*res_thrust_force/(soil_dens*(res_trn_depth/12+res_pipe_diam/12)*Coeff_Kp*Reduction) -> 2.597436815 | D146: lbs
A147: L | C147: =res_bearing_area/C148 -> 2.279226542 | D147: square ft
A148: H | C148: =(res_bearing_area/2)^0.5 -> 1.139613271 | D148: ft
A149: F | C149: =MAX(0.5,res_pipe_diam/12) -> 0.5 | D149: ft
A150: T | C150: =C147/2 -> 1.139613271 | D150: ft
A151: Thrust block volume | B151: res_block_vol | C151: =IF(OR(buried_res_pipe_length=0,res_pipe_diam=0),0,(C150+(buried_res_pipe_length/12)/2)*(C147+C149)/2*C148/27) -> 0.1645957732 | D151: cy
A152: Trench cross-section area | B152: res_trench_area | C152: =IF(res_pipe_diam=0,0,(res_pipe_diam/12+2)*(bedding_depth/12+res_pipe_diam/12+res_trn_depth/12)+(bedding_depth/12+res_pipe_diam/12+res_trn_depth/12)^2*TAN(trench_angle)) -> 21.875 | D152: cy
A153: Trench volume to discharge point | C153: =res_trench_area*buried_res_pipe_length/27 -> 32.40740741 | D153: square ft
A154: Trench volume total | B154: res_trench_vol | C154: =IF(OR(buried_res_pipe_length=0,res_pipe_diam=0),0,C153+res_block_vol) -> 32.57200318 | D154: cy
A155: Bedding cross sectional surface area | C155: =IF(res_pipe_diam=0,0,(res_pipe_diam/12+2)*(bedding_depth/12+res_pipe_diam/12*bedding_pct)+(bedding_depth/12+res_pipe_diam/12*bedding_pct)^2*TAN(trench_angle)-((res_pipe_diam/12/2)^2*ACOS((res_pipe_diam/12/2-bedding_pct*res_pipe_diam/12)/(res_pipe_diam/12/2))-(res_pipe_diam/12/2-res_pipe_diam/12*bedding_pct)*((2*res_pipe_diam/12/2*res_pipe_diam/12*bedding_pct-(res_pipe_diam/12*bedding_pct)^2)^0.5))) -> 1.355270512 | D155: square ft
A156: Bedding volume | B156: res_pipe_bedding_vol | C156: =C155*buried_res_pipe_length/2/27 -> 1.003904083 | D156: cy
A158: Valves and instrumentation
A159: Residuals valve size | B159: res_valve_size | C159: =res_pipe_diam -> 1 | D159: inches
A160: Number of MOVs for residuals line | B160: total_res_MOVs | C160: =VLOOKUP("res_MOV_pump",valve_table,manual+1,FALSE)*res_pumps+VLOOKUP("res_MOV_tank",valve_table,manual+1,FALSE)*IF(res_holding="tanks",htanks,IF(res_holding="basins",hbasins,0))+VLOOKUP("res_MOV_ep",valve_table,manual+1,FALSE)*ep_cells -> 0 | D160: valves
A161: Number of manual valves for residuals line | B161: total_res_man | C161: =VLOOKUP("res_man_pump",valve_table,manual+1,FALSE)*res_pumps+VLOOKUP("res_man_tank",valve_table,manual+1,FALSE)*IF(res_holding="tanks",htanks,IF(res_holding="basins",hbasins,0))+VLOOKUP("res_man_ep",valve_table,manual+1,FALSE)*ep_cells -> 0 | D161: valves
A162: Number of check valves for residuals line | B162: tot_res_chv | C162: =res_chv_pump*res_pumps+IF(res_pumps=0,res_chv_no_pump,0) -> 1 | D162: valves
A163: Total high/low alarms | B163: tot_res_alarm | C163: =IF(res_holding="tanks",htanks,IF(res_holding="basins",hbasins,0))*alarm_res -> 0 | D163: units
A164: Residuals flow meter size | B164: res_meter_size | C164: =res_pipe_diam -> 1 | D164: inches
A166: O&M Items
A167: Pumps
A168: Pump operating horsepower | C168: =IF(res_pumps=0,0,MAX(res_flow_actual,res_outcycle_flow_actual)*res_pump_psi/(res_pumps-NRD_res_pump)/booster_pump_efficiency/14.7*33.9*8.34/550/60) -> 0 | D168: hp
A169: Energy per pump | C169: =C168*0.7457/1000*24*365 -> 0 | D169: MWh/yr
A170: Energy for all active pumps | B170: res_pump_energy | C170: =C169*(res_pumps-NRD_res_pump) -> 0 | D170: MWh/yr
A171: Residuals pump material cost | B171: res_pump_mtl | C171: =OUTPUT!J225*booster_pump_maintenance -> 0 | D171: /yr
A173: Coagulant Use
A174: Annual ferric chloride use (pounds bulk solution) | B174: coag_yr | C174: =IF(AND(res_holding<>"none",coag_res=1,coag_type<>1),coag_dose*8.34*res_flow_annual/10^6,0)/coag_pct -> 0 | D174: lbs
A175: Annual polymer use | B175: polymer_yr | C175: =IF(AND(res_holding<>"none",coag_res=1, coag_type<>2),polymer_dose*8.34*res_flow_annual/10^6,0) -> 0 | D175: lbs
A177: Ferric Chloride Purchasing
A178: Quantity required for large quantity purchase | C178: =VLOOKUP("Ferric Chloride - Large Qty",chem_break_table_cl,2,FALSE) ->  | D178: lbs | E178: #N/A indicates that price data do not depend on volume purchased.
A179: Quantity required for mid quantity purchase | C179: =VLOOKUP("Ferric Chloride - Mid Qty",chem_break_table_cl,2,FALSE) ->  | D179: lbs | E179: #N/A indicates that price data do not depend on volume purchased.
A180: Quantity required for small quantity purchase | C180: =VLOOKUP("Ferric Chloride - Small Qty",chem_break_table_cl,2,FALSE) ->  | D180: lbs | E180: #N/A indicates that price data do not depend on volume purchased.
A181: Purchase Type | B181: FeCl3_purchase | C181: =IF(AND(ISNA(C178),ISNA(C179),ISNA(C180)),"",IF(coag_store_lbs_bulk>=C178," - Large Qty",IF(coag_store_lbs_bulk>=C179," - Mid Qty"," - Small Qty"))) ->  | E181: Returns descriptive term based on volume of each purchase for use in determining pricing. Blank indicates that price data do not depend on volume purchased.
A183: Polymers Purchasing
A184: Quantity required for large quantity purchase | C184: =VLOOKUP("Polymers - Large Qty",chem_break_table_cl,2,FALSE) ->  | D184: lbs | E184: #N/A indicates that price data do not depend on volume purchased.
A185: Quantity required for mid quantity purchase | C185: =VLOOKUP("Polymers - Mid Qty",chem_break_table_cl,2,FALSE) ->  | D185: lbs | E185: #N/A indicates that price data do not depend on volume purchased.
A186: Quantity required for small quantity purchase | C186: =VLOOKUP("Polymers - Small Qty",chem_break_table_cl,2,FALSE) ->  | D186: lbs | E186: #N/A indicates that price data do not depend on volume purchased.
A187: Purchase Type | B187: polymer_purchase | C187: =IF(AND(ISNA(C184),ISNA(C185),ISNA(C186)),"",IF(polymer_storage_lbs>=C184," - Large Qty",IF(polymer_storage_lbs>=C185," - Mid Qty"," - Small Qty"))) ->  | E187: Returns descriptive term based on volume of each purchase for use in determining pricing. Blank indicates that price data do not depend on volume purchased.
A189: POTW Discharge Fees
A190: TSS in discharged residuals | B190: TSS_residuals_dis | C190: =IF(res_holding<>"none",TSS_residuals*(1-IF(coag_res=1,coag_TSSrem,htank_TSSrem)),TSS_residuals) -> 8724.045719 | D190: ppm
A191: Total TSS in excess of POTW limit (if applicable) | B191: ex_TSS_total | C191: =IF((TSS_residuals_dis-POTW_TSS_limit)*res_flow_annual*3.785/1000/453.59>0,(TSS_residuals_dis-POTW_TSS_limit)*res_flow_annual*3.785/1000/453.59,0) -> 31.06400489 | D191: lbs/year
A192: Annual POTW base fee | C192: =IF(POTW_rate_type=1,POTW_base_cost_avg_cl,IF(POTW_base_fee=1,POTW_base_cost_typ_cl,0))*12 -> 206.4101995 | D192: $/year
A193: Annual POTW volume fee | C193: =IF(POTW_rate_type=1,POTW_vol_cost_avg_cl,IF(POTW_volume_fee=1,POTW_vol_cost_typ_cl,0))*res_flow_annual/1000 -> 2.441366889 | D193: $/year
A194: Annual POTW TSS fee | C194: =IF(POTW_rate_type=1,POTW_TSS_cost_avg_cl,IF(POTW_TSS_fee=1,POTW_TSS_cost_typ_cl,0))*ex_TSS_total -> 8.262965889 | D194: $/year
A195: Total annual POTW discharge fee | B195: POTW_fee | C195: =SUM(C192:C194) -> 217.1145323 | D195: $/year
A197: Liquid Hazardous Waste Disposal
A198: Disposal | C198: =IF(res_s2_opt=4,lhaz_disposal_cost_cl*res_flow_annual,0) -> 0 | D198: $/year
A199: Disposal frequency | C199: =365*24*60/res_stagger_time -> 3.660858852 | D199: times per year
A200: Out of cycle backwash disposal frequency | C200: =+IF(res_outcycle_stagger_time=0,0,365*24*60/res_outcycle_stagger_time) -> 0 | D200: times per year
A201: Shipments per year | C201: =IF(res_vol>max_lhaz_ship,ROUNDUP(res_vol/max_lhaz_ship,0)*C199,C199)+IF(res_outcycle_vol>max_lhaz_ship,ROUNDUP(res_outcycle_vol/max_lhaz_ship,0)*C200,C200) -> 3.660858852
A202: Transportation | C202: =MAX(C201*lhaz_trans_min_cost_cl,res_flow_annual*haz_miles*lhaz_transportation_cost_cl) -> 12418.40084 | D202: $/year
A203: Total annual liquid hazardous waste disposal fee | B203: lhaz_fee | C203: =C198+C202 -> 12418.40084 | D203: $/year
A205: Spent Media Disposal Fees
A206: Disposal | C206: =spent_media*disp_freq*CHOOSE(media_haz,IF(alt_media_disp="",nonhaz_disposal_cost_cl,alt_media_disp),haz_disposal_cost_cl,rad_disposal_cost_cl,hazrad_disposal_cost_cl) -> 232.8937773 | D206: $/year
A207: Shipments per year | B207: disposal_shipments | C207: =CHOOSE(media_haz,disp_freq,IF(spent_media>max_haz_ship,ROUNDUP(spent_media/max_haz_ship,0)*disp_freq,disp_freq),IF(spent_media>max_rad_ship,ROUNDUP(spent_media/max_rad_ship,0)*disp_freq,disp_freq),IF(spent_media>max_hazrad_ship,ROUNDUP(spent_media/max_hazrad_ship,0)*disp_freq,disp_freq)) -> 3.660858852
A208: Transportation unit cost | C208: =CHOOSE(media_haz,nonhaz_transportation_cost_cl,haz_transportation_cost_cl,rad_transportation_cost_cl,hazrad_transportation_cost_cl) -> 0.2119789405 | D208: $/ton-mile
A209: Transportation minimum charge per shipment | C209: =CHOOSE(media_haz,0,haz_trans_min_cost_cl,rad_trans_min_cost_cl,hazrad_trans_min_cost_cl) -> 0 | D209: $/shipment
A210: Transportation mileage | B210: disposal_miles | C210: =CHOOSE(media_haz,non_haz_miles,haz_miles,rad_miles,hazrad_miles) -> 10 | D210: miles
A211: Transportation | C211: =IF(alt_media_disp<>"",0,MAX(spent_media*C207*C208*C210,C207*C209)) -> 0 | D211: $/year
A212: Annual fee | C212: =CHOOSE(media_haz,0,0,VLOOKUP(households*hh_size,rad_annual_fee_cl,2),VLOOKUP(households*hh_size,hazrad_annual_fee_cl,2)) -> 0 | D212: $/year
A213: Total annual spent media diposal fee | B213: disposal_fee | C213: =C211+C206+C212 -> 232.8937773 | D213: $/year
A215: Evaporation Pond/Holding Tank Solids Disposal Fees
A216: Disposal | C216: =res_solids*sol_disp_freq*CHOOSE(solids_haz,nonhaz_disposal_cost_cl,haz_disposal_cost_cl,rad_disposal_cost_cl,hazrad_disposal_cost_cl) -> 0 | D216: $/year
A217: Shipments per year | B217: sol_disposal_shipments | C217: =CHOOSE(solids_haz,sol_disp_freq,IF(res_solids>max_haz_ship,ROUNDUP(res_solids/max_haz_ship,0)*sol_disp_freq,sol_disp_freq),IF(res_solids>max_rad_ship,ROUNDUP(res_solids/max_rad_ship,0)*sol_disp_freq,sol_disp_freq),IF(res_solids>max_hazrad_ship,ROUNDUP(res_solids/max_hazrad_ship,0)*sol_disp_freq,sol_disp_freq)) -> 0
A218: Transportation unit cost | C218: =CHOOSE(solids_haz,nonhaz_transportation_cost_cl,haz_transportation_cost_cl,rad_transportation_cost_cl,hazrad_transportation_cost_cl) -> 0.2119789405 | D218: $/ton-mile
A219: Transportation minimum charge per shipment | C219: =CHOOSE(solids_haz,0,haz_trans_min_cost_cl,rad_trans_min_cost_cl,hazrad_trans_min_cost_cl) -> 0 | D219: $/shipment
A220: Transportation mileage | B220: sol_disposal_miles | C220: =CHOOSE(solids_haz,non_haz_miles,haz_miles,rad_miles,hazrad_miles) -> 10 | D220: miles
A221: Transportation | C221: =MAX(C217*C219,res_solids*C217*C220*C218) -> 0 | D221: $/year
A222: Annual fee | C222: =CHOOSE(solids_haz,0,0,VLOOKUP(households*hh_size,rad_annual_fee_cl,2),VLOOKUP(households*hh_size,hazrad_annual_fee_cl,2)) -> 0 | D222: $/year
A223: Total annual pond/tank solids diposal fee | B223: sol_disposal_fee | C223: =IF(AND(solids_haz=1,solids_method=2),0,C221+C216+C222) -> 0 | D223: $/year
A225: Spent Cartridge Filter Disposal Fees
A226: Disposal | C226: =cart_disp_wt*cart_disp_freq*nonhaz_disposal_cost_cl -> 2.112718445 | D226: $/year
A227: Transportation | C227: =cart_disp_wt*cart_disp_freq*non_haz_miles*nonhaz_transportation_cost_cl -> 0.04069995658 | D227: $/year
... 1 more rows

Sheet O&M
A1: Operation and Maintenance Calculations
A3: Calculation | B3: Range Name | C3: Value | D3: Units | E3: Guidance
A4: Labor and Materials
A5: Include backwash/rinse pump maintenance? | B5: include_back_maint | C5: =IF(regen_days<=7,1,IF(AND(add_backwash_freq<=7,NOT(ISBLANK(add_backwash_freq))),1,0)) -> 0 | D5: 0 = exclude, 1 = include | E5: Explicitly include labor and materials for maintenance if regeneration and/or backwash/rinse occurs weekly or more frequently
A7: Maintenance materials
A8: Booster pump materials | B8: pump_mtl | C8: =OUTPUT!J214*booster_pump_maintenance -> 0 | D8: /yr
A9: Backwash pump materials | B9: back_pump_mtl | C9: =IF(backwash_pumps=0,0,IF(include_back_maint=0,0,OUTPUT!J215*booster_pump_maintenance)) -> 0 | D9: /yr
A10: Regenerant pumps | B10: regen_pump_mtl | C10: =IF(regen_freq/60/24<=7,IF(ISNUMBER(OUTPUT!J213),OUTPUT!J213*booster_pump_maintenance,0),0) -> 0 | D10: /yr
A12: Chemicals and Resin
A13: Salt needed per year | B13: salt_year | C13: =365*salt_store/cstore_days -> 0 | D13: lbs
A14: HCl needed per year | B14: HCl_year | C14: =365*total_HCl_lbs/cstore_days -> 0 | D14: lbs
A15: FeCl3 needed per year (pounds bulk solution) | B15: FeCl3_year | C15: =365*FeCl3_store/cstore_days/coag_pct -> 0 | D15: lbs | E15: Does not include holding tank coagulant (see Residuals Management for that value)
A16: NaOH needed per year (pounds bulk solution) | B16: NaOH_year | C16: =365*NaOH_lbs/cstore_days -> 0 | D16: lbs
A18: Resin loss replacement | B18: resin_loss_vol_annual | C18: =IF(OR(regen_type=1,add_backwash_freq<>0),media_volume*op_num_tanks*resin_loss_annual,0) -> 0 | D18: cf | E18: Relevant only for regenerated systems or throwaway systems with frequent backwash
A19: Complete bed replacement (averaged over resin life) | B19: resin_yr | C19: =spent_media_yr*2000/media_density -> 15.52625182 | D19: cf | E19: =IF(regen_type=2,"Total annual replacement","Averaged over media life and reduced by one year's attrition loss to avoid double counting (no attrition replacement needed in the year you completely replace the bed)") -> Total annual replacement
A21: Cartridge Filters
A22: Labor | B22: cart_labor | C22: =active_filters*hrs_filter -> 12 | D22: hrs/yr | E22: For cartridge filter maintenance
A23: Replacement | B23: pre_filter_replacement | C23: =active_filters*filter_elements*12/cart_life -> 2.4 | D23: filters/yr | E23: For replacement of pretreatment cartridge filters only.
A25: General Labor
A26: Number of process instruments for operation | B26: tot_inst | C26: =tot_fm_in+tot_fm_proc+tot_level_switch+tot_turb_meters+tot_head_sens+pH_controls+IF(ss_cat2=1,temp_meters_small,temp_meters)+ORP_sensor+tot_cond_meters -> 3
A27: Total number of instruments for maintenance | B27: tot_inst_maint | C27: =tot_fm_in+tot_fm_proc+tot_level_switch+tot_turb_meters+tot_head_sens+pH_controls+IF(ss_cat2=1,temp_meters_small,temp_meters)+ORP_sensor+tot_cond_meters+tot_fm_back+tot_fm_res -> 5
A28: Number of pumps for operation | B28: tot_pumps | C28: =booster_pumps+MAX(0,pH_pumps-NRD_pH_pumps) -> 0
A29: Total number of pumps for maintenance | B29: tot_pumps_maint | C29: =booster_pumps+res_pumps+IF(regen_days<=7,regen_pumps,0)+IF(include_back_maint=1,backwash_pumps,0) -> 0
A30: Number of process valves | B30: tot_valves | C30: =tot_proc_MOVs+tot_proc_man+tot_bp_MOVs+tot_bp_man -> 8 | E30: Main process valves require frequent operation and preventative maintenance
A31: Number of chemical supplies | B31: tot_chem | C31: =NaOH_tanks+mix_tanks+HCl_tanks+num_salt_box+polymer_tanks+coag_tanks -> 0
A32: Regenerations per year | B32: regen_yr | C32: =365/regen_days*final_num_tanks -> 7.321717705 | E32: Accounts for initial rinse even in throwaway systems
A33: Additional out-of-cycle backwashes per year | B33: backwash_yr | C33: =IF(add_backwash_freq<>0,365/add_backwash_freq*final_num_tanks,0) -> 0
A34: Quantity of resin handled per year | B34: media_changes_cf | C34: =spent_media_yr*2000/media_density+resin_loss_vol_annual+resin_yr -> 31.05250365 | D34: cf | E34: Incorporates both removal and refill
A36: Record system operating parameters (includes routine sampling) | C36: =IF(manual=1,tot_inst*uloe_inst*365/60,uloe_inst_auto*365/60) -> 30.41666667 | D36: hr/yr | E36: Instruments requiring daily observation
A37: Preventative maintenance and calibration of instruments | C37: =tot_inst_maint*uloe_inst_maint*12/60 -> 10 | D37: hr/yr | E37: All instruments for preventative maintenance
A38: Verify/adjust pump operating parameters | C38: =IF(OR(manual=1,manual=2,),tot_pumps*uloe_pump*365/60,0) -> 0 | D38: hr/yr | E38: Pumps requiring daily observation/adjustment
A39: Preventative maintenance of pumps | C39: =tot_pumps_maint*uloe_pump_maint -> 0 | D39: hr/yr | E39: Large, frequently operated pumps require preventative maintenance
A40: Verify/adjust valve positions | C40: =IF(OR(manual=1,manual=2,),tot_valves*uloe_valve*52/60,0) -> 0 | D40: hr/yr | E40: Main process valves require frequent operation and preventative maintenance
A41: Preventative maintenance and inspection of valves | C41: =tot_valves*uloe_valve_maint/60 -> 0.6666666667 | D41: hr/yr
A42: Visual inspection of facility | C42: =total_fp/100*uloe_fp*365/60 -> 6.691666667 | D42: hr/yr
A43: Maintain/inspect chemical supply | C43: =tot_chem*uloe_chem_maint*12/60 -> 0 | D43: hr/yr
A44: Managing regeneration/backwash | C44: =IF(OR(manual=1,manual=2),regen_yr*regeneration_downtime/60+backwash_yr*backwash_time/60,(regen_yr+backwash_yr)*uloe_autoregen/60) -> 1.220286284 | D44: hr/yr
A45: Managing resin changeouts | C45: =media_changes_cf*uloe_throwaway -> 0.4600370911 | D45: hr/yr
A46: Managing residual solids | C46: =IF(OR(res_s2_opt=3,res_transfer_method=3),res_solids*2000/ht_solids_density*sol_disp_freq*uloe_throwaway,sol_disp_freq*transfer_time) -> 0 | D46: hr/yr
A47: Subtotal General Operator Labor | B47: General_Oper_Labor | C47: =SUM(C36:C46) -> 49.45532338 | D47: hr/yr
A49: Total Annual Operator LOE | B49: Operator_LOE | C49: =General_Oper_Labor+cart_labor -> 61.45532338 | D49: hr/yr | E49: Subtotal above + building + booster pumps + residuals pumps
A50: Annual Manager LOE | B50: Manager_LOE | C50: =Operator_LOE*Manager_percent -> 6.145532338 | D50: hr/yr | E50: Based on general operator labor and percentages in critical design assumptions
A51: Annual Administrative LOE | B51: Clerical_LOE | C51: =Operator_LOE*Clerical_percent -> 6.145532338 | D51: hr/yr | E51: Based on general operator labor and percentages in critical design assumptions
A53: Building and HVAC Maintenance
A54: Cost excluding heating and cooling | C54: =IF(include_buildings=0,0,building_matl_rate_cl*total_fp) -> 712.693139 | D54: /yr | E54: Labor and materials; includes routine in-house maintenance and major repairs
A55: Cost to maintain heating system, building 1 | C55: =build1_need_heat*heating_matl_rate_cl*build1_fp -> 0 | D55: /yr
A56: Cost to maintain cooling system, building 1 | C56: =build1_need_cool*cooling_matl_rate_cl*build1_fp -> 0 | D56: /yr
A57: Cost to maintain heating system, building 2 | C57: =build2_need_heat*heating_matl_rate_cl*build2_fp -> 0 | D57: /yr
A58: Cost to maintain cooling system, building 2 | C58: =build2_need_cool*cooling_matl_rate_cl*build2_fp -> 0 | D58: /yr
A59: Total annual building and HVAC maintenance | B59: bldg_maint_cost | C59: =SUM(C54:C58) -> 712.693139 | E59: Includes labor and materials
A61: Energy
A62: Booster & Backwash Pumps | E62: Other pumps and mechanical equipment used infrequently. Therefore, these energy costs may be assumed covered by overall process and building energy costs.
A63: Booster pump operating horsepower | B63: pump_hp | C63: =IF(booster_pumps=0,0,(average_flow_rate/IF(bp_pct>0,bp_pct,1))*booster_pump_head/booster_pumps/booster_pump_efficiency/14.7*33.9*8.34/550/60) -> 0 | D63: hp
A64: Energy per booster pump | C64: =pump_hp*0.7457/1000*24*365 -> 0 | D64: MWh/yr
A65: Energy for all active booster pumps | B65: pump_energy | C65: =C64*booster_pumps -> 0 | D65: MWh/yr
A67: Backwash Pumps
A68: Backwash pump operating horsepower (all pumps) | B68: back_pump_hp | C68: =water_flush*backwash_pump_head/booster_pump_efficiency/14.7*33.9*8.34/550/60 -> 0.05711636364 | D68: hp
A69: Backwash pumping time | B69: back_pump_op_hours | C69: =(regen_yr+backwash_yr)*backwash_time/60 -> 1.464343541 | D69: hours/yr
A70: Energy for all backwash pumps | B70: back_pump_energy | C70: =back_pump_hp*0.7457/1000*back_pump_op_hours -> 6.236884032e-05 | D70: MWh/yr
A72: Building Lighting
A73: Lighting power per sf, building 1 | B73: lighting_energy_1 | C73: =IF(OR(build1_fp<500,component_level=""),lighting_power_low,CHOOSE(component_level,lighting_power_mid,lighting_power_high))*24*365/1000 -> 2.628 | D73: kWh/sf/yr
A74: Lighting power per sf, building 2 | B74: lighting_energy_2 | C74: =IF(OR(build2_fp<500,component_level=""),lighting_power_low,CHOOSE(component_level,lighting_power_mid,lighting_power_high))*24*365/1000 -> 2.628 | D74: kWh/sf/yr
A75: Lighting | B75: lighting | C75: =IF(include_buildings=0,0,MIN(1,Operator_LOE/(24*365))*(build1_fp*lighting_energy_1+build2_fp*lighting_energy_2)/1000) -> 0.002028025671 | D75: MWh/yr
A77: HVAC
A78: Heating energy usage for:
A79: Electric resistance | B79: heating | C79: =IF(build1_heat=A79,VLOOKUP(A79,build1_heat_options, 7,FALSE),0)+IF(build2_heat=A79,VLOOKUP(A79,build2_heat_options, 7,FALSE),0) -> 0 | D79: MWh/yr
A80: Natural gas non-condensing furnace | B80: heating_gas_non | C80: 0 | D80: therms/yr
A81: Natural gas condensing furnace | B81: heating_gas | C81: 0 | D81: therms/yr
A82: Standard efficiency oil furnace | B82: heating_diesel_non | C82: 0 | D82: gal/yr
A83: Mid-efficiency oil furnace | B83: heating_diesel | C83: 0 | D83: gal/yr
A84: Heat pump | B84: heating_hp | C84: 0 | D84: MWh/yr
A86: Cooling energy usage for:
A87: Air conditioner | B87: cooling | C87: =IF(build1_cool=A87,VLOOKUP(A87,build1_cool_options, 7,FALSE),0)+IF(build2_cool=A87,VLOOKUP(A87,build2_cool_options, 7,FALSE),0) -> 0 | D87: MWh/yr
A88: Heat pump | B88: cooling_hp | C88: =IF(build1_cool=A88,VLOOKUP(A88,build1_cool_options, 7,FALSE),0)+IF(build2_cool=A88,VLOOKUP(A88,build2_cool_options, 7,FALSE),0) -> 0 | D88: MWh/yr

Sheet HVAC
A1: Building Heating, Ventilating, and Air Conditioning Calculations
A3: Calculation | B3: Range Name | C3: Value | D3: Units | E3: Guidance
A4: General information | E4: ss_cat2 is used to select ventilation requirements and building type
A5: System size | B5: ss_cat2 | C5: =IF(design_flow<1,1,IF(design_flow<10,2,3)) -> 1 | D5: 1 indicates small system, 2 indicates medium, 3 indicates large
A6: Building height | B6: Building_height | C6: =IF(tank_geom=1,comm_height_length,comm_diam)+Top_bottom_Vessel_space -> 10.5 | D6: ft
A7: Buiding 1 length and width | B7: build1_side | C7: =build1_fp^0.5 -> 10.48808848 | D7: ft
A8: Building 2 length and width | B8: build2_side | C8: =build2_fp^0.5 -> 0 | D8: ft
A9: Include HVAC? | B9: include_HVAC | C9: =IF(include_HVAC_I="no",0,IF(include_HVAC_I="yes",1,2)) -> 2 | D9: 0 = always exclude, 1 = always include, 2 = use model default
A11: Ventilation
A12: Building 1 weighted average air changes | B12: air_changes_build1 | C12: =IF(build2_fp=0,(air_changes_contactor*(vessel_fp+back_tank_fp+htank_fp)+air_changes_pump*(pump_fp+regen_pump_fp)+air_changes_chem_storage*(store_fp+mix_tank_fp+saltbox_fp+acid_tank_fp+NaOH_tank_fp+NaOHday_tank_fp+coag_fp+polymer_fp)+air_changes_office*office_fp)/build1_fp,air_changes_contactor) -> 0.5454545455 | D12: air changes/hr
A13: Building 2 weighted average air changes | B13: air_changes_build2 | C13: =IF(build2_fp=0,0,(air_changes_contactor*(back_tank_fp+htank_fp)+air_changes_pump*(pump_fp+regen_pump_fp)+air_changes_chem_storage*(store_fp+mix_tank_fp+saltbox_fp+acid_tank_fp+NaOH_tank_fp+NaOHday_tank_fp+coag_fp+polymer_fp)+air_changes_office*office_fp)/build2_fp) -> 0 | D13: air changes/hr
A14: Building 1 ventilation | C14: =CHOOSE(ss_cat2,fan_days_build1_small,fan_days_build1_medium,fan_days_build1_large)*24*0.746*fan_pressure_drop*build1_fp*Building_height*air_changes_build1/33000 -> 7.690581818 | D14: kWh/yr
A15: Building 2 ventilation | C15: =CHOOSE(ss_cat2,fan_days_build2_small,fan_days_build2_medium,fan_days_build2_large)*24*0.746*fan_pressure_drop*build2_fp*Building_height*air_changes_build2/33000 -> 0 | D15: kWh/yr
A16: Total ventilation | B16: ventilation | C16: =IF(include_HVAC=0,0,SUM(C14:C15)/1000) -> 0.007690581818 | D16: MWh/yr
A18: Building 1 air exchange rate | B18: build1_cfm | C18: =build1_fp*Building_height*air_changes_build1/60 -> 10.5 | D18: cfm
A19: Building 2 air exchange rate | B19: build2_cfm | C19: =build2_fp*Building_height*air_changes_build2/60 -> 0 | D19: cfm
A21: Heating and Cooling
A22: Include heating for building 1 | B22: build1_need_heat | C22: =IF(include_HVAC=0,0,IF(include_HVAC=1,1,VLOOKUP(IF(component_level_I="","low cost",component_level_I),IF(build1_fp<500,heating_table_shed,heating_table),ss_cat2+2,FALSE))) -> 0 | D22: 1 for yes, 0 for no | E22: Based on system size, building floorplan, and inputs
A23: Include cooling for building 1 | B23: build1_need_cool | C23: =IF(include_HVAC=0,0,IF(include_HVAC=1,1,VLOOKUP(IF(component_level_I="","low cost",component_level_I),IF(build1_fp<500,cooling_table_shed,cooling_table),ss_cat2+2,FALSE))) -> 0 | D23: 1 for yes, 0 for no
